Workbook

Sheet 主界面
B5: 纳税人名称：
B6: 纳税人识别号：
B7: 税款所属期间-起： | C7: 2022 | D7: 年 | E7: 1 | F7: 月 | G7: 1 | H7: 日
B8: 税款所属期间-止： | C8: 2022 | D8: 年 | E8: 12 | F8: 月 | G8: 31 | H8: 日
B9: 填表日期： | D9: 年 | F9: 月 | H9: 日
B10: 会计主管：
B11: 代理申报日期： | D11: 年 | F11: 月 | H11: 日
B12: 代理申报经办人：
B13: 经办人执业证件号码：
B14: 是否汇总纳税企业：
B15: =TODAY() -> 2023-03-30 | I15: =IF(ISERROR(C8+1),"",C8+1&"-"&5&"-"&31) -> 2023-5-31
B16: =IF(ISERROR(I15-TODAY()),"",IF(I15-TODAY()<0,"",I15-TODAY())) -> 62

Sheet 封面
A4: 中华人民共和国企业所得税年度纳税申报表
A5: （A类 , 2017年版）
A7: =IF(主界面!C8=0,"税款所属期间： 年 月 日至 年 月 日","税款所属期间："&主界面!C7&"年"&主界面!E7&"月"&主界面!G7&"日至"&主界面!C8&"年"&主界面!E8&"月"&主界面!G8&"日") -> 税款所属期间：2022年1月1日至2022年12月31日
A10: 纳税人识别号 （统一社会信用代码）： | E10: =主界面!C6 -> 0
A12: =" 纳税人名称："&主界面!C5 -> 纳税人名称：
A14: 金额单位：人民币元（列至角分）
A20: 谨声明：本纳税申报表是根据国家税收法律法规及相关规定填报的，是真实的、可靠的、完整的。
E23: 纳税人（签章）:
I25: =IF(主界面!C9=0," 年 月 日",主界面!C9&"年"&主界面!E9&"月"&主界面!G9&"日") -> 年 月 日
A28: 经办人： | F28: 受理人：
A32: 经办人身份证号： | F32: 受理税务机关（章）：
A36: 代理机构签章： | F36: 受理日期： 年 月 日
A38: 国家税务总局监制

Sheet 填报表单
A1: 企业所得税年度纳税申报表填报表单 | G1: 注：此行起勾选“填报”的报表会自动显示，勾选“不填报”的报表自动隐藏。（需启用宏）
A2: 表单编号 | B2: 表单名称 | C2: 是否填报
A3: A000000 | B3: 企业所得税年度纳税申报基础信息表 | C3: √ | D3: 小型微利企业必填
A4: A100000 | B4: 中华人民共和国企业所得税年度纳税申报表（A类） | C4: √ | D4: 小型微利企业必填
A5: A101010 | B5: 一般企业收入明细表 | C5: √ | D5: 小微企业免填 | F5: 有发生的直接填列到A100000
A6: A101020 | B6: 金融企业收入明细表 | D6: 小微企业免填 | F6: 有发生的直接填列到A100000
A7: A102010 | B7: 一般企业成本支出明细表 | C7: √ | D7: 小微企业免填 | F7: 有发生的直接填列到A100000
A8: A102020 | B8: 金融企业支出明细表 | D8: 小微企业免填 | F8: 有发生的直接填列到A100000
A9: A103000 | B9: 事业单位、民间非营利组织收入、支出明细表 | D9: 小微企业免填 | F9: 有发生的直接填列到A100000
A10: A104000 | B10: 期间费用明细表 | C10: √ | D10: 小微企业免填 | F10: 有发生的直接填列到A100000
A11: A105000 | B11: 纳税调整项目明细表 | C11: √
A12: A105010 | B12: 视同销售和房地产开发企业特定业务纳税调整明细表 | C12: √
A13: A105020 | B13: 未按权责发生制确认收入纳税调整明细表 | C13: √
A14: A105030 | B14: 投资收益纳税调整明细表 | C14: √
A15: A105040 | B15: 专项用途财政性资金纳税调整明细表 | C15: √
A16: A105050 | B16: 职工薪酬支出及纳税调整明细表 | C16: √ | D16: 一般企业，频率最高
A17: A105060 | B17: 广告费和业务宣传费等跨年度纳税调整明细表 | C17: √
A18: A105070 | B18: 捐赠支出及纳税调整明细表 | C18: √
A19: A105080 | B19: 资产折旧、摊销情况及纳税调整明细表 | C19: √ | D19: 一般企业，频率最高
A20: A105090 | B20: 资产损失税前扣除及纳税调整明细表 | C20: √
A21: A105100 | B21: 企业重组及递延纳税事项纳税调整明细表 | C21: √
A22: A105110 | B22: 政策性搬迁纳税调整明细表
A23: A105120 | B23: 贷款损失准备金及纳税调整明细表
A24: A106000 | B24: 企业所得税弥补亏损明细表 | C24: √
A25: A107010 | B25: 免税、减计收入及加计扣除优惠明细表 | C25: √
A26: A107011 | B26: 符合条件的居民企业之间的股息、红利等权益性投资收益优惠明细表 | C26: √
A27: A107012 | B27: 研发费用加计扣除优惠明细表 | C27: √
A28: A107020 | B28: 所得减免优惠明细表 | C28: √
A29: A107030 | B29: 抵扣应纳税所得额明细表
A30: A107040 | B30: 减免所得税优惠明细表 | C30: √ | D30: 一般企业，频率最高
A31: A107041 | B31: 高新技术企业优惠情况及明细表 | C31: √
A32: A107042 | B32: 软件、集成电路企业优惠情况及明细表
A33: A107050 | B33: 税额抵免优惠明细表 | C33: √
A34: A108000 | B34: 境外所得税收抵免明细表
A35: A108010 | B35: 境外所得纳税调整后所得明细表
A36: A108020 | B36: 境外分支机构弥补亏损明细表
A37: A108030 | B37: 跨年度结转抵免境外所得税明细表
A38: A109000 | B38: 跨地区经营汇总纳税企业年度分摊企业所得税明细表 | C38: √
A39: A109010 | B39: 企业所得税汇总纳税分支机构所得税分配表 | C39: √
A40: 说明：企业应当根据实际情况选择需要填报的表单。
A43: 归集表 | B43: 研发项目可加计扣除研究开发费用情况归集表（已被总局2019年第41号公告废止） | C43: 不再填报
A44: 辅助账汇总表 | B44: 研发支出辅助账汇总表 | C44: 留存备查（2015版）

Sheet A000000基础信息表
A1: A000000
A2: 企业所得税年度纳税申报基础信息表
A3: 基本经营情况（必填项目）
A4: 101纳税申报企业类型（填写代码） | H4: 102分支机构就地纳税比例（%）
A5: 103资产总额（填写平均值，单位：万元） | H5: 104从业人数（填写平均值，单位：人）
A6: 105所属国民经济行业（填写代码） | H6: 106从事国家限制或禁止行业 | L6: 是 否 | T6: FALSE | U6: TRUE
A7: 107适用会计准则或会计制度（填写代码） | H7: 108采用一般企业财务报表格式（2019年版） | L7: 是 否
A8: 109小型微利企业 | F8: 是 否 | H8: 110上市公司 | J8: 是（ 境内 境外） 否
A9: 有关涉税事项情况（存在或者发生下列事项时必填）
A10: 201从事股权投资业务 | F10: 是 | H10: 202存在境外关联交易 | L10: 是
A11: 203境外所得 信息 | B11: 203-1选择采用的境外所得抵免方式 | G11: 分国（地区）不分项 不分国（地区）不分项 | T11: FALSE | U11: FALSE
B12: 203-2新增境外直接投资信息 | G12: 是（产业类别： 旅游业 现代服务业 高新技术产业）
A13: 204有限合伙制创业投资企业的法人合伙人 | F13: 是 | H13: 205创业投资企业 | L13: 是
A14: 206技术先进型服务企业类型（填写代码） | H14: 207非营利组织 | L14: 是
A15: 208软件、集成电路企业类型（填写代码） | H15: 209集成电路生产项目类型 | K15: 130纳米 65纳米 28纳米 | T15: FALSE | U15: FALSE | V15: FALSE
A16: 210科技型中小企业 | B16: 210-1 年（申报所属期年度）入库编号1 | J16: 210-2入库时间1
B17: 210-3 年（所属期下一年度）入库编号2 | J17: 210-4入库时间2
A18: 211高新技术企业申报所属期年度有效的高新技术企业证书 | E18: 211-1 证书编号1 | J18: 211-2发证时间1
E19: 211-3 证书编号2 | H19: 0 | J19: 211-4发证时间2
A20: 212重组事项税务处理方式 | E20: 一般性 特殊性 | H20: 213重组交易类型（填写代码）
A21: 214重组当事方类型（填写代码） | H21: 215政策性搬迁开始时间 | L21: 年 月
A22: 216发生政策性搬迁且停止生产经营无所得年度 | G22: 是 | H22: 217政策性搬迁损失分期扣除年度 | L22: 是
A23: 218发生非货币性资产对外投资递延纳税事项 | G23: 是 | H23: 219非货币性资产对外投资转让所得递延纳税年度 | L23: 是
A24: 220发生技术成果投资入股递延纳税事项 | G24: 是 | H24: 221技术成果投资入股递延纳税年度 | L24: 是
A25: 222发生资产（股权）划转特殊性税务处理事项 | G25: 是 | H25: 223债务重组所得递延纳税年度 | L25: 是
A26: 224研发支出辅助账样式 | G26: 2015版 2021版 自行设计
A27: 主要股东及分红情况（必填项目）
A28: 股东名称 | C28: 证件种类 | D28: 证件号码 | H28: 投资比例（%） | I28: 当年（决议日）分配的股息、红利等权益性投资收益金额 | L28: 国籍（注册地址）
A39: 其余股东合计 | C39: —— | D39: —— | H39: =1-SUM(H29:H38) -> 1 | L39: ——

Sheet 代码列表 (hidden)
A1: 跨地区经营企业类型代码表
A2: 代码 | B2: 类型
B3: 大类 | C3: 中类 | D3: 小类
A4: 100 | B4: 非跨地区经营企业
A5: 210 | B5: 跨地区经营企业总机构 | C5: 总机构（跨省）——适用《跨地区经营汇总纳税企业所得税征收管理办法》
A6: 220 | C6: 总机构（跨省）——不适用《跨地区经营汇总纳税企业所得税征收管理办法》
A7: 230 | C7: 总机构（省内）
A8: 311 | B8: 跨地区经营企业分支机构 | C8: 需进行完整年度纳税申报 | D8: 分支机构（须进行完整年度申报并按比例纳税）
A9: 312 | D9: 分支机构（须进行完整年度申报但不就地缴纳）
A11: 会计准则或会计制度类型代码表
A12: 代码 | B12: 类型
B13: 大类 | C13: 小类
A14: 110 | B14: 企业会计准则 | C14: 一般企业
A15: 120 | C15: 银行
A16: 130 | C16: 证券
A17: 140 | C17: 保险
A18: 150 | C18: 担保
A19: 200 | B19: 小企业会计准则
A20: 300 | B20: 企业会计制度
A21: 410 | B21: 事业单位会计准则 | C21: 事业单位会计制度
A22: 420 | C22: 科学事业单位会计制度
A23: 430 | C23: 医院会计制度
A24: 440 | C24: 高等学校会计制度
A25: 450 | C25: 中小学校会计制度
A26: 460 | C26: 彩票机构会计制度
A27: 500 | B27: 民间非营利组织会计制度
A28: 600 | B28: 村集体经济组织会计制度
A29: 700 | B29: 农民专业合作社财务会计制度（试行）
A30: 800 | B30: 政府会计准则
A31: 999 | B31: 其他
A33: 技术先进型服务企业类型代码表
A34: 代码 | B34: 类型
B35: 大类 | C35: 小类
A36: 110 | B36: 服务外包类 | C36: 信息技术外包服务（ITO）
A37: 120 | C37: 技术性业务流程外包服务（BPO）
A38: 130 | C38: 技术性知识流程外包服务（KPO）
A39: 210 | B39: 服务贸易类 | C39: 计算机和信息服务
A40: 220 | C40: 研究开发和技术服务
A41: 230 | C41: 文化技术服务
A42: 240 | C42: 中医药医疗服务
A44: 软件、集成电路企业类型代码表
A45: 代码 | B45: 类型
B46: 大类 | C46: 中类
A47: 110 | B47: 100集成电路生产企业 | C47: 线宽小于0.8微米（含）的企业（延续到期）
A48: 120 | C48: 线宽小于0.25微米的企业（延续到期）
A49: 130 | C49: 投资额超过80亿元的企业（延续到期）
A50: 131 | C50: 投资额超过150亿元的企业（延续到期）
A51: 140 | C51: 线宽小于130纳米（含）的企业
A52: 151 | C52: 线宽小于65纳米（含）的企业
A53: 160 | C53: 线宽小于28纳米（含）的企业
A54: 240 | B54: 200集成电路设计企业 | C54: 集成电路设计企业
A55: 250 | C55: 重点集成电路设计企业
A56: 330 | B56: 300软件企业 | C56: 软件企业
A57: 340 | C57: 重点软件企业
A58: 400 | B58: 集成电路封装、测试（含封装测试）企业
A59: 500 | B59: 集成电路材料（含关键专用材料）企业
A60: 600 | B60: 集成电路装备（含专用设备）企业
A62: 重组交易类型和当事方类型代码表
A63: 重组交易 | C63: 重组当事方
A64: 代码 | B64: 类型 | C64: 代码 | D64: 类型
A65: 100 | B65: 法律形式改变 | C65: —— | D65: ——
A66: 200 | B66: 债务重组 | C66: 210 | D66: 债务人
C67: 220 | D67: 债权人
A68: 300 | B68: 股权收购 | C68: 310 | D68: 收购方
C69: 320 | D69: 转让方
C70: 330 | D70: 被收购企业
A71: 400 | B71: 资产收购 | C71: 410 | D71: 收购方
C72: 420 | D72: 转让方
A73: 500 | B73: 合并 | C73: 510 | D73: 合并企业
C74: 520 | D74: 被合并企业
C75: 530 | D75: 被合并企业股东
A76: 600 | B76: 分立 | C76: 610 | D76: 分立企业
C77: 620 | D77: 被分立企业
C78: 630 | D78: 被分立企业股东
A80: 弥补亏损企业类型代码表
A81: 代码 | B81: 类型
A82: 100 | B82: 一般企业
A83: 200 | B83: 符合条件的高新技术企业
A84: 300 | B84: 符合条件的科技型中小企业
A85: 400 | B85: 线宽小于 130 纳米(含)的集成电路生产企业
A86: 500 | B86: 受疫情影响困难行业企业
A87: 600 | B87: 电影行业企业
A89: 软件、集成电路企业优惠方式代码表
A90: 代码 | B90: 减免方式类型 | C90: 原政策 | D90: 新政策 | E90: 软件、集成电路企业类型
A91: 110 | B91: 企业二免三减半（免税） | D91: √ | E91: 140 | F91: 集成电路生产企业（线宽小于130纳米的企业）
D92: √ | E92: 240 | F92: 集成电路设计企业
D93: √ | E93: 330 | F93: 软件企业
D94: √ | E94: 400 | F94: 集成电路封装、测试（含封装测试）企业
D95: √ | E95: 500 | F95: 集成电路材料（含关键专用材料）企业
D96: √ | E96: 600 | F96: 集成电路装备（含专用设备）企业
A97: 120 | B97: 企业二免三减半（减半征收） | C97: √ | E97: 110 | F97: 集成电路生产企业（线宽小于0.8微米的企业）
C98: √ | D98: √ | E98: 140 | F98: 集成电路生产企业（线宽小于130纳米的企业）
C99: √ | D99: √ | E99: 240 | F99: 集成电路设计企业
C100: √ | D100: √ | E100: 330 | F100: 软件企业
C101: √ | D101: √ | E101: 400 | F101: 集成电路封装、测试（含封装测试）企业
C102: √ | D102: √ | E102: 500 | F102: 集成电路材料（含关键专用材料）企业
C103: √ | D103: √ | E103: 600 | F103: 集成电路装备（含专用设备）企业
A104: 210 | B104: 企业五免五减半（免税） | C104: √ | E104: 120 | F104: 集成电路生产企业（线宽小于0.25微米的企业）
C105: √ | E105: 130 | F105: 集成电路生产企业（投资额超过80亿元的企业）
C106: √ | E106: 131 | F106: 集成电路生产企业（资额超过150亿元的企业）
C107: √ | D107: √ | E107: 151 | F107: 集成电路生产企业（线宽小于65纳米的企业）
A108: 220 | B108: 企业五免五减半（减半征收） | C108: √ | E108: 120 | F108: 集成电路生产企业（线宽小于0.25微米的企业）
C109: √ | E109: 130 | F109: 集成电路生产企业（投资额超过80亿元的企业）
C110: √ | E110: 131 | F110: 集成电路生产企业（资额超过150亿元的企业）
C111: √ | D111: √ | E111: 151 | F111: 集成电路生产企业（线宽小于65纳米的企业）
A112: 300 | B112: 企业减按10%税率征收企业所得税 | D112: √ | E112: 250 | F112: 重点集成电路设计企业
D113: √ | E113: 340 | F113: 重点软件企业
A114: 510 | B114: 项目所得二免三减半（免税） | D114: √ | E114: 140 | F114: 集成电路生产企业（线宽小于130纳米的企业）
A115: 520 | B115: 项目所得二免三减半（减半征收） | C115: √ | D115: √ | E115: 140 | F115: 集成电路生产企业（线宽小于130纳米的企业）
A116: 610 | B116: 项目所得五免五减半（免税） | C116: √ | E116: 131 | F116: 集成电路生产企业（资额超过150亿元的企业）
C117: √ | D117: √ | E117: 151 | F117: 集成电路生产企业（线宽小于65纳米的企业）
A118: 620 | B118: 项目所得五免五减半（减半征收） | C118: √ | E118: 131 | F118: 集成电路生产企业（资额超过150亿元的企业）
C119: √ | D119: √ | E119: 151 | F119: 集成电路生产企业（线宽小于65纳米的企业）
A120: 700 | B120: 项目所得十免（免税） | D120: √ | E120: 160 | F120: 集成电路生产企业（线宽小于28纳米的企业）
A121: 800 | B121: 企业五免（免税） | D121: √ | E121: 250 | F121: 重点集成电路设计企业
D122: √ | E122: 340 | F122: 重点软件企业
A123: 900 | B123: 企业十免（免税） | D123: √ | E123: 160 | F123: 集成电路生产企业（线宽小于28纳米的企业）
A125: 重点集成电路设计和软件企业领域表
A126: 一、重点集成电路设计领域 | B126: （一）高性能处理器和 FPGA 芯片；
B127: （二）存储芯片；
B128: （三）智能传感器；
B129: （四）工业、通信、汽车和安全芯片；
B130: （五）EDA、IP 和设计服务。
A131: 二、重点软件领域 | B131: （一）基础软件：操作系统、数据库管理系统、中间件、通用办公软件、固件（BIOS）、开发支撑软件、少数民族语言文字编辑处理软件。
B132: （二）研发设计类工业软件：虚拟仿真系统、计算机辅助设计（CAD）、计算机辅助工程（CAE）、计算机辅助制造（CAM）、计算机辅助工艺规划（CAPP）、建筑信息模型（BIM）、产品数据管理（PDM）软件。
B133: （三）生产控制类工业软件：工业控制系统、制造执行系统（MES）、制造运行管理（MOM）、调度优化系统（ORION）、先进控制系统（APC）、安全仪表系统（SIS）、可编程控制器（PLC）。
B134: （四）新兴技术软件：分布式计算、数据分析挖掘、可视化、数据采集清洗等大数据软件，人机交互、通用算法软件、基础算法库、工具链、机器学习和深度学习框架等人工智能软件，信息系统运行维护软件，超级计算软件，区块链软件，工业互联网平台软件，云管理软件，虚拟化软件。
B135: （五）信息安全软件：信息系统安全、网络安全、密码算法、数据安全、安全测试等方面的软件。
B136: （六）重点行业应用软件：面向党政机关、国防、能源、交通、物流、通信、广电、医疗、建筑、制造业、应急、社保、农业、水利、教育、金融财税、知识产权、检验检测、科学研究、公共安全、节能环保、自然资源、城市管理、地理信息领域的专业应用软件。
B137: （七）经营管理类工业软件：企业资源计划（ERP）、供应链管理（SCM）、客户关系管理（CRM）、人力资源管理（HEM）、企业资产管理（EAM）、产品生命周期管理（PLM）、运维综合保障管理（MRO）软件及相关云服务。
B138: （八）公有云服务软件：大型公有云 IaaS、PaaS 服务软件。
B139: （九）嵌入式软件（软件收入比例不低于 50%）：通信设备、汽车电子、交通监控设备、电子测量仪器、装备自动控制、电子医疗器械、计算机应用产品、终端设备等嵌入式软件及嵌入式软件开发环境相关软件。
A141: A107042表第第16行与A107040表行次对应关系表
A142: 软件、集成电路企业类型 | B142: 选择适用优惠政策 | C142: 优惠方式代码 | D142: 减免方式类型 | E142: A107040对应行次
A143: 110集成电路生产企业（线宽小于0.8微米的企业） | B143: 原政策 | C143: 120 | D143: 企业二免三减半（减半征收） | E143: 6
A144: 120集成电路生产企业（线宽小于0.25微米的企业） | B144: 原政策 | C144: 210 | D144: 企业五免五减半（免税） | E144: 9
B145: 原政策 | C145: 220 | D145: 企业五免五减半（减半征收） | E145: 9
A146: 130集成电路生产企业（投资额超过80亿元的企业） | B146: 原政策 | C146: 210 | D146: 企业五免五减半（免税） | E146: 10
B147: 原政策 | C147: 220 | D147: 企业五免五减半（减半征收） | E147: 10
A148: 131集成电路生产企业（投资额超过150亿元的企业） | B148: 原政策 | C148: 210 | D148: 企业五免五减半（免税） | E148: 27
B149: 原政策 | C149: 220 | D149: 企业五免五减半（减半征收） | E149: 27
A150: 140集成电路生产企业（线宽小于130纳米的企业） | B150: 原政策 | C150: 120 | D150: 企业二免三减半（减半征收） | E150: 26
B151: 新政策 | C151: 110 | D151: 企业二免三减半（免税） | E151: 28.4.3
B152: 新政策 | C152: 120 | D152: 企业二免三减半（减半征收） | E152: 28.4.3
A153: 151集成电路生产企业（线宽小于65纳米的企业） | B153: 原政策 | C153: 210 | D153: 企业五免五减半（免税） | E153: 27
B154: 原政策 | C154: 220 | D154: 企业五免五减半（减半征收） | E154: 27
B155: 新政策 | C155: 210 | D155: 企业五免五减半（免税） | E155: 28.4.2
B156: 新政策 | C156: 220 | D156: 企业五免五减半（减半征收） | E156: 28.4.2
A157: 160集成电路生产企业（线宽小于28纳米的企业） | B157: 新政策 | C157: 900 | D157: 企业十免（免税） | E157: 28.4.1
A158: 240集成电路设计企业（集成电路设计企业） | B158: 原政策 | C158: 120 | D158: 企业二免三减半（减半征收） | E158: 11
B159: 新政策 | C159: 110 | D159: 企业二免三减半（免税） | E159: 28.4.4
B160: 新政策 | C160: 120 | D160: 企业二免三减半（减半征收） | E160: 28.4.4
A161: 250集成电路设计企业（重点集成电路设计企业） | B161: 新政策 | C161: 300 | D161: 企业减按10%税率征收企业所得税 | E161: 28.4.5
B162: 新政策 | C162: 800 | D162: 企业五免（免税） | E162: 28.4.5
A163: 330软件企业（软件企业） | B163: 原政策 | C163: 120 | D163: 企业二免三减半（减半征收） | E163: 13
B164: 新政策 | C164: 110 | D164: 企业二免三减半（免税） | E164: 28.4.9
B165: 新政策 | C165: 120 | D165: 企业二免三减半（减半征收） | E165: 28.4.9
A166: 340软件企业（重点软件企业） | B166: 新政策 | C166: 300 | D166: 企业减按10%税率征收企业所得税 | E166: 28.4.10
B167: 新政策 | C167: 800 | D167: 企业五免（免税） | E167: 28.4.10
A168: 400集成电路封装、测试（含封装测试）企业 | B168: 原政策 | C168: 120 | D168: 企业二免三减半（减半征收） | E168: 15
B169: 新政策 | C169: 110 | D169: 企业二免三减半（免税） | E169: 28.4.8
B170: 新政策 | C170: 120 | D170: 企业二免三减半（减半征收） | E170: 28.4.8
A171: 500集成电路材料（含关键专用材料）企业 | B171: 原政策 | C171: 120 | D171: 企业二免三减半（减半征收） | E171: 16
B172: 新政策 | C172: 110 | D172: 企业二免三减半（免税） | E172: 28.4.7
B173: 新政策 | C173: 120 | D173: 企业二免三减半（减半征收） | E173: 28.4.7
A174: 600集成电路装备（含专用设备）企业 | B174: 原政策 | C174: 120 | D174: 企业二免三减半（减半征收） | E174: 16
B175: 新政策 | C175: 110 | D175: 企业二免三减半（免税） | E175: 28.4.6
B176: 新政策 | C176: 120 | D176: 企业二免三减半（减半征收） | E176: 28.4.6
A178: 创意设计活动加计扣除比例及计算方法代码表（A107010表《免税、 减计收入及加计扣除优惠明细表》）
A179: 代码 | B179: 类型
A180: 110 | B180: 全年 100%（制造业企业、科技型中小企业）
A181: 121 | B181: 前三季度 75%且第四季度 100% （其他企业） | C181: 按比例计算
A182: 122 | C182: 按实际发生金额计算
A184: 研发费用加计扣除比例及计算方法代码表(A107012《研发费用加计扣除优惠明细表》)
A185: 代码 | B185: 类型
A186: 110 | B186: 全年 100%（制造业企业、科技型中小企业）
A187: 121 | B187: 前三季度 75%且第四季度 100% （其他企业） | C187: 按比例计算
A188: 122 | C188: 按实际发生金额计算

Sheet 行业分类代码表 (hidden)
A1: 国民经济行业分类和代码表（GB T4754-2011） | H1: 注：在国家标准《国民经济行业分类》（GB/T4754-2011）中，行业代码为0610-4690的企业属于工业企业。
A2: 代 码 | E2: 类 别 名 称 | F2: 说 明
A3: 门类 | B3: 大类 | C3: 中类 | D3: 小类
A4: A | E4: 农、林、牧、渔业 | F4: 本门类包括01～05大类
B5: 1 | E5: 农业 | F5: 指对各种农作物的种植
C6: 11 | E6: 谷物种植 | F6: 指以收获籽实为主，供人类食用的农作物的种植，如稻谷、小麦、玉米等农作物的种植
D7: 111 | E7: 稻谷种植 | G7: 其他企业
D8: 112 | E8: 小麦种植 | G8: 其他企业
D9: 113 | E9: 玉米种植 | G9: 其他企业
D10: 119 | E10: 其他谷物种植 | G10: 其他企业
C11: 12 | E11: 豆类、油料和薯类种植
D12: 121 | E12: 豆类种植 | G12: 其他企业
D13: 122 | E13: 油料种植 | G13: 其他企业
D14: 123 | E14: 薯类种植 | G14: 其他企业
C15: 13 | E15: 棉、麻、糖、烟草种植
D16: 131 | E16: 棉花种植 | G16: 其他企业
D17: 132 | E17: 麻类种植 | G17: 其他企业
D18: 133 | E18: 糖料种植 | F18: 指用于制糖的甘蔗和甜菜的种植 | G18: 其他企业
D19: 134 | E19: 烟草种植 | G19: 其他企业
C20: 14 | E20: 蔬菜、食用菌及园艺作物种植
D21: 141 | E21: 蔬菜种植 | G21: 其他企业
D22: 142 | E22: 食用菌种植 | G22: 其他企业
D23: 143 | E23: 花卉种植 | G23: 其他企业
D24: 149 | E24: 其他园艺作物种植 | G24: 其他企业
C25: 15 | E25: 水果种植
D26: 151 | E26: 仁果类和核果类水果种植 | F26: 指苹果、梨、桃、杏、李子等水果种植 | G26: 其他企业
D27: 152 | E27: 葡萄种植 | G27: 其他企业
D28: 153 | E28: 柑橘类种植 | G28: 其他企业
D29: 154 | E29: 香蕉等亚热带水果种植 | F29: 指香蕉、菠萝、芒果等亚热带水果种植 | G29: 其他企业
D30: 159 | E30: 其他水果种植 | G30: 其他企业
C31: 16 | E31: 坚果、含油果、香料和饮料作物种植
D32: 161 | E32: 坚果种植 | G32: 其他企业
D33: 162 | E33: 含油果种植 | F33: 指椰子、橄榄、油棕榈等的种植 | G33: 其他企业
D34: 163 | E34: 香料作物种植 | G34: 其他企业
D35: 169 | E35: 茶及其他饮料作物种植 | G35: 其他企业
C36: 17 | D36: 170 | E36: 中药材种植 | F36: 指主要用于中药配制以及中成药加工的药材作物的种植 | G36: 其他企业
C37: 19 | D37: 190 | E37: 其他农业 | F37: 指上述未列明的农作物种植 | G37: 其他企业
B38: 2 | E38: 林业
C39: 21 | E39: 林木育种和育苗
D40: 211 | E40: 林木育种 | F40: 指应用遗传学原理选育和繁殖林木新品种核心的栽植材料的林木遗传改良活动 | G40: 其他企业
D41: 212 | E41: 林木育苗 | F41: 指通过人为活动将种子、穗条或植物其他组织培育成苗木的活动 | G41: 其他企业
C42: 22 | D42: 220 | E42: 造林和更新 | F42: 指在宜林荒山荒地荒沙、采伐迹地、火烧迹地、疏林地、灌木林地等一切可造林的土地上通过人工造林、人工更新、封山育林、飞播造林等方式培育和恢复森林的活动 | G42: 其他企业
C43: 23 | D43: 230 | E43: 森林经营和管护 | F43: 指为促进林木生长发育，在林木生长的不同时期进行的促进林木生长发育的活动 | G43: 其他企业
C44: 24 | E44: 木材和竹材采运 | F44: 指对林木和竹木的采伐，并将其运出山场至贮木场的生产活动
D45: 241 | E45: 木材采运 | G45: 其他企业
D46: 242 | E46: 竹材采运 | G46: 其他企业
C47: 25 | E47: 林产品采集 | F47: 指在天然林地和人工林地进行的各种林木产品和其他野生植物的采集等活动
D48: 251 | E48: 木竹材林产品采集 | G48: 其他企业
D49: 252 | E49: 非木竹材林产品采集 | F49: 指在天然林地和人工林地进行的除木材、竹材产品外的其他各种林产品的采集活动 | G49: 其他企业
B50: 3 | E50: 畜牧业 | F50: 指为了获得各种畜禽产品而从事的动物饲养、捕捉活动
C51: 31 | E51: 牲畜饲养
D52: 311 | E52: 牛的饲养 | G52: 其他企业
D53: 312 | E53: 马的饲养 | G53: 其他企业
D54: 313 | E54: 猪的饲养 | G54: 其他企业
D55: 314 | E55: 羊的饲养 | G55: 其他企业
D56: 315 | E56: 骆驼饲养 | G56: 其他企业
D57: 319 | E57: 其他牲畜饲养 | G57: 其他企业
C58: 32 | E58: 家禽饲养
D59: 321 | E59: 鸡的饲养 | G59: 其他企业
D60: 322 | E60: 鸭的饲养 | G60: 其他企业
D61: 323 | E61: 鹅的饲养 | G61: 其他企业
D62: 329 | E62: 其他家禽饲养 | G62: 其他企业
C63: 33 | D63: 330 | E63: 狩猎和捕捉动物 | F63: 指对各种野生动物的捕捉以及与此相关的活动 | G63: 其他企业
C64: 39 | D64: 390 | E64: 其他畜牧业 | G64: 其他企业
B65: 4 | E65: 渔业
C66: 41 | E66: 水产养殖
D67: 411 | E67: 海水养殖 | F67: 指利用海水对各种水生动植物的养殖 | G67: 其他企业
D68: 412 | E68: 内陆养殖 | F68: 指在内陆水域进行的各种水生动植物的养殖 | G68: 其他企业
C69: 42 | E69: 水产捕捞
D70: 421 | E70: 海水捕捞 | F70: 指在海洋中对各种天然水生动植物的捕捞 | G70: 其他企业
D71: 422 | E71: 内陆捕捞 | F71: 指在内陆水域对各种天然水生动植物的捕捞 | G71: 其他企业
B72: 5 | E72: 农、林、牧、渔服务业
C73: 51 | E73: 农业服务业 | F73: 指对农业生产活动进行的各种支持性服务，但不包括各种科学技术和专业技术服务
D74: 511 | E74: 农业机械服务 | F74: 指为农业生产提供农业机械并配备操作人员的活动 | G74: 其他企业
D75: 512 | E75: 灌溉服务 | F75: 指对农业生产灌溉系统的经营与管理 | G75: 其他企业
D76: 513 | E76: 农产品初加工服务 | F76: 指对各种农产品（包括天然橡胶、纺织纤维原料）进行脱水、凝固、去籽、净化、分类、晒干、剥皮、初烤、沤软或大批包装以提供初级市场的服务，以及其他农产品的初加工；其中棉花等纺织纤维原料加工指对棉纤维、短绒剥离后的棉籽以及棉花秸秆、铃壳等副产品的综合加工和利用活动 | G76: 其他企业
D77: 519 | E77: 其他农业服务 | F77: 指防止病虫害的活动，以及其他未列明的农业服务 | G77: 其他企业
C78: 52 | E78: 林业服务业 | F78: 指为林业生产服务的病虫害的防治、林地防火等各种辅助性活动
D79: 521 | E79: 林业有害生物防治服务 | G79: 其他企业
D80: 522 | E80: 森林防火服务 | G80: 其他企业
D81: 523 | E81: 林产品初级加工服务 | F81: 指对各种林产品进行去皮、打枝或去料、净化、初包装提供至贮木场或初级市场的服务 | G81: 其他企业
D82: 529 | E82: 其他林业服务 | G82: 其他企业
C83: 53 | D83: 530 | E83: 畜牧服务业 | F83: 指提供牲畜繁殖、圈舍清理、畜产品生产和初级加工等服务 | G83: 其他企业
C84: 54 | D84: 540 | E84: 渔业服务业 | F84: 指对渔业生产活动进行的各种支持性服务，包括鱼苗及鱼种场、水产良种场和水产增殖场等进行的活动 | G84: 其他企业
A85: B | E85: 采矿业 | F85: 本类包括06～12大类，采矿业指对固体（如煤和矿物）、液体（如原油）或气体（如天然气）等自然产生的矿物的采掘；包括地下或地上采掘、矿井的运行，以及一般在矿址或矿址附近从事的旨在加工原材料的所有辅助性工作，例如碾磨、选矿和处理，均属本类活动；还包括使原料得以销售所需的准备工作；不包括水的蓄集、净化和分配，以及地质勘查、建筑工程活动
B86: 6 | E86: 煤炭开采和洗选业 | F86: 指对各种煤炭的开采、洗选、分级等生产活动；不包括煤制品的生产和煤炭勘探活动
C87: 61 | D87: 610 | E87: 烟煤和无烟煤开采洗选 | F87: 指对地下或露天烟煤、无烟煤的开采，以及对采出的烟煤、无烟煤及其他硬煤进行洗选、分级等提高质量的活动 | G87: 工业企业
C88: 62 | D88: 620 | E88: 褐煤开采洗选 | F88: 指对褐煤——煤化程度较低的一种燃料的地下或露天开采，以及对采出的褐煤进行洗选、分级等提高质量的活动 | G88: 工业企业
C89: 69 | D89: 690 | E89: 其他煤炭采选 | F89: 指对生长在古生代地层中的含碳量低、灰分高的煤炭资源（如石煤、泥炭）的开采 | G89: 工业企业
B90: 7 | E90: 石油和天然气开采业 | F90: 指在陆地或海洋，对天然原油、液态或气态天然气的开采，对煤矿瓦斯气（煤层气）的开采；为运输目的所进行的天然气液化和从天然气田气体中生产液化烃的活动，还包括对含沥青的页岩或油母页岩矿的开采，以及对焦油沙矿进行的同类作业
C91: 71 | D91: 710 | E91: 石油开采 | G91: 工业企业
C92: 72 | D92: 720 | E92: 天然气开采 | G92: 工业企业
B93: 8 | E93: 黑色金属矿采选业
C94: 81 | D94: 810 | E94: 铁矿采选 | F94: 指对铁矿石的采矿、选矿活动 | G94: 工业企业
C95: 82 | D95: 820 | E95: 锰矿、铬矿采选 | G95: 工业企业
C96: 89 | D96: 890 | E96: 其他黑色金属矿采选 | F96: 指对钒矿等钢铁工业黑色金属辅助原料矿的采矿、选矿活动 | G96: 工业企业
B97: 9 | E97: 有色金属矿采选业 | F97: 指对常用有色金属矿、贵金属矿，以及稀有稀土金属矿的开采、选矿活动
C98: 91 | E98: 常用有色金属矿采选 | F98: 指对铜、铅锌、镍钴、锡、锑、铝、镁、汞、镉、铋等常用有色金属矿的采选
D99: 911 | E99: 铜矿采选 | G99: 工业企业
D100: 912 | E100: 铅锌矿采选 | G100: 工业企业
D101: 913 | E101: 镍钴矿采选 | G101: 工业企业
D102: 914 | E102: 锡矿采选 | G102: 工业企业
D103: 915 | E103: 锑矿采选 | G103: 工业企业
D104: 916 | E104: 铝矿采选 | G104: 工业企业
D105: 917 | E105: 镁矿采选 | G105: 工业企业
D106: 919 | E106: 其他常用有色金属矿采选 | G106: 工业企业
C107: 92 | E107: 贵金属矿采选 | F107: 指对在地壳中含量极少的金、银和铂族元素（铂、铱、锇、钌、钯、铑）矿的采选
D108: 921 | E108: 金矿采选 | G108: 工业企业
D109: 922 | E109: 银矿采选 | G109: 工业企业
D110: 929 | E110: 其他贵金属矿采选 | G110: 工业企业
C111: 93 | E111: 稀有稀土金属矿采选 | F111: 指对在自然界中含量较小，分布稀散或难以从原料中提取，以及研究和使用较晚的金属矿开采、精选
D112: 931 | E112: 钨钼矿采选 | G112: 工业企业
D113: 932 | E113: 稀土金属矿采选 | F113: 指镧系金属及与镧系金属性质相近的金属矿的采选 | G113: 工业企业
D114: 933 | E114: 放射性金属矿采选 | F114: 指对主要含钍和铀的矿石开采，以及对这类矿石的精选 | G114: 工业企业
D115: 939 | E115: 其他稀有金属矿采选 | F115: 指对稀有轻金属矿、稀有高熔点金属矿、稀散金属矿采选活动，以及其他稀有金属矿的采选 | G115: 工业企业
B116: 10 | E116: 非金属矿采选业
C117: 101 | E117: 土砂石开采
D118: 1011 | E118: 石灰石、石膏开采 | F118: 指对石灰、石膏，以及石灰石助熔剂的开采 | G118: 工业企业
D119: 1012 | E119: 建筑装饰用石开采 | F119: 指通常在采石场切制加工各种纪念碑及建筑用石料的活动 | G119: 工业企业
D120: 1013 | E120: 耐火土石开采 | G120: 工业企业
D121: 1019 | E121: 粘土及其他土砂石开采 | F121: 指用于建筑、陶瓷等方面的粘土开采，以及用于铺路和建筑材料的石料、石渣、砂的开采 | G121: 工业企业
C122: 102 | D122: 1020 | E122: 化学矿开采 | F122: 指对化学矿和肥料矿物的开采 | G122: 工业企业
C123: 103 | D123: 1030 | E123: 采盐 | F123: 指通过以海水（含沿海浅层地下卤水）为原料晒制，或以钻井汲取地下卤水，或注水溶解地下岩盐为原料，经真空蒸发干燥，以及从盐湖中采掘制成的以氯化钠为主要成分的盐产品的开采、粉碎和筛选 | G123: 工业企业
C124: 109 | E124: 石棉及其他非金属矿采选 | F124: 指对石棉、石墨、贵重宝石、金刚石、天然磨料及其他矿石的开采
D125: 1091 | E125: 石棉、云母矿采选 | G125: 工业企业
D126: 1092 | E126: 石墨、滑石采选 | F126: 指对天然石墨、滑石的开采 | G126: 工业企业
D127: 1093 | E127: 宝石、玉石采选 | F127: 指对贵重宝石、玉石、彩石的开采 | G127: 工业企业
D128: 1099 | E128: 其他未列明非金属矿采选 | G128: 工业企业
B129: 11 | E129: 开采辅助活动 | F129: 指为煤炭、石油和天然气等矿物开采提供的服务
C130: 111 | D130: 1110 | E130: 煤炭开采和洗选辅助活动 | G130: 工业企业
C131: 112 | D131: 1120 | E131: 石油和天然气开采辅助活动 | G131: 工业企业
C132: 119 | D132: 1190 | E132: 其他开采辅助活动 | G132: 工业企业
B133: 12 | E133: 其他采矿业
C134: 120 | D134: 1200 | E134: 其他采矿业 | F134: 指对地热资源、矿泉水资源以及其他未列明的自然资源的开采，但不包括利用这些资源建立的热电厂和矿泉水厂的活动 | G134: 工业企业
A135: C | E135: 制造业 | F135: 本门类包括13～43大类，指经物理变化或化学变化后成为新的产品，不论是动力机械制造，还是手工制作；也不论产品是批发销售，还是零售，均视为制造
F136: 建筑物中的各种制成品、零部件的生产应视为制造，但在建筑预制品工地，把主要部件组装成桥梁、仓库设备、铁路与高架公路、升降机与电梯、管道设备、喷水设备、暖气设备、通风设备与空调设备，照明与安装电线等组装活动，以及建筑物的装置，均列为建筑活动
F137: 本门类包括机电产品的再制造，指将废旧汽车零部件、工程机械、机床等进行专业化修复的批量化生产过程，再制造的产品达到与原有新产品相同的质量和性能
B138: 13 | E138: 农副食品加工业 | F138: 指直接以农、林、牧、渔业产品为原料进行的谷物磨制、饲料加工、植物油和制糖加工、屠宰及肉类加工、水产品加工，以及蔬菜、水果和坚果等食品的加工
C139: 131 | D139: 1310 | E139: 谷物磨制 | F139: 也称粮食加工，指将稻子、谷子、小麦、高粱等谷物去壳、碾磨及精加工的生产活动 | G139: 工业企业
C140: 132 | D140: 1320 | E140: 饲料加工 | F140: 指适用于农场、农户饲养牲畜、家禽的饲料生产加工，包括宠物食品的生产活动，也包括用屠宰下脚料加工生产的动物饲料，即动物源性饲料的生产活动 | G140: 工业企业
C141: 133 | E141: 植物油加工
D142: 1331 | E142: 食用植物油加工 | F142: 指用各种食用植物油料生产油脂，以及精制食用油的加工 | G142: 工业企业
D143: 1332 | E143: 非食用植物油加工 | F143: 指用各种非食用植物油料生产油脂的活动 | G143: 工业企业
C144: 134 | D144: 1340 | E144: 制糖业 | F144: 指以甘蔗、甜菜等为原料制作成品糖，以及以原糖或砂糖为原料精炼加工各种精制糖的生产活动 | G144: 工业企业
C145: 135 | E145: 屠宰及肉类加工
D146: 1351 | E146: 牲畜屠宰 | F146: 指对各种牲畜进行宰杀，以及鲜肉冷冻等保鲜活动，但不包括商业冷藏活动 | G146: 工业企业
D147: 1352 | E147: 禽类屠宰 | F147: 指对各种禽类进行宰杀，以及鲜肉冷冻等保鲜活动，但不包括商业冷藏活动 | G147: 工业企业
D148: 1353 | E148: 肉制品及副产品加工 | F148: 指主要以各种畜、禽肉为原料加工成熟肉制品，以及畜、禽副产品的加工 | G148: 工业企业
C149: 136 | E149: 水产品加工
D150: 1361 | E150: 水产品冷冻加工 | F150: 指为了保鲜，将海水、淡水养殖或捕捞的鱼类、虾类、甲壳类、贝类、藻类等水生动物或植物进行的冷冻加工，但不包括商业冷藏活动 | G150: 工业企业
D151: 1362 | E151: 鱼糜制品及水产品干腌制加工 | F151: 指鱼糜制品制造，以及水产品的干制、腌制等加工 | G151: 工业企业
D152: 1363 | E152: 水产饲料制造 | F152: 指用低值水产品及水产品加工废弃物（如鱼骨、内脏、虾壳）等为主要原料的饲料加工 | G152: 工业企业
D153: 1364 | E153: 鱼油提取及制品制造 | F153: 指从鱼或鱼肝中提取油脂，并生产制品的活动 | G153: 工业企业
D154: 1369 | E154: 其他水产品加工 | F154: 指对水生动植物进行的其他加工 | G154: 工业企业
C155: 137 | E155: 蔬菜、水果和坚果加工 | F155: 指用脱水、干制、冷藏、冷冻、腌制等方法，对蔬菜、水果、坚果的加工
D156: 1371 | E156: 蔬菜加工 | G156: 工业企业
D157: 1372 | E157: 水果和坚果加工 | G157: 工业企业
C158: 139 | E158: 其他农副食品加工
D159: 1391 | E159: 淀粉及淀粉制品制造 | F159: 指用玉米、薯类、豆类及其他植物原料制作淀粉和淀粉制品的生产；还包括以淀粉为原料，经酶法或酸法转换得到的糖品生产活动 | G159: 工业企业
D160: 1392 | E160: 豆制品制造 | F160: 指以大豆、小豆、绿豆、豌豆、蚕豆等豆类为主要原料，经加工制成食品的活动 | G160: 工业企业
D161: 1393 | E161: 蛋品加工 | G161: 工业企业
D162: 1399 | E162: 其他未列明农副食品加工 | G162: 工业企业
B163: 14 | E163: 食品制造业
C164: 141 | E164: 焙烤食品制造
D165: 1411 | E165: 糕点、面包制造 | F165: 指用米粉、面粉、豆粉为主要原料，配以辅料，经成型、油炸、烤制而成的各种食品生产活动 | G165: 工业企业
D166: 1419 | E166: 饼干及其他焙烤食品制造 | F166: 指以面粉（或糯米粉）、糖和油脂为主要原料，配以奶制品、蛋制品等辅料，经成型、焙烤制成的各种饼干，以及用薯类、谷类、豆类等制作的各种易于保存、食用方便的焙烤食品生产活动 | G166: 工业企业
C167: 142 | E167: 糖果、巧克力及蜜饯制造
D168: 1421 | E168: 糖果、巧克力制造 | F168: 糖果制造指以砂糖、葡萄糖浆或饴糖为主要原料，加入油脂、乳品、胶体、果仁、香料、食用色素等辅料制成甜味块状食品的生产活动；巧克力制造指以浆状、粉状或块状可可、可可脂、可可酱、砂糖、乳品等为主要原料加工制成巧克力及巧克力制品的生产活动 | G168: 工业企业
D169: 1422 | E169: 蜜饯制作 | F169: 指以水果、坚果、果皮及植物的其他部分制作糖果蜜饯的活动 | G169: 工业企业
C170: 143 | E170: 方便食品制造 | F170: 指以米、面、杂粮等为主要原料加工制成，只需简单烹制即可作为主食，具有食用简便、携带方便，易于储藏等特点的食品制造
D171: 1431 | E171: 米、面制品制造 | F171: 指以米、面、杂粮等为原料，经粗加工制成，未经烹制的各类米面制品的生产活动 | G171: 工业企业
D172: 1432 | E172: 速冻食品制造 | F172: 指以米、面、杂粮等为主要原料，以肉类、蔬菜等为辅料，经加工制成各类烹制或未烹制的主食食品后，立即采用速冻工艺制成的，并可以在冻结条件下运输储存及销售的各类主食食品的生产活动 | G172: 工业企业
D173: 1439 | E173: 方便面及其他方便食品制造 | F173: 指用米、面、杂粮等为主要原料加工制成的，可以直接食用或只需简单蒸煮即可作为主食的各种方便主食食品的生产活动，以及其他未列明的方便食品制造 | G173: 工业企业
C174: 144 | D174: 1440 | E174: 乳制品制造 | F174: 指以生鲜牛（羊）乳及其制品为主要原料，经加工制成的液体乳及固体乳（乳粉、炼乳、乳脂肪、干酪等）制品的生产活动；不包括含乳饮料和植物蛋白饮料生产活动 | G174: 工业企业
C175: 145 | E175: 罐头食品制造 | F175: 指将符合要求的原料经处理、分选、修整、烹调（或不经烹调）、装罐、密封、杀菌、冷却（或无菌包装）等罐头生产工艺制成的，达到商业无菌要求，并可以在常温下储存的罐头食品的制造
D176: 1451 | E176: 肉、禽类罐头制造 | G176: 工业企业
D177: 1452 | E177: 水产品罐头制造 | G177: 工业企业
D178: 1453 | E178: 蔬菜、水果罐头制造 | G178: 工业企业
D179: 1459 | E179: 其他罐头食品制造 | F179: 指婴幼儿辅助食品类罐头、米面食品类罐头（如八宝粥罐头等）及上述未列明的罐头食品制造 | G179: 工业企业
C180: 146 | E180: 调味品、发酵制品制造
D181: 1461 | E181: 味精制造 | F181: 指以淀粉或糖蜜为原料，经微生物发酵、提取、精制等工序制成的，谷氨酸钠含量在80％及以上的鲜味剂的生产活动 | G181: 工业企业
D182: 1462 | E182: 酱油、食醋及类似制品制造 | F182: 指以大豆和（或）脱脂大豆，小麦和（或）麸皮为原料，经微生物发酵制成的各种酱油和酱类制品，以及以单独或混合使用各种含有淀粉、糖的物料或酒精，经微生物发酵酿制的酸性调味品的生产活动 | G182: 工业企业
D183: 1469 | E183: 其他调味品、发酵制品制造 | G183: 工业企业
C184: 149 | E184: 其他食品制造
D185: 1491 | E185: 营养食品制造 | F185: 指主要适宜伤残者、老年人，含肉、鱼、水果、蔬菜、奶、麦精、钙等均质配料的营养食品的生产活动 | G185: 工业企业
D186: 1492 | E186: 保健食品制造 | F186: 指标明具有特定保健功能的食品，适用于特定人群食用，具有调节机体功能，不以治疗为目的，对人体不产生急性、亚急性或慢性危害，以补充维生素、矿物质为目的的营养素补充等保健食品制造 | G186: 工业企业
D187: 1493 | E187: 冷冻饮品及食用冰制造 | F187: 指以砂糖、乳制品、豆制品、蛋制品、油脂、果料和食用添加剂等经混合配制、加热杀菌、均质、老化、冻结（凝冻）而成的冷食饮品的制造，以及食用冰的制造 | G187: 工业企业
D188: 1494 | E188: 盐加工 | F188: 指以原盐为原料，经过化卤、蒸发、洗涤、粉碎、干燥、脱水、筛分等工序，或在其中添加碘酸钾及调味品等加工制成盐产品的生产活动 | G188: 工业企业
D189: 1495 | E189: 食品及饲料添加剂制造 | F189: 指增加或改善食品特色的化学品，以及补充动物饲料的营养成分和促进生长、防治疫病的制剂的生产活动 | G189: 工业企业
D190: 1499 | E190: 其他未列明食品制造 | G190: 工业企业
B191: 15 | E191: 酒、饮料和精制茶制造业
C192: 151 | E192: 酒的制造 | F192: 指酒精、白酒、啤酒及其专用麦芽、黄酒、葡萄酒、果酒、配制酒以及其他酒的生产
D193: 1511 | E193: 酒精制造 | F193: 指用玉米、小麦、薯类等淀粉质原料或用糖蜜等含糖质原料，经蒸煮、糖化、发酵及蒸馏等工艺制成的酒精产品的生产活动 | G193: 工业企业
D194: 1512 | E194: 白酒制造 | F194: 指以高粱等粮谷为主要原料，以大曲、小曲或麸曲及酒母等为糖化发酵剂，经蒸煮、糖化、发酵、蒸馏、陈酿、勾兑而制成的蒸馏酒产品的生产活动 | G194: 工业企业
D195: 1513 | E195: 啤酒制造 | F195: 指以麦芽（包括特种麦芽）、水为主要原料，加啤酒花，经酵母发酵酿制而成，含二氧化碳、起泡、低酒精度的发酵酒产品（包括无醇啤酒，也称脱醇啤酒）的生产活动，以及啤酒专用原料麦芽的生产活动 | G195: 工业企业
D196: 1514 | E196: 黄酒制造 | F196: 指以稻米、黍米、黑米、小麦、玉米等为主要原料，加曲、酵母等糖化发酵剂发酵酿制而成的发酵酒产品的生产活动 | G196: 工业企业
D197: 1515 | E197: 葡萄酒制造 | F197: 指以新鲜葡萄或葡萄汁为原料，经全部或部分发酵酿制而成，含有一定酒精度的发酵酒产品的生产活动 | G197: 工业企业
D198: 1519 | E198: 其他酒制造 | F198: 指除葡萄酒以外的果酒、配制酒以及上述未列明的其他酒产品的生产活动 | G198: 工业企业
C199: 152 | E199: 饮料制造
D200: 1521 | E200: 碳酸饮料制造 | F200: 指在一定条件下充入二氧化碳气的饮用品制造，其成品中二氧化碳气的含量（20℃时的体积倍数）不低于2.0倍 | G200: 工业企业
... 1229 more rows

Sheet 资产总额计算表 (hidden)
A1: =主界面!C5&主界面!C8&"年资产总额计算表" -> 2022年资产总额计算表
A2: 月份 | B2: 季度计数 | C2: 资产总额 | D2: 季（年）平均值
A3: 本年年初（1月1日） | B3: * | D3: *
A4: 1季度末（3月31日） | B4: =IF(D4=0,0,1) -> 0 | D4: =IF(C4=0,0,IF(AND(C3=0,C4<>0),C4,(C3+C4)/2)) -> 0
A5: 2季度末（6月30日） | B5: =IF(D5=0,0,1) -> 0 | D5: =IF(C5=0,0,IF(AND(C4=0,C5<>0),C5,(C4+C5)/2)) -> 0
A6: 3季度末（9月30日） | B6: =IF(D6=0,0,1) -> 0 | D6: =IF(C6=0,0,IF(AND(C5=0,C6<>0),C6,(C5+C6)/2)) -> 0
A7: 本年年末（12月31日） | B7: =IF(D7=0,0,1) -> 0 | D7: =IF(C7=0,0,IF(AND(C6=0,C7<>0),C7,(C6+C7)/2)) -> 0
A8: 全年平均值 | B8: =SUM(B4:B7) -> 0 | C8: * | D8: =IF(B8>0,SUM(D4:D7)/B8,0) -> 0
A9: 注：按税总所便函【2015】21号、财税【2015】34号规定计算

Sheet 从业人数计算表 (hidden)
A1: =主界面!C5&主界面!C8&"年从业人数计算表" -> 2022年从业人数计算表
A2: 月份 | B2: 季度计数 | C2: 从业人数 | D2: 季（年）平均值
A3: 本年年初（1月1日） | B3: * | D3: *
A4: 1季度末（3月31日） | B4: =IF(D4=0,0,1) -> 0 | D4: =IF(C4=0,0,IF(AND(C3=0,C4<>0),C4,(C3+C4)/2)) -> 0
A5: 2季度末（6月30日） | B5: =IF(D5=0,0,1) -> 0 | D5: =IF(C5=0,0,IF(AND(C4=0,C5<>0),C5,(C4+C5)/2)) -> 0
A6: 3季度末（9月30日） | B6: =IF(D6=0,0,1) -> 0 | D6: =IF(C6=0,0,IF(AND(C5=0,C6<>0),C6,(C5+C6)/2)) -> 0
A7: 本年年末（12月31日） | B7: =IF(D7=0,0,1) -> 0 | D7: =IF(C7=0,0,IF(AND(C6=0,C7<>0),C7,(C6+C7)/2)) -> 0
A8: 全年平均值 | B8: =SUM(B4:B7) -> 0 | C8: * | D8: =IF(B8>0,SUM(D4:D7)/B8,0) -> 0
A9: 注：按税总所便函【2015】21号、财税【2015】34号规定计算

Sheet A100000主表
A1: A100000
A2: 中华人民共和国企业所得税年度纳税申报表（A类）
A3: 行次 | B3: 类别 | C3: 项 目 | D3: 金 额
A4: 1 | B4: 利润总额计算 | C4: 一、营业收入(填写A101010\101020\103000) | D4: ='A101010'!C3+'A101020'!C3+SUM('A103000'!C4:C8)+SUM('A103000'!C13:C17) -> 500000 | F4: 小微企业：直接在本表中填列 | H4: =5250÷1.05
A5: 2 | C5: 减：营业成本(填写A102010\102020\103000) | D5: ='A102010'!C3+'A102020'!C3+SUM('A103000'!C21:C24)+SUM('A103000'!C27:C29) -> 3800 | F5: 小微企业：直接在本表中填列
A6: 3 | C6: 减：税金及附加 | F6: 小微企业：直接在本表中填列 | H6: =5250÷1.05×0.05×0.12
A7: 4 | C7: 减：销售费用(填写A104000) | D7: ='A104000'!C29 -> 0 | F7: 小微企业：直接在本表中填列
A8: 5 | C8: 减：管理费用(填写A104000) | D8: ='A104000'!E29 -> 0 | F8: 小微企业：直接在本表中填列
A9: 6 | C9: 减：财务费用(填写A104000) | D9: ='A104000'!G29 -> 0 | F9: 小微企业：直接在本表中填列
A10: 7 | C10: 减：资产减值损失 | F10: 小微企业：直接在本表中填列
A11: 8 | C11: 加：公允价值变动收益 | F11: 小微企业：直接在本表中填列
A12: 9 | C12: 加：投资收益 | F12: 小微企业：直接在本表中填列
A13: 10 | C13: 二、营业利润(1-2-3-4-5-6-7+8+9) | D13: =ROUND(D4-SUM(D5:D10)+D11+D12,2) -> 496200 | F13: 已执行《财政部关于修订印发2018年度一般企业财务报表格式的通知》（财会〔2018〕15号）的纳税人 | G13: 不执行表内关系
A14: 11 | C14: 加：营业外收入(填写A101010\101020\103000) | D14: ='A101010'!C18+'A101020'!C37+'A103000'!C11+'A103000'!C19 -> 0 | F14: 小微企业：直接在本表中填列
A15: 12 | C15: 减：营业外支出(填写A102010\102020\103000) | D15: ='A102010'!C18+'A102020'!C35+'A103000'!C25+'A103000'!C30 -> 0 | F15: 小微企业：直接在本表中填列
A16: 13 | C16: 三、利润总额（10+11-12） | D16: =ROUND(D13+D14-D15,2) -> 496200
A17: 14 | B17: 应纳税所得额计算 | C17: 减：境外所得（填写A108010） | D17: ='A108010'!O15-'A108010'!L15 -> 0
A18: 15 | C18: 加：纳税调整增加额（填写A105000） | D18: ='A105000'!E57 -> 168
A19: 16 | C19: 减：纳税调整减少额（填写A105000） | D19: ='A105000'!F57 -> 41200 | F19: 其中：400万+800万的设备一次性税前扣除
A20: 17 | C20: 减：免税、减计收入及加计扣除（填写A107010） | D20: ='A107010'!C42 -> 2000 | F20: 800万设备100%加计+800万100%设备研发加计+400万设备100%加计
A21: 18 | C21: 加：境外应税所得抵减境内亏损（填写A108000） | D21: =IF(D16-D17+D18-D19-D20>=0,0,IF(AND(D16-D17+D18-D19-D20<0,'A108000'!F14>=0,'A108000'!G14>0),MIN('A108000'!F14,ABS(D16-D17+D18-D19-D20)),IF(AND(D16-D17+D18-D19-D20<0,'A108000'!F14>=0,'A108000'!G14=0),0,0))) -> 0
A22: 19 | C22: 四、纳税调整后所得（13-14+15-16-17+18） | D22: =ROUND(D16-D17+D18-D19-D20+D21,2) -> 453168
A23: 20 | C23: 减：所得减免（填写A107020） | D23: =IF(D22<=0,0,IF('A107020'!M35<=A100000主表!D22,'A107020'!M35,A100000主表!D22)) -> 200000
A24: 21 | C24: 减：弥补以前年度亏损（填写A106000） | D24: ='A106000'!L15 -> 253168
A25: 22 | C25: 减：抵扣应纳税所得额（填写A107030） | D25: ='A107030'!C21 -> 0
A26: 23 | C26: 五、应纳税所得额（19-20-21-22） | D26: =IF(ROUND(D22-D23-D24-D25,2)<0,0,ROUND(D22-D23-D24-D25,2)) -> 0
A27: 24 | B27: 应纳税额计算 | C27: 税率（25%） | D27: 0.25
A28: 25 | C28: 六、应纳所得税额（23×24） | D28: =ROUND(D26*D27,2) -> 0
A29: 26 | C29: 减：减免所得税额（填写A107040） | D29: ='A107040'!C57 -> 30
A30: 27 | C30: 减：抵免所得税额（填写A107050） | D30: ='A107050'!M11 -> 0
A31: 28 | C31: 七、应纳税额（25-26-27） | D31: =ROUND(D28-D29-D30,2) -> -30
A32: 29 | C32: 加：境外所得应纳所得税额（填写A108000） | D32: ='A108000'!J14 -> 0
A33: 30 | C33: 减：境外所得抵免所得税额（填写A108000） | D33: ='A108000'!T14 -> 0
A34: 31 | C34: 八、实际应纳所得税额（28+29-30） | D34: =ROUND(D31+D32-D33,2) -> -30
A35: 32 | C35: 减：本年累计实际已缴纳的所得税额 | F35: 正常情况下，系统自动带出
A36: 33 | C36: 九、本年应补（退）所得税额（31-32） | D36: =ROUND(D34-D35,2) -> -30
A37: 34 | C37: 其中：总机构分摊本年应补（退）所得税额(填写A109000) | D37: ='A109000'!C14+'A109000'!C18 -> 50
A38: 35 | C38: 财政集中分配本年应补（退）所得税额(填写A109000) | D38: ='A109000'!C15 -> 50
A39: 36 | C39: 总机构主体生产经营部门分摊本年应补（退）所得税额(填写A109000) | D39: ='A109000'!C17 -> 0
A40: 37 | B40: 实际应纳税额计算 | C40: 减：民族自治地区企业所得税地方分享部分：( 免征 减征:减征幅度 %）
A41: 38 | C41: 十、本年实际应补（退）所得税额（33-37） | D41: =ROUND(D36-D40,2) -> -30

Sheet A101010
A1: A101010 一般企业收入明细表
A2: 行次 | B2: 项 目 | C2: 金 额 | D2: 小型微利企业免填
A3: 1 | B3: 一、营业收入（2+9） | C3: =ROUND(C4+C11,2) -> 500000
A4: 2 | B4: （一）主营业务收入（3+5+6+7+8） | C4: =ROUND(SUM(C5,C7:C10),2) -> 500000
A5: 3 | B5: 1.销售商品收入 | C5: 500000
A6: 4 | B6: 其中：非货币性资产交换收入
A7: 5 | B7: 2.提供劳务收入
A8: 6 | B8: 3.建造合同收入
A9: 7 | B9: 4.让渡资产使用权收入
A10: 8 | B10: 5.其他
A11: 9 | B11: （二）其他业务收入（10+12+13+14+15） | C11: =ROUND(SUM(C12,C14:C17),2) -> 0
A12: 10 | B12: 1.销售材料收入
A13: 11 | B13: 其中：非货币性资产交换收入
A14: 12 | B14: 2.出租固定资产收入
A15: 13 | B15: 3.出租无形资产收入
A16: 14 | B16: 4.出租包装物和商品收入
A17: 15 | B17: 5.其他
A18: 16 | B18: 二、营业外收入（17+18+19+20+21+22+23+24+25+26） | C18: =ROUND(SUM(C19:C28),2) -> 0
A19: 17 | B19: （一）非流动资产处置利得
A20: 18 | B20: （二）非货币性资产交换利得
A21: 19 | B21: （三）债务重组利得
A22: 20 | B22: （四）政府补助利得 | D22: 若有，则要填列5020表、5040表
A23: 21 | B23: （五）盘盈利得
A24: 22 | B24: （六）捐赠利得
A25: 23 | B25: （七）罚没利得
A26: 24 | B26: （八）确实无法偿付的应付款项
A27: 25 | B27: （九）汇兑收益
A28: 26 | B28: （十）其他

Sheet A101020 (hidden)
A1: A101020 金融企业收入明细表
A2: 行次 | B2: 项 目 | C2: 金 额
A3: 1 | B3: 一、营业收入（2+18+27+32+33+34） | C3: =ROUND(C4+C20+C29+C34+C35+C36,2) -> 0
A4: 2 | B4: （一）银行业务收入（3+10） | C4: =ROUND(C5+C12,2) -> 0
A5: 3 | B5: 1.利息收入（4+5+6+7+8+9） | C5: =ROUND(SUM(C6:C11),2) -> 0
A6: 4 | B6: （1）存放同业
A7: 5 | B7: （2）存放中央银行
A8: 6 | B8: （3）拆出资金
A9: 7 | B9: （4）发放贷款及垫资
A10: 8 | B10: （5）买入返售金融资产
A11: 9 | B11: （6）其他
A12: 10 | B12: 2.手续费及佣金收入（11+12+13+14+15+16+17） | C12: =ROUND(SUM(C13:C19),2) -> 0
A13: 11 | B13: （1）结算与清算手续费
A14: 12 | B14: （2）代理业务手续费
A15: 13 | B15: （3）信用承诺手续费及佣金
A16: 14 | B16: （4）银行卡手续费
A17: 15 | B17: （5）顾问和咨询费
A18: 16 | B18: （6）托管及其他受托业务佣金
A19: 17 | B19: （7）其他
A20: 18 | B20: （二）证券业务收入（19+26） | C20: =ROUND(C21+C28,2) -> 0
A21: 19 | B21: 1.证券业务手续费及佣金收入（20+21+22+23+24+25） | C21: =ROUND(SUM(C22:C27),2) -> 0
A22: 20 | B22: （1）证券承销业务
A23: 21 | B23: （2）证券经纪业务
A24: 22 | B24: （3）受托客户资产管理业务
A25: 23 | B25: （4）代理兑付证券
A26: 24 | B26: （5）代理保管证券
A27: 25 | B27: （6）其他
A28: 26 | B28: 2.其他证券业务收入
A29: 27 | B29: （三）已赚保费（28-30-31） | C29: =ROUND(C30-C32-C33,2) -> 0
A30: 28 | B30: 1.保险业务收入
A31: 29 | B31: 其中：分保费收入
A32: 30 | B32: 2.分出保费
A33: 31 | B33: 3.提取未到期责任准备金
A34: 32 | B34: （四）其他金融业务收入
A35: 33 | B35: （五）汇兑收益（损失以“-”号填列）
A36: 34 | B36: （六）其他业务收入
A37: 35 | B37: 二、营业外收入（36+37+38+39+40+41+42） | C37: =ROUND(SUM(C38:C44),2) -> 0
A38: 36 | B38: （一）非流动资产处置利得
A39: 37 | B39: （二）非货币性资产交换利得
A40: 38 | B40: （三）债务重组利得
A41: 39 | B41: （四）政府补助利得
A42: 40 | B42: （五）盘盈利得
A43: 41 | B43: （六）捐赠利得
A44: 42 | B44: （七）其他

Sheet A102010
A1: A102010 一般企业成本支出明细表
A2: 行次 | B2: 项 目 | C2: 金 额 | D2: 小型微利企业免填
A3: 1 | B3: 一、营业成本（2+9） | C3: =ROUND(C4+C11,2) -> 3800
A4: 2 | B4: （一）主营业务成本（3+5+6+7+8） | C4: =ROUND(SUM(C5,C7:C10),2) -> 3800
A5: 3 | B5: 1.销售商品成本 | C5: 3800 | D5: 收入与成本要对应，与1010表
A6: 4 | B6: 其中:非货币性资产交换成本
A7: 5 | B7: 2.提供劳务成本
A8: 6 | B8: 3.建造合同成本
A9: 7 | B9: 4.让渡资产使用权成本
A10: 8 | B10: 5.其他
A11: 9 | B11: （二）其他业务成本（10+12+13+14+15） | C11: =ROUND(SUM(C12,C14:C17),2) -> 0
A12: 10 | B12: 1.材料销售成本
A13: 11 | B13: 其中:非货币性资产交换成本
A14: 12 | B14: 2.出租固定资产成本
A15: 13 | B15: 3.出租无形资产成本
A16: 14 | B16: 4.包装物出租成本
A17: 15 | B17: 5.其他
A18: 16 | B18: 二、营业外支出（17+18+19+20+21+22+23+24+25+26） | C18: =ROUND(SUM(C19:C28),2) -> 0
A19: 17 | B19: （一）非流动资产处置损失 | D19: 若有，需要填写5090表
A20: 18 | B20: （二）非货币性资产交换损失 | D20: 若有，需要填写5090表
A21: 19 | B21: （三）债务重组损失 | D21: 若有，需要填写5090表
A22: 20 | B22: （四）非常损失 | D22: 若有，需要填写5090表
A23: 21 | B23: （五）捐赠支出 | D23: 若有，要填5070表
A24: 22 | B24: （六）赞助支出 | D24: 对应5000表的纳税调整明细
A25: 23 | B25: （七）罚没支出 | D25: 对应5000表的纳税调整明细
A26: 24 | B26: （八）坏账损失 | D26: 执行小企业会计准则的填列
A27: 25 | B27: （九）无法收回的债券股权投资损失
A28: 26 | B28: （十）其他

Sheet A102020 (hidden)
A1: A102020 金融企业支出明细表
A2: 行次 | B2: 项 目 | C2: 金 额
A3: 1 | B3: 一、营业支出（2+15+25+31+32） | C3: =ROUND(C4+C17+C27+C33+C34,2) -> 0
A4: 2 | B4: （一）银行业务支出（3+11） | C4: =ROUND(C5+C13,2) -> 0
A5: 3 | B5: 1.银行利息支出（4+5+6+7+8+9+10） | C5: =ROUND(SUM(C6:C12),2) -> 0
A6: 4 | B6: （1）同业存放
A7: 5 | B7: （2）向中央银行借款
A8: 6 | B8: （3）拆入资金
A9: 7 | B9: （4）吸收存款
A10: 8 | B10: （5）卖出回购金融资产
A11: 9 | B11: （6）发行债券
A12: 10 | B12: （7）其他
A13: 11 | B13: 2.银行手续费及佣金支出（12+13+14） | C13: =ROUND(SUM(C14:C16),2) -> 0
A14: 12 | B14: （1）手续费支出
A15: 13 | B15: （2）佣金支出
A16: 14 | B16: （3）其他
A17: 15 | B17: （二）保险业务支出（16+17-18+19-20+21+22-23+24） | C17: =ROUND(C18+C19-C20+C21-C22+C23+C24-C25+C26,2) -> 0
A18: 16 | B18: 1.退保金
A19: 17 | B19: 2.赔付支出
A20: 18 | B20: 减：摊回赔付支出
A21: 19 | B21: 3.提取保险责任准备金
A22: 20 | B22: 减：摊回保险责任准备金
A23: 21 | B23: 4.保单红利支出
A24: 22 | B24: 5.分保费用
A25: 23 | B25: 减：摊回分保费用
A26: 24 | B26: 6.保险业务手续费及佣金支出
A27: 25 | B27: （三）证券业务支出（26+30） | C27: =ROUND(C28+C32,2) -> 0
A28: 26 | B28: 1.证券业务手续费及佣金支出（27+28+29） | C28: =ROUND(SUM(C29:C31),2) -> 0
A29: 27 | B29: （1）证券经纪业务手续费支出
A30: 28 | B30: （2）佣金支出
A31: 29 | B31: （3）其他
A32: 30 | B32: 2.其他证券业务支出
A33: 31 | B33: （四）其他金融业务支出
A34: 32 | B34: （五）其他业务成本
A35: 33 | B35: 二、营业外支出（34+35+36+37+38+39+40） | C35: =ROUND(SUM(C36:C41),2) -> 0
A36: 34 | B36: （一）非流动资产处置损失
A37: 35 | B37: （二）非货币性资产交换损失
A38: 36 | B38: （三）债务重组损失
A39: 37 | B39: （四）捐赠支出
A40: 38 | B40: （五）非常损失
A41: 39 | B41: （六）其他

Sheet A103000 (hidden)
A1: A103000 事业单位、民间非营利组织收入、支出明细表
A2: 行次 | B2: 项 目 | C2: 金 额
A3: 1 | B3: 一、事业单位收入（2+3+4+5+6+7） | C3: =ROUND(SUM(C4:C9),2) -> 0
A4: 2 | B4: （一）财政补助收入
A5: 3 | B5: （二）事业收入
A6: 4 | B6: （三）上级补助收入
A7: 5 | B7: （四）附属单位上缴收入
A8: 6 | B8: （五）经营收入
A9: 7 | B9: （六）其他收入（8+9） | C9: =SUM(C10:C11) -> 0
A10: 8 | B10: 其中：投资收益
A11: 9 | B11: 其他
A12: 10 | B12: 二、民间非营利组织收入(11+12+13+14+15+16+17) | C12: =ROUND(SUM(C13:C19),2) -> 0
A13: 11 | B13: （一）接受捐赠收入
A14: 12 | B14: （二）会费收入
A15: 13 | B15: （三）提供劳务收入
A16: 14 | B16: （四）商品销售收入
A17: 15 | B17: （五）政府补助收入
A18: 16 | B18: （六）投资收益
A19: 17 | B19: （七）其他收入
A20: 18 | B20: 三、事业单位支出（19+20+21+22+23） | C20: =ROUND(SUM(C21:C25),2) -> 0
A21: 19 | B21: （一）事业支出
A22: 20 | B22: （二）上缴上级支出
A23: 21 | B23: （三）对附属单位补助
A24: 22 | B24: （四）经营支出
A25: 23 | B25: （五）其他支出
A26: 24 | B26: 四、民间非营利组织支出（25+26+27+28） | C26: =ROUND(SUM(C27:C30),2) -> 0
A27: 25 | B27: （一）业务活动成本
A28: 26 | B28: （二）管理费用
A29: 27 | B29: （三）筹资费用
A30: 28 | B30: （四）其他费用

Sheet A104000
A1: A104000 期间费用明细表
A2: 行次 | B2: 项 目 | C2: 销售费用 | D2: 其中：境外支付 | E2: 管理费用 | F2: 其中：境外支付 | G2: 财务费用 | H2: 其中：境外支付 | I2: 小型微利企业免填
C3: 1 | D3: 2 | E3: 3 | F3: 4 | G3: 5 | H3: 6
A4: 1 | B4: 一、职工薪酬 | D4: * | F4: * | G4: * | H4: * | I4: 小于等于5050表的职工薪酬合计
A5: 2 | B5: 二、劳务费 | G5: * | H5: *
A6: 3 | B6: 三、咨询顾问费 | G6: * | H6: *
A7: 4 | B7: 四、业务招待费 | D7: * | F7: * | G7: * | H7: * | I7: 小于等于5000表的业务招待费账载金额
A8: 5 | B8: 五、广告费和业务宣传费 | D8: * | F8: * | G8: * | H8: * | I8: 若有，要填5060表
A9: 6 | B9: 六、佣金和手续费
A10: 7 | B10: 七、资产折旧摊销费 | D10: * | F10: * | G10: * | H10: * | I10: 小于等于5080表的对应的本年折旧摊销账载金额
A11: 8 | B11: 八、财产损耗、盘亏及毁损损失 | D11: * | F11: * | G11: * | H11: * | I11: 若有，要填5090表
A12: 9 | B12: 九、办公费 | D12: * | F12: * | G12: * | H12: *
A13: 10 | B13: 十、董事会费 | D13: * | F13: * | G13: * | H13: *
A14: 11 | B14: 十一、租赁费 | G14: * | H14: *
A15: 12 | B15: 十二、诉讼费 | D15: * | F15: * | G15: * | H15: *
A16: 13 | B16: 十三、差旅费 | D16: * | F16: * | G16: * | H16: *
A17: 14 | B17: 十四、保险费 | D17: * | F17: * | G17: * | H17: *
A18: 15 | B18: 十五、运输、仓储费 | G18: * | H18: *
A19: 16 | B19: 十六、修理费 | G19: * | H19: *
A20: 17 | B20: 十七、包装费 | D20: * | F20: * | G20: * | H20: *
A21: 18 | B21: 十八、技术转让费 | G21: * | H21: *
A22: 19 | B22: 十九、研究费用 | G22: * | H22: *
A23: 20 | B23: 二十、各项税费 | D23: * | F23: * | G23: * | H23: *
A24: 21 | B24: 二十一、利息收支 | C24: * | D24: * | E24: * | F24: *
A25: 22 | B25: 二十二、汇兑差额 | C25: * | D25: * | E25: * | F25: *
A26: 23 | B26: 二十三、现金折扣 | C26: * | D26: * | E26: * | F26: * | H26: *
A27: 24 | B27: 二十四、党组织工作经费 | C27: * | D27: * | F27: * | G27: * | H27: *
A28: 25 | B28: 二十五、其他 | I28: 比例不要太大
A29: 26 | B29: 合计(1+2+3+…25) | C29: =ROUND(SUM(C4:C23,C28),2) -> 0 | D29: =ROUND(SUM(D5:D6,D9,D14,D18:D19,D21:D22,D28),2) -> 0 | E29: =ROUND(SUM(E4:E23,E27:E28),2) -> 0 | F29: =ROUND(SUM(F5:F6,F9,F14,F18:F19,F21:F22,F28),2) -> 0 | G29: =ROUND(SUM(G9,G24:G26,G28),2) -> 0 | H29: =ROUND(SUM(H9,H24:H25,H28),2) -> 0

Sheet A105000
A1: A105000 纳税调整项目明细表
A2: 行 次 | B2: 项 目 | C2: 账载金额 | D2: 税收金额 | E2: 调增金额 | F2: 调减金额
C3: 1 | D3: 2 | E3: 3 | F3: 4
A4: 1 | B4: 一、收入类调整项目（2+3+4+5+6+7+8+10+11） | C4: * | D4: * | E4: =ROUND(SUM(E5:E7,E9:E11,E13:E14),2) -> 90 | F4: =ROUND(SUM(F6:F8,F10:F11,F13:F14),2) -> 0
A5: 2 | B5: （一）视同销售收入（填写A105010） | C5: * | D5: ='A105010'!C4 -> 0 | E5: ='A105010'!D4 -> 0 | F5: *
A6: 3 | B6: （二）未按权责发生制原则确认的收入（填写A105020） | C6: ='A105020'!D18 -> 10 | D6: ='A105020'!F18 -> 100 | E6: =IF(D6-C6>0,D6-C6,0) -> 90 | F6: =IF(D6-C6<0,ABS(D6-C6),0) -> 0
A7: 4 | B7: （三）投资收益（填写A105030） | C7: ='A105030'!C14+'A105030'!J14 -> 0 | D7: ='A105030'!D14+'A105030'!K14 -> 0 | E7: =IF('A105030'!M14>=0,'A105030'!M14,0) -> 0 | F7: =IF('A105030'!M14<0,ABS('A105030'!M14),0) -> 0
A8: 5 | B8: （四）按权益法核算长期股权投资对初始投资成本调整确认收益 | C8: * | D8: * | E8: *
A9: 6 | B9: （五）交易性金融资产初始投资调整 | C9: * | D9: * | F9: *
A10: 7 | B10: （六）公允价值变动净损益 | D10: * | E10: =IF(C10<0,ABS(C10),0) -> 0 | F10: =IF(C10>=0,C10,0) -> 0
A11: 8 | B11: （七）不征税收入 | C11: * | D11: *
A12: 9 | B12: 其中：专项用途财政性资金（填写A105040） | C12: * | D12: * | E12: ='A105040'!P11 -> 0 | F12: ='A105040'!F11 -> 100
A13: 10 | B13: （八）销售折扣、折让和退回 | E13: =IF(C13-D13>=0,C13-D13,0) -> 0 | F13: =IF(C13-D13<0,ABS(C13-D13),0) -> 0
A14: 11 | B14: （九）其他 | E14: =IF(D14>=C14,D14-C14,0) -> 0 | F14: =IF(D14<C14,ABS(D14-C14),0) -> 0
A15: 12 | B15: 二、扣除类调整项目（13+14+…24+26+27+28+29+30） | C15: * | D15: * | E15: =ROUND(SUM(E17:E27,E30:E34),2) -> 78 | F15: =ROUND(SUM(F16:F17,F19:F21,F25,F30,F33:F34),2) -> 0
A16: 13 | B16: （一）视同销售成本（填写A105010） | C16: * | D16: ='A105010'!C14 -> 0 | E16: * | F16: =ABS('A105010'!D14) -> 0
A17: 14 | B17: （二）职工薪酬（填写A105050） | C17: ='A105050'!C17 -> 737.5 | D17: ='A105050'!G17 -> 659.5 | E17: =IF('A105050'!H17>=0,'A105050'!H17,0) -> 78 | F17: =IF('A105050'!H17<0,ABS('A105050'!H17),0) -> 0
A18: 15 | B18: （三）业务招待费支出 | E18: =IF(C18>=D18,C18-D18,0) -> 0 | F18: *
A19: 16 | B19: （四）广告费和业务宣传费支出（填写A105060） | C19: * | D19: * | E19: =IF('A105060'!C15>=0,'A105060'!C15,0) -> 0 | F19: =IF('A105060'!C15<0,ABS('A105060'!C15),0) -> 0
A20: 17 | B20: （五）捐赠支出（填写A105070） | C20: ='A105070'!C17 -> 0 | D20: ='A105070'!F17 -> 0 | E20: ='A105070'!G17 -> 0 | F20: ='A105070'!H17 -> 0
A21: 18 | B21: （六）利息支出 | E21: =IF(C21>=D21,C21-D21,0) -> 0 | F21: =IF(C21<D21,ABS(C21-D21),0) -> 0
A22: 19 | B22: （七）罚金、罚款和被没收财物的损失 | D22: * | E22: =C22 -> 0 | F22: *
A23: 20 | B23: （八）税收滞纳金、加收利息 | D23: * | E23: =C23 -> 0 | F23: *
A24: 21 | B24: （九）赞助支出 | D24: * | E24: =C24 -> 0 | F24: *
A25: 22 | B25: （十）与未实现融资收益相关在当期确认的财务费用 | E25: =IF(C25>=D25,C25-D25,0) -> 0 | F25: =IF(C25<D25,ABS(C25-D25),0) -> 0
A26: 23 | B26: （十一）佣金和手续费支出（保险企业填写A105060） | E26: =C26-D26 -> 0
A27: 24 | B27: （十二）不征税收入用于支出所形成的费用 | C27: * | D27: * | F27: *
A28: 25 | B28: 其中：专项用途财政性资金用于支出所形成的费用（填写A105040） | C28: * | D28: * | E28: ='A105040'!M11 -> 0 | F28: *
A30: 26 | B30: （十三）跨期扣除项目 | E30: =IF(C30>=D30,C30-D30,0) -> 0 | F30: =IF(C30<D30,ABS(C30-D30),0) -> 0
A31: 27 | B31: （十四）与取得收入无关的支出 | D31: * | E31: =C31 -> 0 | F31: *
A32: 28 | B32: （十五）境外所得分摊的共同支出 | C32: * | D32: * | E32: ='A108010'!Q15+'A108010'!R15 -> 0 | F32: *
A33: 29 | B33: （十六）党组织工作经费 | E33: =IF(C33>=D33,C33-D33,0) -> 0 | F33: =IF(C33<D33,ABS(C33-D33),0) -> 0
A34: 30 | B34: （十七）其他 | E34: =IF(C34>=D34,C34-D34,0) -> 0 | F34: =IF(C34<D34,ABS(C34-D34),0) -> 0
A35: 31 | B35: 三、资产类调整项目（32+33+34+35） | C35: * | D35: * | E35: =ROUND(SUM(E36:E39),2) -> 0 | F35: =ROUND(SUM(F36:F39),2) -> 41200
A36: 32 | B36: （一）资产折旧、摊销 （填写A105080） | C36: ='A105080'!F59 -> 0 | D36: ='A105080'!I59 -> 1200 | E36: =IF('A105080'!M59>=0,'A105080'!M59,0) -> 0 | F36: =IF('A105080'!M59<0,ABS('A105080'!M59),0) -> 1200
A37: 33 | B37: （二）资产减值准备金 | D37: * | E37: =IF(C37>=0,C37,0) -> 0 | F37: =IF(C37<0,ABS(C37),0) -> 0
A38: 34 | B38: （三）资产损失（填写A105090） | C38: ='A105090'!C32 -> 298800 | D38: ='A105090'!H32 -> 338800 | E38: =IF('A105090'!I32>=0,'A105090'!I32,0) -> 0 | F38: =IF('A105090'!I32<0,ABS('A105090'!I32),0) -> 40000
A39: 35 | B39: （四）其他 | E39: =IF(C39>=D39,C39-D39,0) -> 0 | F39: =IF(C39<D39,ABS(C39-D39),0) -> 0
A40: 36 | B40: 四、特殊事项调整项目（37+38+39+40+41+42） | C40: * | D40: * | E40: =ROUND(SUM(E41:E43,E51:E54),2) -> 0 | F40: =ROUND(SUM(F41:F43,F51:F54),2) -> 0
A41: 37 | B41: （一）企业重组及递延纳税事项（填写A105100） | C41: ='A105100'!C23+'A105100'!F23 -> 0 | D41: ='A105100'!D23+'A105100'!G23 -> 0 | E41: =IF('A105100'!I23>=0,'A105100'!I23,0) -> 0 | F41: =IF('A105100'!I23<0,ABS('A105100'!I23),0) -> 0
A42: 38 | B42: （二）政策性搬迁（填写A105110） | C42: * | D42: * | E42: =IF('A105110'!C26>=0,'A105110'!C26,0) -> 0 | F42: =IF('A105110'!C26<0,ABS('A105110'!C26),0) -> 0
A43: 39 | B43: （三）特殊行业准备金 (39.1+39.2+39.4+39.5+39.6+39.7) | C43: * | D43: * | E43: =SUM(E44:E45,E47:E50) -> 0 | F43: =SUM(F44:F45,F47:F50) -> 0
A44: 39.1 | B44: 1.保险公司保险保障基金
A45: 39.2 | B45: 2、保险公司准备金
A46: 39.3 | B46: 其中：已发生未报案未决赔款准备金
A47: 39.4 | B47: 3.证券行业准备金
A48: 39.5 | B48: 4.期货行业准备金
A49: 39.6 | B49: 5.中小企业融资（信用）担保机构准备金
A50: 39.7 | B50: 6.金融企业、小额贷款公司准备金（填写A105120） | C50: * | D50: * | E50: =IF('A105120'!M14>0,'A105120'!M14,0) -> 0 | F50: =IF('A105120'!M14<0,ABS('A105120'!M14),0) -> 0
A51: 40 | B51: （四）房地产开发企业特定业务计算的纳税调整额(填写A105010) | C51: * | D51: ='A105010'!C24 -> 0 | E51: =IF('A105010'!D24>=0,'A105010'!C24,0) -> 0 | F51: =IF('A105010'!D24<0,ABS('A105010'!C24),0) -> 0
A52: 41 | B52: （五）合伙企业法人合伙人应分得的应纳税所得额 | E52: =IF(C52<=D52,D52-C52,0) -> 0 | F52: =IF(C52>D52,ABS(D52-C52),0) -> 0
A53: 42 | B53: （六）发行永续债利息支出 | E53: =IF(C53<=D53,D53-C53,0) -> 0 | F53: =IF(C53>D53,ABS(D53-C53),0) -> 0
A54: 43 | B54: （七）其他 | C54: * | D54: *
A55: 44 | B55: 五、特别纳税调整应税所得 | C55: * | D55: *
A56: 45 | B56: 六、其他 | C56: * | D56: *
A57: 46 | B57: 合计（1+12+31+36+43+44） | C57: * | D57: * | E57: =ROUND(E4+E15+E35+E40+E55+E56,2) -> 168 | F57: =ROUND(F4+F15+F35+F40+F55+F56,2) -> 41200
B60: 业务招待费和广告宣传费限额计算参考：
B61: 项 目 | C61: 业务费计算基数自动取数 | D61: 自动取数错 我要自己填 | E61: 广宣费计算基数自动取数 | F61: 自动取数错 我要自己填
B62: 1、营业收入 | C62: =IF(SUM(D62:D67)=0,A100000主表!D4,0) -> 500000 | E62: =IF(SUM(F62:F67)=0,A100000主表!D4,0) -> 500000
B63: 2、视同销售收入 | C63: =IF(SUM(D62:D67)=0,'A105010'!C4,0) -> 0 | E63: =IF(SUM(F62:F67)=0,'A105010'!C4,0) -> 0
B64: 3、房开企业销售未完工产品的收入 | C64: =IF(SUM(D62:D67)=0,'A105010'!C26,0) -> 0 | E64: =IF(SUM(F62:F67)=0,'A105010'!C26,0) -> 0
B65: 4、减：房开企业销售未完工产品转完工产品确认的销售收入（仅限以前年度预收转收入部分） | C65: =IF(SUM(D62:D67)=0,'A105010'!C30,0) -> 0 | E65: =IF(SUM(F62:F67)=0,'A105010'!C30,0) -> 0
B66: 5、从事股权投资业务投资收益
B67: 6、其他
B68: 三费计算基数合计 | C68: =IF(SUM(C62:C64)-C65+SUM(C66:C67)<0,0,SUM(C62:C64)-C65+SUM(C66:C67)) -> 500000 | D68: =IF(SUM(D62:D64)-D65+SUM(D66:D67)<0,0,SUM(D62:D64)-D65+SUM(D66:D67)) -> 0 | E68: =IF(SUM(E62:E64)-E65+SUM(E66:E67)<0,0,SUM(E62:E64)-E65+SUM(E66:E67)) -> 500000 | F68: =IF(SUM(F62:F64)-F65+SUM(F66:F67)<0,0,SUM(F62:F64)-F65+SUM(F66:F67)) -> 0
B69: 7、业务招待费账载金额 | E69: * | F69: *
B70: 8、按账载金额的60%计算限额 | C70: =ROUND(C69*60%,2) -> 0 | D70: =ROUND(D69*60%,2) -> 0 | E70: * | F70: *
B71: 9、按收入的5‰计算限额 | C71: =ROUND(C68*5/1000,2) -> 2500 | D71: =ROUND(D68*5/1000,2) -> 0 | E71: * | F71: *
B72: 8、业务招待费实际扣除限额 | C72: =MIN(C70+0,C71+0) -> 0 | D72: =MIN(D70+0,D71+0) -> 0 | E72: * | F72: *
B73: 业务招待费纳税调增额 | C73: =C69-C72 -> 0 | D73: =D69-D72 -> 0 | E73: * | F73: *
B74: *将广宣费计算基数填入A105060表后自动计算扣除限额及纳税调整。
B76: 收入类中的其他项调整明细
B77: 调整事项 | C77: 账载金额 | D77: 税收金额 | E77: 调增金额 | F77: 调减金额
E78: =IF(D78>C78,D78-C78,0) -> 0 | F78: =IF(D78<C78,ABS(D78-C78),0) -> 0
E79: =IF(D79>C79,D79-C79,0) -> 0 | F79: 0
E80: 0 | F80: 0
E81: 0 | F81: 0
E82: 0 | F82: 0
E83: 0 | F83: 0
B84: 收入类中其他项调整合计 | C84: =SUM(C78:C83) -> 0 | D84: =SUM(D78:D83) -> 0 | E84: =SUM(E78:E83) -> 0 | F84: =SUM(F78:F83) -> 0
B86: 扣除类中的其他项调整明细
B87: 调整事项 | C87: 账载金额 | D87: 税收金额 | E87: 调增金额 | F87: 调减金额
E88: =IF(C88>D88,C88-D88,0) -> 0 | F88: =IF(C88<D88,ABS(C88-D88),0) -> 0
E89: =IF(C89>D89,C89-D89,0) -> 0 | F89: =IF(C89<D89,ABS(C89-D89),0) -> 0
E90: 0 | F90: 0
E91: 0 | F91: 0
E92: 0 | F92: 0
E93: 0 | F93: 0
E94: 0 | F94: 0
E95: 0 | F95: 0
E96: 0 | F96: 0
E97: 0 | F97: 0
E98: 0 | F98: 0
E99: 0 | F99: 0
E100: 0 | F100: 0
E101: 0 | F101: 0
E102: 0 | F102: 0
E103: 0 | F103: 0
B104: 扣除类中的其他项调整合计 | C104: =SUM(C88:C103) -> 0 | D104: =SUM(D88:D103) -> 0 | E104: =SUM(E88:E103) -> 0 | F104: =SUM(F88:F103) -> 0

Sheet A105010
A1: A105010 视同销售和房地产开发企业特定业务纳税调整明细表
A2: 行次 | B2: 项 目 | C2: 税收金额 | D2: 纳税调整金额
C3: 1 | D3: 2
A4: 1 | B4: 一、视同销售（营业）收入（2+3+4+5+6+7+8+9+10） | C4: =ROUND(SUM(C5:C13),2) -> 0 | D4: =ROUND(SUM(D5:D13),2) -> 0
A5: 2 | B5: （一）非货币性资产交换视同销售收入 | D5: =C5 -> 0
A6: 3 | B6: （二）用于市场推广或销售视同销售收入 | D6: =C6 -> 0
A7: 4 | B7: （三）用于交际应酬视同销售收入 | D7: 0
A8: 5 | B8: （四）用于职工奖励或福利视同销售收入 | D8: 0
A9: 6 | B9: （五）用于股息分配视同销售收入 | D9: 0
A10: 7 | B10: （六）用于对外捐赠视同销售收入 | D10: 0
A11: 8 | B11: （七）用于对外投资项目视同销售收入 | D11: 0
A12: 9 | B12: （八）提供劳务视同销售收入 | D12: 0
A13: 10 | B13: （九）其他 | D13: 0
A14: 11 | B14: 二、视同销售（营业）成本（12+13+14+15+16+17+18+19+20） | C14: =ROUND(SUM(C15:C23),2) -> 0 | D14: =ROUND(SUM(D15:D23),2) -> 0
A15: 12 | B15: （一）非货币性资产交换视同销售成本 | D15: =-C15 -> 0
A16: 13 | B16: （二）用于市场推广或销售视同销售成本 | D16: =-C16 -> 0
A17: 14 | B17: （三）用于交际应酬视同销售成本 | D17: 0
A18: 15 | B18: （四）用于职工奖励或福利视同销售成本 | D18: 0
A19: 16 | B19: （五）用于股息分配视同销售成本 | D19: 0
A20: 17 | B20: （六）用于对外捐赠视同销售成本 | D20: 0
A21: 18 | B21: （七）用于对外投资项目视同销售成本 | D21: 0
A22: 19 | B22: （八）提供劳务视同销售成本 | D22: 0
A23: 20 | B23: （九）其他 | D23: 0
A24: 21 | B24: 三、房地产开发企业特定业务计算的纳税调整额（22-26） | C24: =ROUND(C25-C29,2) -> 0 | D24: =ROUND(D25-D29,2) -> 0
A25: 22 | B25: （一）房地产企业销售未完工开发产品特定业务计算的纳税调整额（24-25） | C25: =ROUND(C27-C28,2) -> 0 | D25: =ROUND(D27-D28,2) -> 0
A26: 23 | B26: 1.销售未完工产品的收入 | D26: *
A27: 24 | B27: 2.销售未完工产品预计毛利额 | D27: =C27 -> 0
A28: 25 | B28: 3.实际发生的营业税金及附加、土地增值税 | D28: =C28 -> 0
A29: 26 | B29: （二）房地产企业销售的未完工产品转完工产品特定业务计算的纳税调整额（28-29） | C29: =ROUND(C31-C32,2) -> 0 | D29: =ROUND(D31-D32,2) -> 0
A30: 27 | B30: 1.销售未完工产品转完工产品确认的销售收入 | D30: *
A31: 28 | B31: 2.转回的销售未完工产品预计毛利额 | D31: =C31 -> 0
A32: 29 | B32: 3.转回实际发生的营业税金及附加、土地增值税 | D32: =C32 -> 0
B34: 一、湖南省房地产开发经营企业销售未完工开发产品的计税毛利率调整
B35: （一）开发项目位于长沙市的，计税毛利率为15%；
B36: （二）开发项目位于全省其他地区的，计税毛利率为10%；
B37: （三）属于经济适用房、限价房和危改房的，计税毛利率为3%。
B38: 二、本公告自2022年1月1日起施行，有效期5年，适用于2022年度及以后年度企业所得税预缴和汇算清缴。

Sheet A105020
A1: A105020 未按权责发生制确认收入纳税调整明细表
A2: 行次 | B2: 项 目 | C2: 合同金额（交易金额） | D2: 账载金额 | F2: 税收金额 | H2: 纳税调整金额
D3: 本年 | E3: 累计 | F3: 本年 | G3: 累计
C4: 1 | D4: 2 | E4: 3 | F4: 4 | G4: 5 | H4: 6（4-2）
A5: 1 | B5: 一、跨期收取的租金、利息、特许权使用费收入（2+3+4） | C5: =ROUND(SUM(C6:C8),2) -> 0 | D5: =ROUND(SUM(D6:D8),2) -> 0 | E5: =ROUND(SUM(E6:E8),2) -> 0 | F5: =ROUND(SUM(F6:F8),2) -> 0 | G5: =ROUND(SUM(G6:G8),2) -> 0 | H5: =ROUND(F5-D5,2) -> 0
A6: 2 | B6: （一）租金 | H6: =ROUND(F6-D6,2) -> 0
A7: 3 | B7: （二）利息 | H7: =ROUND(F7-D7,2) -> 0
A8: 4 | B8: （三）特许权使用费 | H8: 0
A9: 5 | B9: 二、分期确认收入（6+7+8） | C9: =ROUND(SUM(C10:C12),2) -> 0 | D9: =ROUND(SUM(D10:D12),2) -> 0 | E9: =ROUND(SUM(E10:E12),2) -> 0 | F9: =ROUND(SUM(F10:F12),2) -> 0 | G9: =ROUND(SUM(G10:G12),2) -> 0 | H9: 0
A10: 6 | B10: （一）分期收款方式销售货物收入 | H10: 0
A11: 7 | B11: （二）持续时间超过12个月的建造合同收入 | H11: 0
A12: 8 | B12: （三）其他分期确认收入 | H12: 0
A13: 9 | B13: 三、政府补助递延收入（10+11+12） | C13: =ROUND(SUM(C14:C16),2) -> 100 | D13: =ROUND(SUM(D14:D16),2) -> 10 | E13: =ROUND(SUM(E14:E16),2) -> 10 | F13: =ROUND(SUM(F14:F16),2) -> 100 | G13: =ROUND(SUM(G14:G16),2) -> 100 | H13: 90
A14: 10 | B14: （一）与收益相关的政府补助 | H14: 0
A15: 11 | B15: （二）与资产相关的政府补助 | C15: 100 | D15: 10 | E15: 10 | F15: 100 | G15: 100 | H15: 90
A16: 12 | B16: （三）其他 | H16: 0
A17: 13 | B17: 四、其他未按权责发生制确认收入 | H17: 0
A18: 14 | B18: 合 计（1+5+9+13） | C18: =ROUND(C5+C9+C13+C17,2) -> 100 | D18: =ROUND(D5+D9+D13+D17,2) -> 10 | E18: 10 | F18: 100 | G18: 100 | H18: 90
A22: 1：一笔政府补助100万，公司做征税收入，全部买设备，收到钱时做营业外收入100万元，固定资产每年确认10万元的折旧。 | I22: 常见
A42: 2：一笔政府补助100万，公司想做不征税收入但不符合条件，100万元买设备，收到钱做递延收益，买了设备进固定资产 | I42: 常见
B43: 每年确认10万元递延收益到营业外收入，再摊销10万元到固定资产折旧。

Sheet A105030
A1: A105030 投资收益纳税调整明细表
A2: 行 次 | B2: 项 目 | C2: 持有收益 | F2: 处置收益 | M2: 纳税调整金额
C3: 账载金额 | D3: 税收金额 | E3: 纳税调整金额 | F3: 会计确认的处置收入 | G3: 税收计算的处置收入 | H3: 处置投资的账面价值 | I3: 处置投资的计税基础 | J3: 会计确认的处置所得或损失 | K3: 税收计算的处置所得 | L3: 纳税调整金额
C4: 1 | D4: 2 | E4: 3（2-1） | F4: 4 | G4: 5 | H4: 6 | I4: 7 | J4: 8（4-6） | K4: 9（5-7） | L4: 10（9-8） | M4: 11（3+10）
A5: 1 | B5: 一、交易性金融资产 | E5: =ROUND(D5-C5,2) -> 0 | J5: =ROUND(F5-H5,2) -> 0 | K5: =ROUND(G5-I5,2) -> 0 | L5: =ROUND(K5-J5,2) -> 0 | M5: =ROUND(E5+L5,2) -> 0
A6: 2 | B6: 二、可供出售金融资产 | E6: =ROUND(D6-C6,2) -> 0 | J6: =ROUND(F6-H6,2) -> 0 | K6: 0 | L6: =ROUND(K6-J6,2) -> 0 | M6: =ROUND(E6+L6,2) -> 0
A7: 3 | B7: 三、持有至到期投资 | E7: 0 | J7: 0 | K7: 0 | L7: 0 | M7: 0
A8: 4 | B8: 四、衍生工具 | E8: 0 | J8: 0 | K8: 0 | L8: 0 | M8: 0
A9: 5 | B9: 五、交易性金融负债 | E9: 0 | J9: 0 | K9: 0 | L9: 0 | M9: 0
A10: 6 | B10: 六、长期股权投资 | E10: 0 | J10: 0 | K10: 0 | L10: 0 | M10: 0
A11: 7 | B11: 七、短期投资 | E11: 0 | J11: 0 | K11: 0 | L11: 0 | M11: 0
A12: 8 | B12: 八、长期债券投资 | E12: 0 | J12: 0 | K12: 0 | L12: 0 | M12: 0
A13: 9 | B13: 九、其他 | E13: 0 | J13: 0 | K13: 0 | L13: 0 | M13: 0
A14: 10 | B14: 合 计 (1+2+3+4+5+6+7+8+9) | C14: =ROUND(SUM(C5:C13),2) -> 0 | D14: =ROUND(SUM(D5:D13),2) -> 0 | E14: 0 | F14: 0 | G14: 0 | H14: 0 | I14: 0 | J14: 0 | K14: 0 | L14: 0 | M14: 0

Sheet A105040
A1: A105040 专项用途财政性资金纳税调整明细表
A2: 行 次 | B2: 项目 | C2: 取得年度 | D2: 财政性资金 | E2: 其中：符合不征税收入条件的财政性资金 | G2: 以前年度支出情况 | L2: 本年支出情况 | N2: 本年结余情况
E3: 金额 | F3: 其中：计入本年损益的金额 | G3: 前五年度 | H3: 前四年度 | I3: 前三年度 | J3: 前二年度 | K3: 前一年度 | L3: 支出金额 | M3: 其中：费用化支出金额 | N3: 结余金额 | O3: 其中：上缴财政金额 | P3: 应计入本年应税收入金额
C4: 1 | D4: 2 | E4: 3 | F4: 4 | G4: 5 | H4: 6 | I4: 7 | J4: 8 | K4: 9 | L4: 10 | M4: 11 | N4: 12 | O4: 13 | P4: 14
A5: 1 | B5: 前五年度 | C5: =IF(C6-1>0,C6-1,0) -> 2017 | N5: =ROUND(E5-SUM(G5:L5),2) -> 0
A6: 2 | B6: 前四年度 | C6: =IF(C7-1>0,C7-1,0) -> 2018 | G6: * | N6: =ROUND(E6-SUM(H6:L6),2) -> 0
A7: 3 | B7: 前三年度 | C7: =IF(C8-1>0,C8-1,0) -> 2019 | G7: * | H7: * | N7: =ROUND(E7-SUM(I7:L7),2) -> 0
A8: 4 | B8: 前二年度 | C8: =IF(C9-1>0,C9-1,0) -> 2020 | G8: * | H8: * | I8: * | N8: =ROUND(E8-SUM(J8:L8),2) -> 0
A9: 5 | B9: 前一年度 | C9: =IF(C10-1>0,C10-1,0) -> 2021 | G9: * | H9: * | I9: * | J9: * | N9: =ROUND(E9-SUM(K9:L9),2) -> 0
A10: 6 | B10: 本 年 | C10: =主界面!C8 -> 2022 | D10: 100 | E10: 100 | F10: 100 | G10: * | H10: * | I10: * | J10: * | K10: * | L10: 100 | N10: =ROUND(E10-L10,2) -> 0
A11: 7 | B11: 合计（1+2+3+4+5+6） | C11: * | D11: =ROUND(SUM(D5:D10),2) -> 100 | E11: =ROUND(SUM(E5:E10),2) -> 100 | F11: =ROUND(SUM(F5:F10),2) -> 100 | G11: * | H11: * | I11: * | J11: * | K11: * | L11: =ROUND(SUM(L5:L10),2) -> 100 | M11: =ROUND(SUM(M5:M10),2) -> 0 | N11: =ROUND(SUM(N5:N10),2) -> 0 | O11: =ROUND(SUM(O5:O10),2) -> 0 | P11: =ROUND(SUM(P5:P10),2) -> 0
A16: 第一种情况：一笔专项政府补助100万，公司符合不征税收入条件，全部买设备，按10年计提折旧，会计处理时收到钱时做递延收益，设备进固定资产；
C17: 每年确认10万元递延收益到营业外收入，再摊销固定资产折旧10万元。
A54: 第二种情况：还是刚刚那笔100万补助，公司符合不征税收入条件，全部买设备，按10年计提折旧，在核算的时候，收到钱时做了营业外收入100万元，固定资产每年摊销10万元的折旧。

Sheet A105050
A1: A105050 职工薪酬支出及纳税调整明细表
A2: 行次 | B2: 项 目 | C2: 账载金额 | D2: 实际发生额 | E2: 税收规定扣除率 | F2: 以前年度累计结转扣除额 | G2: 税收金额 | H2: 纳税调整金额 | I2: 累计结转以后年度扣除额
C4: 1 | D4: 2 | E4: 3 | F4: 4 | G4: 5 | H4: 6（1-5） | I4: 7（1+4-5）
A5: 1 | B5: 一、工资薪金支出 | C5: 500 | D5: 450 | E5: * | F5: * | G5: 450 | H5: =ROUND(C5-G5,2) -> 50 | I5: *
A6: 2 | B6: 其中：股权激励 | E6: * | F6: * | G6: =D6 -> 0 | H6: =ROUND(C6-G6,2) -> 0 | I6: *
A7: 3 | B7: 二、职工福利费支出 | C7: 70 | D7: 50 | E7: 0.14 | F7: * | G7: =MIN(G5*E7+0,C7+0,D7+0) -> 50 | H7: 20 | I7: *
A8: 4 | B8: 三、职工教育经费支出 | C8: =ROUND(SUM(C9:C10),2) -> 12.5 | D8: =ROUND(SUM(D9:D10),2) -> 10 | E8: * | F8: =F9 -> 2 | G8: =ROUND(SUM(G9:G10),2) -> 12 | H8: 0.5 | I8: =I9 -> 0
A9: 5 | B9: 其中：按税收规定比例扣除的职工教育经费 | C9: 12.5 | D9: 10 | E9: 0.08 | F9: 2 | G9: =MIN(G5*E9+0,SUM(D9+F9)+0) -> 12 | H9: 0.5 | I9: =ROUND(D9+F9-G9,2) -> 0
A10: 6 | B10: 按税收规定全额扣除的职工培训费用 | E10: 1 | F10: * | G10: =D10 -> 0 | H10: 0 | I10: *
A11: 7 | B11: 四、工会经费支出 | C11: 10 | D11: 5 | E11: 0.02 | F11: * | G11: =MIN(G5*E11+0,C11+0,D11+0) -> 5 | H11: 5 | I11: *
A12: 8 | B12: 五、各类基本社会保障性缴款 | C12: 100 | D12: 100 | E12: * | F12: * | G12: 100 | H12: 0 | I12: *
A13: 9 | B13: 六、住房公积金 | E13: * | F13: * | H13: 0 | I13: *
A14: 10 | B14: 七、补充养老保险 | C14: 25 | D14: 25 | E14: 0.05 | F14: * | G14: =MIN(G5*E14+0,C14+0,D14+0) -> 22.5 | H14: 2.5 | I14: *
A15: 11 | B15: 八、补充医疗保险 | C15: 20 | D15: 20 | E15: 0.05 | F15: * | G15: =MIN(G5*E15+0,C15+0,D15+0) -> 20 | H15: 0 | I15: *
A16: 12 | B16: 九、其他 | E16: * | F16: * | H16: 0 | I16: *
A17: 13 | B17: 合 计（1+3+4+7+8+9+10+11+12） | C17: =ROUND(SUM(C5,C7,C8,C11:C16),2) -> 737.5 | D17: =ROUND(SUM(D5,D7,D8,D11:D16),2) -> 660 | E17: * | F17: =ROUND(F8,2) -> 2 | G17: =ROUND(SUM(G5,G7,G8,G11:G16),2) -> 659.5 | H17: =ROUND(SUM(H5,H7,H8,H11:H16),2) -> 78 | I17: =ROUND(I8,2) -> 0
B20: 甲公司22年应付职工薪酬科目数据如下
B21: 1）工资薪金贷方发生额500万元，借方发生额450万元，余额50万元于202023年6月15日发放；调增50
B22: 2）职工福利费贷方发生额70万元，借方发生额50万元；调增20
B23: 3）教育经费贷方发生额12.5万元，借方发生额10万元，以前年度累计结转扣除额2万元。调增0.5
B24: 4）工会经费贷方发生额10万元，借方发生额5万元；调增5
B25: 5）各类基本社会保险，借方贷方发生额均为100万元；据实
B26: 6）补充养老保险借方、贷方发生额均为25万元；调增2.5（450*5%＝22.5）
B27: 7）补充医疗保险借方、贷方发生额均为20万元。

Sheet A105060
A1: A105060 广告费和业务宣传费等跨年度纳税调整明细表
A2: 行次 | B2: 项 目 | C2: 广告费和 业务宣传费 | D2: 保险企业手续费 及佣金支出
C3: 1 | D3: 2
A4: 1 | B4: 一、本年支出
A5: 2 | B5: 减：不允许扣除的支出
A6: 3 | B6: 二、本年符合条件的支出（1-2） | C6: =ROUND(C4-C5,2) -> 0 | D6: =ROUND(D4-D5,2) -> 0
A7: 4 | B7: 三、本年计算扣除限额的基数
A8: 5 | B8: 乘：税收规定扣除率
A9: 6 | B9: 四、本企业计算的扣除限额（4×5） | C9: =ROUND(C7*C8,2) -> 0 | D9: =ROUND(D7*D8,2) -> 0
A10: 7 | B10: 五、本年结转以后年度扣除额（3＞6，本行=3-6；3≤6，本行=0） | C10: =IF(C6>C9,C6-C9,0) -> 0 | D10: =IF(D6>D9,D6-D9,0) -> 0
A11: 8 | B11: 加：以前年度累计结转扣除额
A12: 9 | B12: 减：本年扣除的以前年度结转额[3＞6，本行=0；3≤6，本行=8与（6-3）孰小值] | C12: =IF(C6>C9,0,MIN(C11+0,C9-C6+0)) -> 0 | D12: =IF(D6>D9,0,MIN(D11+0,D9-D6+0)) -> 0
A13: 10 | B13: 六、按照分摊协议归集至其他关联方的金额（10≤3与6孰小值） | D13: *
A14: 11 | B14: 按照分摊协议从其他关联方归集至本企业的金额 | D14: *
A15: 12 | B15: 七、本年支出纳税调整金额（3＞6，本行=2+3-6+10-11；3≤6，本行=2+10-11-9） | C15: =IF(C6>C9,C5+C6-C9+C13-C14,C5+C13-C14-C12) -> 0 | D15: =IF(D6>D9,D5+D6-D9,D5-D12) -> 0
A16: 13 | B16: 八、累计结转以后年度扣除额（7+8-9） | C16: =ROUND(C10+C11-C12,2) -> 0 | D16: =ROUND(D10+D11-D12,2) -> 0

Sheet A105070
A1: A105070 捐赠支出及纳税调整明细表
A2: 行次 | B2: 项 目 | C2: 账载金额 | D2: 以前年度结转可扣除的捐赠额 | E2: 按税收规定计算的扣除限额 | F2: 税收金额 | G2: 纳税调增金额 | H2: 纳税调减金额 | I2: 可结转以后年度扣除的捐赠额
C3: 1 | D3: 2 | E3: 3 | F3: 4 | G3: 5 | H3: 6 | I3: 7
A4: 1 | B4: 一、非公益性捐赠 | D4: * | E4: * | F4: * | G4: =C4 -> 0 | H4: * | I4: *
A5: 2 | B5: 二、限额扣除的公益性捐赠(3+4+5+6) | C5: =C9 -> 0 | D5: =SUM(D6:D8) -> 0 | E5: =E9 -> 59544 | F5: =IF(SUM(C5+D5)>E5,E5,SUM(C5+D5)) -> 0 | G5: =G9 -> 0 | H5: =SUM(H6:H8) -> 0 | I5: =SUM(I7:I9) -> 0
A6: 3 | B6: ="前三年度（"&主界面!C8-3&"年）" -> 前三年度（2019年） | C6: * | E6: * | F6: * | G6: * | I6: *
A7: 4 | B7: ="前二年度（"&主界面!C8-2&"年）" -> 前二年度（2020年） | C7: * | E7: * | F7: * | G7: * | I7: =IF(D7-H7>0,D7-H7,0) -> 0
A8: 5 | B8: ="前一年度（"&主界面!C8-1&"年）" -> 前一年度（2021年） | C8: * | E8: * | F8: * | G8: * | I8: =IF(D8-H8>0,D8-H8,0) -> 0
A9: 6 | B9: ="本 年（"&主界面!C8&"年）" -> 本 年（2022年） | D9: * | E9: =IF(A100000主表!D16>0,ROUND(A100000主表!D16*12%,2),0) -> 59544 | F9: =MIN(C9+0,E9+0) -> 0 | G9: =IF(C9>F9,C9-F9,0) -> 0 | H9: * | I9: =G9 -> 0
A10: 7 | B10: 三、全额扣除的公益性捐赠 | C10: =SUM(C11:C16) -> 0 | D10: * | E10: * | F10: =SUM(F11:F16) -> 0 | G10: * | H10: * | I10: *
A11: 8 | B11: 1. | D11: * | E11: * | G11: * | H11: * | I11: *
A12: 9 | B12: 2. | D12: * | E12: * | G12: * | H12: * | I12: *
A13: 10 | B13: 3. | D13: * | E13: * | G13: * | H13: * | I13: *
A14: 11 | B14: 4. | D14: * | E14: * | G14: * | H14: * | I14: *
A15: 12 | B15: 5. | D15: * | E15: * | G15: * | H15: * | I15: *
A16: 13 | B16: 6. | D16: * | E16: * | G16: * | H16: * | I16: *
A17: 14 | B17: 合 计（1+2+7） | C17: =SUM(C4:C5,C10) -> 0 | D17: =D5 -> 0 | E17: =E5 -> 59544 | F17: =SUM(F5,F10) -> 0 | G17: =SUM(G4:G5) -> 0 | H17: =H5 -> 0 | I17: =I5 -> 0
A18: 附列 资料 | B18: 2015年度至本年发生的公益性扶贫捐赠合计金额 | D18: * | E18: * | G18: * | H18: * | I18: *

Sheet A105080
A1: A105080 资产折旧、摊销情况及纳税调整明细表
A2: 行 次 | B2: 项 目 | E2: 账载金额 | H2: 税收金额 | M2: 纳税调整金额
E3: 资产原值 | F3: 本年折旧、摊销额 | G3: 累计折旧、摊销额 | H3: 资产计税基础 | I3: 税收折旧额 | J3: 享受加速折旧政策的资产按税收一般规定计算的折旧、摊销额 | K3: 加速折旧统计额 | L3: 累计折旧摊销额
E4: 1 | F4: 2 | G4: 3 | H4: 4 | I4: 5 | J4: 6 | K4: 7=5-6 | L4: 8 | M4: 9（2-5）
A5: 1 | B5: 一、固定资产（2+3+4+5+6+7） | E5: =SUM(E6:E11) -> 1200 | F5: =SUM(F6:F11) -> 0 | G5: =SUM(G6:G11) -> 0 | H5: =SUM(H6:H11) -> 1200 | I5: =SUM(I6:I11) -> 1200 | J5: * | K5: * | L5: =SUM(L6:L11) -> 1200 | M5: =F5-I5 -> -1200
A6: 2 | B6: 所有固定资产 | C6: （一）房屋、建筑物 | J6: * | K6: * | M6: =F6-I6 -> 0
A7: 3 | C7: （二）飞机、火车、轮船、机器、机械和其他生产设备 | E7: 1200 | H7: 1200 | I7: 1200 | J7: * | K7: * | L7: 1200 | M7: =F7-I7 -> -1200
A8: 4 | C8: （三）与生产经营活动有关的器具、工具、家具等 | J8: * | K8: * | M8: 0
A9: 5 | C9: （四）飞机、火车、轮船以外的运输工具 | J9: * | K9: * | M9: 0
A10: 6 | C10: （五）电子设备 | J10: * | K10: * | M10: 0
A11: 7 | C11: （六）其他 | J11: * | K11: * | M11: 0
A12: 8 | B12: 其中：享受固定资产加速折旧及一次性扣除政策的资产加速折旧额大于一般折旧额的部分 | C12: （一）重要行业固定资产加速折旧（不含一次性扣除） | K12: =I12-J12 -> 0 | M12: *
A13: 9 | C13: （二）其他行业研发设备加速折旧 | K13: =I13-J13 -> 0 | M13: *
A14: 10 | C14: （三）特定地区企业固定资产加速折旧（10.1+10.2） | E14: =SUM(E15:E16) -> 0 | F14: =SUM(F15:F16) -> 0 | G14: 0 | H14: 0 | I14: 0 | J14: 0 | K14: =I14-J14 -> 0 | L14: =SUM(L15:L16) -> 0 | M14: *
A15: 10.1 | C15: 1.海南自由贸易港企业固定资产加速折旧 | K15: =I15-J15 -> 0 | M15: *
A16: 10.2 | C16: 2.横琴粤澳深度合作区企业固定资产加速折旧 | K16: =I16-J16 -> 0 | M16: *
A17: 11 | C17: （四）500万元以下设备器具一次性扣除 | E17: =SUM(E18:E19) -> 400 | F17: =SUM(F18:F19) -> 0 | G17: 0 | H17: 400 | I17: 400 | J17: 0 | K17: =I17-J17 -> 400 | L17: =SUM(L18:L19) -> 400 | M17: *
A18: 11.1 | C18: 1.高新技术企业2022年第四季度(10月-12月)购置单价500万元以下设备器具一次性扣除 | E18: 400 | H18: 400 | I18: 400 | K18: 400 | L18: 400 | M18: *
A19: 11.2 | C19: 2.购置单价500万元以下设备器具一次性扣除(不包含高新技术企业2022年第四季度购置) | K19: 0 | M19: *
A20: 12 | C20: （五）500万元以上设备器具一次性扣除(12.1+12.2+12.3+12.4) | E20: =SUM(E21:E24) -> 800 | F20: =SUM(F21:F24) -> 0 | G20: 0 | H20: 800 | I20: 800 | J20: 0 | K20: 800 | L20: 800 | M20: *
A21: 12.1 | C21: 中小微企业购置单价500万元以上设备器具 | D21: 1.最低折旧年限为3年的设备器具一次性扣除 | M21: *
A22: 12.2 | D22: 2.最低折旧年限为4、5年的设备器具50%部分一次性扣除 | M22: *
A23: 12.3 | D23: 3.最低折旧年限为10年的设备器具50%部分一次性扣除 | M23: *
A24: 12.4 | C24: 4.高新技术企业2022年第四季度(10月-12月)购置单价500万元以上设备器具一次性扣除 | E24: 800 | H24: 800 | I24: 800 | L24: 800 | M24: *
A25: 13 | C25: （六）特定地区企业固定资产一次性扣除（13.1+13.2） | E25: =SUM(E26:E27) -> 0 | F25: =SUM(F26:F27) -> 0 | G25: 0 | H25: 0 | I25: 0 | J25: 0 | K25: 0 | L25: 0 | M25: *
A26: 13.1 | C26: 1.海南自由贸易港企业固定资产一次性扣除 | K26: 0 | M26: *
A27: 13.2 | C27: 2.横琴粤澳深度合作区企业固定资产一次性扣除 | K27: 0 | M27: *
A28: 14 | C28: （七）技术进步、更新换代固定资产加速折旧 | K28: 0 | M28: *
A29: 15 | C29: （八）常年强震动、高腐蚀固定资产加速折旧 | K29: 0 | M29: *
A30: 16 | C30: （九）外购软件加速折旧 | K30: 0 | M30: *
A31: 17 | C31: （十）集成电路企业生产设备加速折旧 | K31: 0 | M31: *
A32: 18 | B32: 二、生产性生物资产（19+20） | E32: =SUM(E33:E34) -> 0 | F32: =SUM(F33:F34) -> 0 | G32: =SUM(G33:G34) -> 0 | H32: =SUM(H33:H34) -> 0 | I32: =SUM(I33:I34) -> 0 | J32: * | K32: * | L32: =SUM(L33:L34) -> 0 | M32: =SUM(M33:M34) -> 0
A33: 19 | B33: （一）林木类 | J33: * | K33: * | M33: =F33-I33 -> 0
A34: 20 | B34: （二）畜类 | J34: * | K34: * | M34: =F34-I34 -> 0
A35: 21 | B35: 三、无形资产（22+23+24+25+26+27+28+29） | E35: =SUM(E36:E42,E43) -> 0 | F35: =SUM(F36:F42,F43) -> 0 | G35: =SUM(G36:G42,G43) -> 0 | H35: =SUM(H36:H42,H43) -> 0 | I35: =SUM(I36:I42,I43) -> 0 | J35: * | K35: * | L35: =SUM(L36:L42,L43) -> 0 | M35: =SUM(M36:M42,M43) -> 0
A36: 22 | B36: 所有无形资产 | C36: （一）专利权 | J36: * | K36: * | M36: =F36-I36 -> 0
A37: 23 | C37: （二）商标权 | J37: * | K37: * | M37: =F37-I37 -> 0
A38: 24 | C38: （三）著作权 | J38: * | K38: * | M38: 0
A39: 25 | C39: （四）土地使用权 | J39: * | K39: * | M39: 0
A40: 26 | C40: （五）非专利技术 | J40: * | K40: * | M40: 0
A41: 27 | C41: （六）特许权使用费 | J41: * | K41: * | M41: 0
A42: 28 | C42: （七）软件 | J42: * | K42: * | M42: 0
A43: 29 | C43: （八）其他 | J43: * | K43: * | M43: 0
A44: 30 | B44: 其中：享受无形资产加速摊销及一次性摊销政策的资产加速摊销额大于一般摊销额的部分 | C44: （一）企业外购软件加速摊销 | M44: *
A45: 31 | C45: （二）特定地区企业无形资产加速摊销（31.1+31.2） | E45: =SUM(E46:E47) -> 0 | F45: =SUM(F46:F47) -> 0 | G45: 0 | H45: 0 | I45: 0 | J45: 0 | K45: 0 | L45: 0 | M45: *
A46: 31.1 | C46: 1.海南自由贸易港企业无形资产加速摊销 | M46: *
A47: 31.2 | C47: 2.横琴粤澳深度合作区企业无形资产加速摊销 | M47: *
A48: 32 | C48: （三）特定地区企业无形资产一次性摊销（32.1+32.2） | E48: =SUM(E49:E50) -> 0 | F48: =SUM(F49:F50) -> 0 | G48: 0 | H48: 0 | I48: 0 | J48: 0 | K48: 0 | L48: 0 | M48: *
A49: 32.1 | C49: 1.海南自由贸易港企业无形资产一次性摊销 | M49: *
A50: 32.2 | C50: 2.横琴粤澳深度合作区企业无形资产一次性摊销 | M50: *
A51: 33 | B51: 四、长期待摊费用（34+35+36+37+38） | E51: =SUM(E52:E56) -> 0 | F51: =SUM(F52:F56) -> 0 | G51: =SUM(G52:G56) -> 0 | H51: =SUM(H52:H56) -> 0 | I51: =SUM(I52:I56) -> 0 | J51: * | K51: * | L51: =SUM(L52:L56) -> 0 | M51: =SUM(M52:M56) -> 0
A52: 34 | B52: （一）已足额提取折旧的固定资产的改建支出 | J52: * | K52: * | M52: 0
A53: 35 | B53: （二）租入固定资产的改建支出 | J53: * | K53: * | M53: 0
A54: 36 | B54: （三）固定资产的大修理支出 | J54: * | K54: * | M54: 0
A55: 37 | B55: （四）开办费 | J55: * | K55: * | M55: 0
A56: 38 | B56: （五）其他 | J56: * | K56: * | M56: 0
A57: 39 | B57: 五、油气勘探投资 | J57: * | K57: * | M57: 0
A58: 40 | B58: 六、油气开发投资 | J58: * | K58: * | M58: 0
A59: 41 | B59: 合计（1+18+21+33+39+40） | E59: =E5+E32+E35+E51+E57+E58 -> 1200 | F59: =F5+F32+F35+F51+F57+F58 -> 0 | G59: =G5+G32+G35+G51+G57+G58 -> 0 | H59: =H5+H32+H35+H51+H57+H58 -> 1200 | I59: =I5+I32+I35+I51+I57+I58 -> 1200 | J59: =SUM(J12:J31,J44:J50) -> 0 | K59: =SUM(K12:K31,K44:K50) -> 1600 | L59: =L5+L32+L35+L51+L57+L58 -> 1200 | M59: =M5+M32+M35+M51+M57+M58 -> -1200
A60: 附列资料 | C60: 全民所有制企业公司制改制资产评估增值政策资产 | J60: * | K60: * | M60: =F60-I60 -> 0
B63: A公司是高新技术企业，2022年12月份购入设备2台，1台400万元用于正常生产，另1台800万元用于研发，折旧期限10年，无残值，每年折旧额合计120万元
B65: 简化核算，账面仅此2项资产，12月购入当月会计上不计提折旧
B67: A105080资产摊旧摊销表（设备一次性扣除100%）
B69: A107010免税减计加计扣除表（高新技术企业设备器加计扣除100%-28号公告）
B71: A107012研发加计扣除表（研发费用加计扣除100%）
B73: 400万元的设备没有用于研发，能2倍税前扣除共800万元，800万元的设备用于了研发，能3倍税前扣除共2400万元
B75: 本表（105080表）只填列设备一次性扣除100%的金额，400+800万

Sheet A105090
A1: A105090 资产损失税前扣除及纳税调整明细表
A2: 行次 | B2: 项 目 | C2: 资产损失直接计入本年损益金额 | D2: 资产损失准备金 核销金额 | E2: 资产处置 收入 | F2: 赔偿收入 | G2: 资产计税 基础 | H2: 资产损失的 税收金额 | I2: 纳税调整 金额
C3: 1 | D3: 2 | E3: 3 | F3: 4 | G3: 5 | H3: 6(5-3-4) | I3: 7
A4: 1 | B4: 一、现金及银行存款损失 | D4: * | H4: =G4-E4-F4 -> 0 | I4: =C4-H4 -> 0
A5: 2 | B5: 二、应收及预付款项坏账损失 | C5: 30000 | D5: 0 | E5: 0 | F5: 10000 | G5: 50000 | H5: =G5-E5-F5 -> 40000 | I5: =C5-H5 -> -10000 | J5: 例3、应收账款损失
A6: 3 | B6: 其中：逾期三年以上的应收款项损失 | H6: 0 | I6: 0
A7: 4 | B7: 逾期一年以上的小额应收款项损失 | C7: 30000 | D7: 0 | E7: 0 | F7: 10000 | G7: 50000 | H7: 40000 | I7: -10000 | J7: 例3、应收账款损失
A8: 5 | B8: 三、存货损失 | C8: 253800 | D8: 0 | E8: 0 | F8: 10000 | G8: =260000+33800 -> 293800 | H8: 283800 | I8: -30000 | J8: 例2、存货损失
A9: 6 | B9: 其中：存货盘亏、报废、损毁、变质或被盗损失 | C9: 253800 | D9: 0 | E9: 0 | F9: 10000 | G9: =260000+33800 -> 293800 | H9: 283800 | I9: -30000 | J9: 例2、存货损失
A10: 7 | B10: 四、固定资产损失 | C10: 15000 | D10: 0 | E10: 5000 | F10: 0 | G10: 20000 | H10: 15000 | I10: 0 | J10: 例1、设备损失
A11: 8 | B11: 其中：固定资产盘亏、丢失、报废、损毁或被盗损失 | C11: 15000 | D11: 0 | E11: 5000 | F11: 0 | G11: 20000 | H11: 15000 | I11: 0 | J11: 例1、设备损失
A12: 9 | B12: 五、无形资产损失 | H12: 0 | I12: 0
A13: 10 | B13: 其中：无形资产转让损失 | H13: 0 | I13: 0
A14: 11 | B14: 无形资产被替代或超过法律保护期限形成的损失 | H14: 0 | I14: 0
A15: 12 | B15: 六、在建工程损失 | H15: 0 | I15: 0
A16: 13 | B16: 其中：在建工程停建、报废损失 | H16: 0 | I16: 0
A17: 14 | B17: 七、生产性生物资产损失 | H17: 0 | I17: 0
A18: 15 | B18: 其中：生产性生物资产盘亏、非正常死亡、被盗、丢失等产生的损失 | H18: 0 | I18: 0
A19: 16 | B19: 八、债权性投资损失(17+22) | C19: =C20+C26 -> 0 | D19: =D20+D26 -> 0 | E19: 0 | F19: 0 | G19: 0 | H19: 0 | I19: 0
A20: 17 | B20: （一）金融企业债权性投资损失（18+21） | C20: =C21+C25 -> 0 | D20: =D21+D25 -> 0 | E20: 0 | F20: 0 | G20: 0 | H20: 0 | I20: 0
A21: 18 | B21: 1.贷款损失 | H21: 0 | I21: =C21+D21-H21 -> 0
A22: 19 | B22: 其中：符合条件的涉农和中小企业贷款损失 | H22: 0 | I22: =C22+D22-H22 -> 0
A23: 20 | B23: 其中：单户贷款余额300万（含）以下的贷款损失 | H23: 0 | I23: 0
A24: 21 | B24: 单户贷款余额300万元至1000万元（含）的 贷款损失 | H24: 0 | I24: 0
A25: 22 | B25: 2.其他债权性投资损失 | H25: 0 | I25: 0
A26: 23 | B26: （二）非金融企业债权性投资损失 | H26: 0 | I26: =C26-H26 -> 0
A27: 24 | B27: 九、股权（权益）性投资损失 | H27: 0 | I27: 0
A28: 25 | B28: 其中：股权转让损失 | H28: 0 | I28: 0
A29: 26 | B29: 十、通过各种交易场所、市场买卖债券、股票、期货、基金以及金融衍生产品等发生的损失 | H29: 0 | I29: 0
A30: 27 | B30: 十一、打包出售资产损失 | H30: 0 | I30: 0
A31: 28 | B31: 十二、其他资产损失 | H31: 0
A32: 29 | B32: 合计（1+2+5+7+9+12+14+16+24+26+27+28） | C32: =SUM(C4:C5,C8,C10,C12,C15,C17,C19,C27,C29,C30,C31) -> 298800 | D32: =SUM(D4:D5,D8,D10,D12,D15,D17,D19,D27,D29,D30,D31) -> 0 | E32: 5000 | F32: 20000 | G32: 363800 | H32: 338800 | I32: -40000
A33: 30 | B33: 其中：分支机构留存备查的资产损失
B35: 1、2020年末应收乙公司账款5万元，已计提准备金1万元，业务员小张赔偿1万元。2022年，乙公司破产，该账款已确定无法收回。企业会计核算确认了3万元损失计入“营业外支出”科目
B37: 2：A类库存商品保管不善变质，账面成本26万元，增值税进项税额3.38万元，该存货已计提跌价准备3万元，保管责任人赔偿1万元，企业会计核算确认了25.38万元损失计入“营业外支出”科目
B39: 3、购进的一台设备达到使用年限正常报废，该设备账面原值10万元，已提折旧8万元，报废时残值收入5000元（不含销项税），会计上确认的固定资产清理损失1.5万元计入了营业外支出

Sheet A105100
A1: A105100 企业重组及递延纳税事项调整明细表
A2: 行次 | B2: 项 目 | C2: 一般性税务处理 | F2: 特殊性税务处理 | I2: 纳税调整金额
C3: 账载金额 | D3: 税收金额 | E3: 纳税调整金额 | F3: 账载金额 | G3: 税收金额 | H3: 纳税调整金额
C4: 1 | D4: 2 | E4: 3(2-1) | F4: 4 | G4: 5 | H4: 6(5-4) | I4: 7(3+6)
A5: 1 | B5: 一、债务重组 | E5: =ROUND(D5-C5,2) -> 0 | H5: =ROUND(G5-F5,2) -> 0 | I5: =ROUND(E5+H5,2) -> 0
A6: 2 | B6: 其中：以非货币性资产清偿债务 | E6: =ROUND(D6-C6,2) -> 0 | H6: =ROUND(G6-F6,2) -> 0 | I6: =ROUND(E6+H6,2) -> 0
A7: 3 | B7: 债转股 | E7: 0 | H7: 0 | I7: 0
A8: 4 | B8: 二、股权收购 | E8: 0 | H8: 0 | I8: 0
A9: 5 | B9: 其中：涉及跨境重组的股权收购 | E9: 0 | H9: 0 | I9: 0
A10: 6 | B10: 三、资产收购 | E10: 0 | H10: 0 | I10: 0
A11: 7 | B11: 其中：涉及跨境重组的资产收购 | E11: 0 | H11: 0 | I11: 0
A12: 8 | B12: 四、企业合并（9+10） | C12: =ROUND(SUM(C13:C14),2) -> 0 | D12: =ROUND(SUM(D13:D14),2) -> 0 | E12: 0 | F12: =ROUND(SUM(F13:F14),2) -> 0 | G12: =ROUND(SUM(G13:G14),2) -> 0 | H12: 0 | I12: 0
A13: 9 | B13: （一）同一控制下企业合并 | E13: 0 | H13: 0 | I13: 0
A14: 10 | B14: （二）非同一控制下企业合并 | E14: 0 | H14: 0 | I14: 0
A15: 11 | B15: 五、企业分立 | E15: 0 | H15: 0 | I15: 0
A16: 12 | B16: 六、非货币性资产对外投资 | E16: 0 | H16: 0 | I16: 0
A17: 13 | B17: 七、技术入股 | E17: 0 | H17: 0 | I17: 0
A18: 14 | B18: 八、股权划转、资产划转 | E18: 0 | H18: 0 | I18: 0
A19: 15 | B19: 九、 基础设施领域不动产投资信托基金 （ 原始权益人 项目公司） | C19: =ROUND(SUM(C20:C21),2) -> 0 | D19: =ROUND(SUM(D20:D21),2) -> 0 | E19: 0 | F19: =ROUND(SUM(F20:F21),2) -> 0 | G19: =ROUND(SUM(G20:G21),2) -> 0 | H19: 0 | I19: 0
A20: 15.1 | B20: (一)设立基础设施REITs前 | E20: 0 | H20: 0 | I20: 0
A21: 15.2 | B21: (二)设立基础设施REITs阶段 | E21: 0 | H21: 0 | I21: 0
A22: 16 | B22: 十、其他 | E22: 0 | H22: 0 | I22: 0
A23: 17 | B23: 合 计（1+4+6+8+11+12+13+14+15+16） | C23: =ROUND(SUM(C5,C8,C10,C12,C15:C19,C22),2) -> 0 | D23: =ROUND(SUM(D5,D8,D10,D12,D15:D19,D22),2) -> 0 | E23: 0 | F23: 0 | G23: 0 | H23: 0 | I23: 0

Sheet A105110 (hidden)
A1: A105110 政策性搬迁纳税调整明细表
A2: 行次 | B2: 项 目 | C2: 金额
A3: 1 | B3: 一、搬迁收入(2+8) | C3: =ROUND(C4+C10,2) -> 0
A4: 2 | B4: （一）搬迁补偿收入（3+4+5+6+7） | C4: =ROUND(SUM(C5:C9),2) -> 0
A5: 3 | B5: 1.对被征用资产价值的补偿
A6: 4 | B6: 2.因搬迁、安置而给予的补偿
A7: 5 | B7: 3.对停产停业形成的损失而给予的补偿
A8: 6 | B8: 4.资产搬迁过程中遭到毁损而取得的保险赔款
A9: 7 | B9: 5.其他补偿收入
A10: 8 | B10: （二）搬迁资产处置收入
A11: 9 | B11: 二、搬迁支出(10+16) | C11: =ROUND(C12+C18,2) -> 0
A12: 10 | B12: （一）搬迁费用支出(11+12+13+14+15) | C12: =ROUND(SUM(C13:C17),2) -> 0
A13: 11 | B13: 1.安置职工实际发生的费用
A14: 12 | B14: 2.停工期间支付给职工的工资及福利费
A15: 13 | B15: 3.临时存放搬迁资产而发生的费用
A16: 14 | B16: 4.各类资产搬迁安装费用
A17: 15 | B17: 5.其他与搬迁相关的费用
A18: 16 | B18: （二）搬迁资产处置支出
A19: 17 | B19: 三、搬迁所得或损失（1-9） | C19: =ROUND(C3-C11,2) -> 0
A20: 18 | B20: 四、应计入本年应纳税所得额的搬迁所得或损失（19+20+21） | C20: =ROUND(SUM(C21:C23),2) -> 0
A21: 19 | B21: 其中：搬迁所得
A22: 20 | B22: 搬迁损失一次性扣除
A23: 21 | B23: 搬迁损失分期扣除
A24: 22 | B24: 五、计入当期损益的搬迁收益或损失
A25: 23 | B25: 六、以前年度搬迁损失当期扣除金额
A26: 24 | B26: 七、纳税调整金额（18-22-23） | C26: =ROUND(C20-C24-C25,2) -> 0

Sheet A105120 (hidden)
A1: A105120 贷款损失准备金及纳税调整明细表
A2: 行 次 | B2: 项 目 | C2: 账载金额 | G2: 税收金额 | M2: 纳税调整金额
C3: 上年末贷款资产 余额 | D3: 本年末贷款资产 余额 | E3: 上年末贷款损失 准备金余额 | F3: 本年末贷款损失 准备金余额 | G3: 上年末准予提取贷 款损失准备金的贷款 资产余额 | H3: 本年末准予提取贷 款损失准备金的贷款 资产余额 | I3: 计提 比例 | J3: 按本年末准予提取贷款损失准备金的贷款资产余额与计提比例计算的准备金额 | K3: 截至上年末已在 税前扣除的贷款 损失准备金的余额 | L3: 准预当年税前扣除的 贷款损失准备金
C4: 1 | D4: 2 | E4: 3 | F4: 4 | G4: 5 | H4: 6 | I4: 7 | J4: 8（6×7） | K4: 9 | L4: 10(4与8的孰小值-9) | M4: 11(4-3-10)
A5: 1 | B5: 一、金融企业（2+3） | C5: =ROUND(C6+C7,2) -> 0 | D5: =ROUND(D6+D7,2) -> 0 | E5: 0 | G5: 0 | H5: 0 | I5: * | J5: 0 | L5: =MIN(F5+0,J5+0)-K5 -> 0 | M5: =ROUND(F5-E5-L5,2) -> 0
A6: 2 | B6: （一）贷款损失准备金 | E6: * | F6: * | I6: 0.01 | J6: =H6*I6 -> 0 | K6: * | L6: * | M6: *
A7: 3 | B7: （二）涉农和中小企业贷款损失准备金 | E7: * | F7: * | I7: * | J7: =SUM(J8:J11) -> 0 | K7: * | L7: * | M7: *
A8: 4 | B8: 其中：关注类贷款 | E8: * | F8: * | I8: 0.02 | J8: =H8*I8 -> 0 | K8: * | L8: * | M8: *
A9: 5 | B9: 次级类贷款 | E9: * | F9: * | I9: 0.25 | J9: =H9*I9 -> 0 | K9: * | L9: * | M9: *
A10: 6 | B10: 可疑类贷款 | E10: * | F10: * | I10: 0.5 | J10: 0 | K10: * | L10: * | M10: *
A11: 7 | B11: 损失类贷款 | E11: * | F11: * | I11: 1 | J11: 0 | K11: * | L11: * | M11: *
A12: 8 | B12: 二、小额贷款公司 | I12: 0.01 | J12: 0 | L12: =MIN(F12+0,J12+0)-K12 -> 0 | M12: =ROUND(F12-D12-L12,2) -> 0
A13: 9 | B13: 三、其他 | J13: 0 | L13: =MIN(F13+0,J13+0)-K13 -> 0 | M13: 0
A14: 10 | B14: 合计（1+8+9） | C14: =C5+C12+C13 -> 0 | D14: =D5+D12+D13 -> 0 | E14: 0 | F14: 0 | G14: 0 | H14: 0 | I14: * | J14: 0 | K14: 0 | L14: 0 | M14: 0

Sheet A106000
A1: A106000 企业所得税弥补亏损明细表
A2: 行 次 | B2: 项目 | C2: 年度 | D2: 当年境内 所得额 | E2: 分立转出的 亏损额 | F2: 合并、分立转入 的亏损额 | I2: 弥补亏损 企业类型 | J2: 当年亏损额 | K2: 当年待弥补 的亏损额 | L2: 用本年度所得额弥补的 以前年度亏损额 | N2: 当年可结转 以后年度弥 补的亏损额
F3: 可弥补 年限5年 | G3: 可弥补 年限8年 | H3: 可弥补 年限10年 | L3: 使用境内 所得弥补 | M3: 使用境外 所得弥补
C4: 1 | D4: 2 | E4: 3 | F4: 4 | G4: 5 | H4: 6 | I4: 7 | J4: 8 | K4: 9 | L4: 10 | M4: 11 | N4: 12
A5: 1 | B5: 前十年度 | C5: =IF(C6-1>0,C6-1,0) -> 2012 | N5: *
A6: 2 | B6: 前九年度 | C6: 2013 | N6: =ABS(K6)-L6-M6 -> 0
A7: 3 | B7: 前八年度 | C7: 2014 | N7: =ABS(K7)-L7-M7 -> 0
A8: 4 | B8: 前七年度 | C8: 2015 | N8: 0
A9: 5 | B9: 前六年度 | C9: 2016 | N9: 0
A10: 6 | B10: 前五年度 | C10: 2017 | N10: =IF(I10=100,0,ABS(K10)-L10-M10) -> 0
A11: 7 | B11: 前四年度 | C11: 2018 | N11: 0
A12: 8 | B12: 前三年度 | C12: 2019 | N12: 0
A13: 9 | B13: 前二年度 | C13: 2020 | D13: -1000000 | J13: -1000000 | K13: -1000000 | L13: =D15 -> 253168 | N13: 746832
A14: 10 | B14: 前一年度 | C14: 2021 | D14: -10000 | J14: -10000 | K14: -10000 | N14: 10000
A15: 11 | B15: 本年度 | C15: =主界面!C8 -> 2022 | D15: =A100000主表!D22-A100000主表!D23 -> 253168 | L15: =SUM(L5:L14) -> 253168 | M15: =SUM(M5:M14) -> 0 | N15: =ABS(K15) -> 0
A16: 12 | B16: 可结转以后年度弥补的亏损额合计 | N16: =ROUND(SUM(N6:N15),2) -> 756832
I20: 代码 | J20: 类型
I21: 100 | J21: 一般企业-5年
I22: 200 | J22: 高新技术企业-10年
I23: 300 | J23: 科技型中小企业-10年
I24: 400 | J24: 线宽小于130纳米（含）的集成电路生产企业-10年
I25: 500 | J25: 受疫情影响困难行业企业-8年
I26: 600 | J26: 电影行业企业-8年

Sheet A107010
A1: A107010 免税、减计收入及加计扣除优惠明细表
A2: 行次 | B2: 项 目 | C2: 金 额
A3: 1 | B3: 一、免税收入（2+3+9+10+11+12+13+14+15+16） | C3: =ROUND(SUM(C4:C5,C11:C18),2) -> 0
A4: 2 | B4: （一）国债利息收入免征企业所得税
A5: 3 | B5: （二）符合条件的居民企业之间的股息、红利等权益性投资收益免征企业所得税（4+5+6+7+8） | C5: =SUM(C6:C10) -> 0
A6: 4 | B6: 1.一般股息红利等权益性投资收益免征企业所得税（填写A107011） | C6: ='A107011'!R13 -> 0
A7: 5 | B7: 2.内地居民企业通过沪港通投资且连续持有H股满12个月取得的股息红利所得免征企业所得税（填写A107011） | C7: ='A107011'!R14 -> 0
A8: 6 | B8: 3.内地居民企业通过深港通投资且连续持有H股满12个月取得的股息红利所得免征企业所得税（填写A107011） | C8: ='A107011'!R15 -> 0
A9: 7 | B9: 4.居民企业持有创新企业CDR取得的股息红利所得免征企业所得税（填写A107011） | C9: ='A107011'!R16 -> 0
A10: 8 | B10: 5.符合条件的永续债利息收入免征企业所得税（填写A107011） | C10: ='A107011'!R17 -> 0
A11: 9 | B11: （三）符合条件的非营利组织的收入免征企业所得税
A12: 10 | B12: （四）中国清洁发展机制基金取得的收入免征企业所得税
A13: 11 | B13: （五）投资者从证券投资基金分配中取得的收入免征企业所得税
A14: 12 | B14: （六）取得的地方政府债券利息收入免征企业所得税
A15: 13 | B15: （七）中国保险保障基金有限责任公司取得的保险保障基金等收入免征企业所得税
A16: 14 | B16: （八）中国奥委会取得北京冬奥组委支付的收入免征企业所得税
A17: 15 | B17: （九）中国残奥委会取得北京冬奥组委分期支付的收入免征企业所得税
A18: 16 | B18: （十）其他(16.1+16.2) | C18: =ROUND(SUM(C19:C20),2) -> 0
A19: 16.1 | B19: 1.取得的基础研究资金收入免征企业所得税
A20: 16.2 | B20: 2.其他
A21: 17 | B21: 二、减计收入（18+19+23+24） | C21: =ROUND((C22+C23+C27+C28),2) -> 0
A22: 18 | B22: （一）综合利用资源生产产品取得的收入在计算应纳税所得额时减计收入
A23: 19 | B23: （二）金融、保险等机构取得的涉农利息、保费减计收入（20+21+22） | C23: =ROUND(SUM(C24:C26),2) -> 0
A24: 20 | B24: 1.金融机构取得的涉农贷款利息收入在计算应纳税所得额时减计收入
A25: 21 | B25: 2.保险机构取得的涉农保费收入在计算应纳税所得额时减计收入
A26: 22 | B26: 3.小额贷款公司取得的农户小额贷款利息收入在计算应纳税所得额时减计收入
A27: 23 | B27: （三）取得铁路债券利息收入减半征收企业所得税
A28: 24 | B28: （四）其他（24.1+24.2） | C28: =SUM(C29:C30) -> 0
A29: 24.1 | B29: 1.取得的社区家庭服务收入在计算应纳税所得额时减计收入
A30: 24.2 | B30: 2.其他
A31: 25 | B31: 三、加计扣除（26+27+28+29+30） | C31: =ROUND(SUM(C32,C33,C34,C37,C38),2) -> 2000
A32: 26 | B32: （一）开发新技术、新产品、新工艺发生的研究开发费用加计扣除（填写A107012） | C32: =IF(A000000基础信息表!H17="",'A107012'!C56,0) -> 800
A33: 27 | B33: （二）科技型中小企业开发新技术、新产品、新工艺发生的研究开发费用加计扣除（填写A107012） | C33: =IF(A000000基础信息表!H17="",0,'A107012'!C56) -> 0
A34: 28 | B34: （三）企业为获得创新性、创意性、突破性的产品进行创意设计活动而发生的相关费用加计扣除（加计扣除比例及计算方法：_____） | D34: 财税[2015]119号 和 财政部税务总局科技部2022年第28号公告
A35: 28.1 | B35: 其中： 第四季度相关费用加计扣除
A36: 28.2 | B36: 前三季度相关费用加计扣除
A37: 29 | B37: （四）安置残疾人员所支付的工资加计扣除 | D37: 100%加计
A38: 30 | B38: （五）其他（30.1+30.2+30.3） | C38: =ROUND(SUM(C39:C41),2) -> 1200
A39: 30.1 | B39: 1.企业投入基础研究支出加计扣除 | D39: 财税[2022]第32号公告
A40: 30.2 | B40: 2.高新技术企业设备器具加计扣除 | C40: =400+800 -> 1200 | D40: 2台设备，400+800万元，财政部税务总局科技部2022年第28号公告
A41: 30.3 | B41: 3.其他
A42: 31 | B42: 合 计（1+17+25） | C42: =C3+C21+C31 -> 2000

Sheet A107011
A1: A107011 符合条件的居民企业之间的股息、红利等权益性投资收益优惠明细表
A2: 行次 | B2: 被投资企业 | C2: 被投资企业统一社会信用代码（纳税人识别号） | D2: 投资性质 | E2: 投资成本 | F2: 投资比例 | G2: 被投资企业利润分配确认金额 | I2: 被投资企业清算确认金额 | L2: 撤回或减少投资确认金额 | R2: 合计
G3: 被投资企业做出利润分配或转股决定时间 | H3: 依决定归属于本公司的股息、红利等权益性投资收益金额 | I3: 分得的被投资企业清算剩余资产 | J3: 被清算企业累计未分配利润和累计盈余公积应享有部分 | K3: 应确认的股息所得 | L3: 从被投资企业撤回或减少投资取得的资产 | M3: 减少投资比例 | N3: 收回初始投资成本 | O3: 取得资产中超过收回初始投资成本部分 | P3: 撤回或减少投资应享有被投资企业累计未分配利润和累计盈余公积 | Q3: 应确认的股息所得
B4: 1 | C4: 2 | D4: 3 | E4: 4 | F4: 5 | G4: 6 | H4: 7 | I4: 8 | J4: 9 | K4: 10（8与9孰小) | L4: 11 | M4: 12 | N4: 13（4×12） | O4: 14（11-13） | P4: 15 | Q4: 16(14与15孰小) | R4: 17（7+10+16）
A5: 1 | K5: =MIN(I5+0,J5+0) -> 0 | N5: =ROUND(E5*M5,2) -> 0 | O5: =ROUND(L5-N5,2) -> 0 | Q5: =MIN(O5+0,P5+0) -> 0 | R5: =ROUND(H5+K5+Q5,2) -> 0
A6: 2 | K6: =MIN(I6+0,J6+0) -> 0 | N6: =ROUND(E6*M6,2) -> 0 | O6: =ROUND(L6-N6,2) -> 0 | Q6: =MIN(O6+0,P6+0) -> 0 | R6: =ROUND(H6+K6+Q6,2) -> 0
A7: 3 | K7: 0 | N7: 0 | O7: 0 | Q7: 0 | R7: 0
A8: 4 | K8: 0 | N8: 0 | O8: 0 | Q8: 0 | R8: 0
A9: 5 | K9: 0 | N9: 0 | O9: 0 | Q9: 0 | R9: 0
A10: 6 | K10: 0 | N10: 0 | O10: 0 | Q10: 0 | R10: 0
A11: 7 | K11: 0 | N11: 0 | O11: 0 | Q11: 0 | R11: 0
A12: 8 | B12: 合 计 | R12: =ROUND(SUM(R5:R11),2) -> 0
A13: 9 | B13: 其中：直接投资或非H股票投资 | R13: =SUMIF($D$5:$D$11,"(1)直接投资",$R$5:$R$11)+SUMIF($D$5:$D$11,"(2)股票投资(不含H股)",$R$5:$R$11) -> 0
A14: 10 | B14: 股票投资—沪港通H股 | R14: =SUMIF($D$5:$D$11,"(3)股票投资(沪港通H股投资)",$R$5:$R$11) -> 0
A15: 11 | B15: 股票投资—深港通H股 | R15: =SUMIF($D$5:$D$11,"(4)股票投资(深港通H股投资)",$R$5:$R$11) -> 0
A16: 12 | B16: 创新企业CDR | R16: =SUMIF($D$5:$D$11,"(5)创新企业CDR",$R$5:$R$11) -> 0
A17: 13 | B17: 永续债 | R17: =SUMIF($D$5:$D$11,"(6)永续债",$R$5:$R$11) -> 0

Sheet A107012
A1: A107012 研发费用加计扣除优惠明细表
A2: 行次 | B2: 项 目 | C2: 金额（数量） | H2: 科技型中小企业： | I2: FALSE
A3: 1 | B3: 本年可享受研发费用加计扣除项目数量
A4: 2 | B4: 一、自主研发、合作研发、集中研发（3+7+16+19+23+34） | C4: =ROUND(C5+C9+C18+C21+C25+C36,2) -> 800
A5: 3 | B5: （一）人员人工费用（4+5+6） | C5: =ROUND(SUM(C6:C8),2) -> 0
A6: 4 | B6: 1.直接从事研发活动人员工资薪金
A7: 5 | B7: 2.直接从事研发活动人员五险一金
A8: 6 | B8: 3.外聘研发人员的劳务费用
A9: 7 | B9: （二）直接投入费用（8+9+10+11+12+13+14+15） | C9: =ROUND(SUM(C10:C17),2) -> 0
A10: 8 | B10: 1.研发活动直接消耗材料费用
A11: 9 | B11: 2.研发活动直接消耗燃料费用
A12: 10 | B12: 3.研发活动直接消耗动力费用
A13: 11 | B13: 4.用于中间试验和产品试制的模具、工艺装备开发及制造费
A14: 12 | B14: 5.用于不构成固定资产的样品、样机及一般测试手段购置费
A15: 13 | B15: 6.用于试制产品的检验费
A16: 14 | B16: 7.用于研发活动的仪器、设备的运行维护、调整、检验、维修等费用
A17: 15 | B17: 8.通过经营租赁方式租入的用于研发活动的仪器、设备租赁费
A18: 16 | B18: （三）折旧费用（17+18） | C18: =ROUND(SUM(C19:C20),2) -> 800
A19: 17 | B19: 1.用于研发活动的仪器的折旧费
A20: 18 | B20: 2.用于研发活动的设备的折旧费 | C20: 800 | D20: 研发加计扣除的设备摊销
A21: 19 | B21: （四）无形资产摊销（20+21+22） | C21: =ROUND(SUM(C22:C24),2) -> 0
A22: 20 | B22: 1.用于研发活动的软件的摊销费用
A23: 21 | B23: 2.用于研发活动的专利权的摊销费用
A24: 22 | B24: 3.用于研发活动的非专利技术（包括许可证、专有技术、设计和计算方法等）的摊销费用
A25: 23 | B25: （五）新产品设计费等（24+25+26+27） | C25: =ROUND(SUM(C26:C29),2) -> 0
A26: 24 | B26: 1.新产品设计费
A27: 25 | B27: 2.新工艺规程制定费
A28: 26 | B28: 3.新药研制的临床试验费
A29: 27 | B29: 4.勘探开发技术的现场试验费
A30: 28 | B30: （六）其他相关费用(29+30+31+32+33) | C30: =ROUND(SUM(C31:C35),2) -> 0
A31: 29 | B31: 1.技术图书资料费、资料翻译费、专家咨询费、高新科技研发保险费
A32: 30 | B32: 2.研发成果的检索、分析、评议、论证、鉴定、评审、评估、验收费用
A33: 31 | B33: 3.知识产权的申请费、注册费、代理费
A34: 32 | B34: 4.职工福利费、补充养老保险费、补充医疗保险费
A35: 33 | B35: 5.差旅费、会议费
A36: 34 | B36: （七）经限额调整后的其他相关费用
A37: 35 | B37: 二、委托研发(36+37+39) | C37: =SUM(C38:C39,C41) -> 0
A38: 36 | B38: （一）委托境内机构或个人进行研发活动所发生的费用
A39: 37 | B39: （二）委托境外机构进行研发活动发生的费用
A40: 38 | B40: 其中：允许加计扣除的委托境外机构进行研发活动发生的费用
A41: 39 | B41: （三）委托境外个人进行研发活动发生的费用
A42: 40 | B42: 三、年度研发费用小计(2+36×80%+38) | C42: =C4+C38*80%+C40 -> 800
A43: 41 | B43: （一）本年费用化金额 | C43: 800
A44: 42 | B44: （二）本年资本化金额
A45: 43 | B45: 四、本年形成无形资产摊销额
A46: 44 | B46: 五、以前年度形成无形资产本年摊销额
A47: 45 | B47: 六、允许扣除的研发费用合计（41+43+44） | C47: =ROUND(C43+C45+C46,2) -> 800
A48: 46 | B48: 减：特殊收入部分 | D48: 当期研发过程中形成的下脚料、残次品、中间试制品等特殊收入
A49: 47 | B49: 七、允许扣除的研发费用抵减特殊收入后的金额(45-46) | C49: =ROUND(C47-C48,2) -> 800
A50: 48 | B50: 减：当年销售研发活动直接形成产品（包括组成部分）对应的材料部分
A51: 49 | B51: 减：以前年度销售研发活动直接形成产品（包括组成部分）对应材料部分结转金额
A52: 50 | B52: 八、加计扣除比例及计算方法 | C52: 110 | F52: 110 | G52: 全年100%（制造业、科技型中小企业）
A53: L1 | B53: 本年允许加计扣除的研发费用总额（ 47-48-49） | C53: =IF(ROUND(C49-C50-C51,2)<0,0,ROUND(C49-C50-C51,2)) -> 800 | F53: 121 | G53: 前三季度75%四季度100%，按比例计算
A54: L1.1 | B54: 其中： 第四季度允许加计扣除的研发费用金额 | D54: 110时不填 | F54: 122 | G54: 前三季度75%四季度100%，按实际发生金额计算
A55: L1.2 | B55: 前三季度允许加计扣除的研发费用金额（ L1-L1.1） | D55: 110时不填
A56: 51 | B56: 九、本年研发费用加计扣除总额（47-48-49）×50 | C56: =IF(C52=110,C53,IF(OR(C52=121,C52=122),ROUND(C54+C55*75%,2),0)) -> 800
A57: 52 | B57: 十、销售研发活动直接形成产品（包括组成部分）对应材料部分结转以后年度扣减金额（当47-48-49≥0，本行＝0；当47-48-49＜0，本行＝47-48-49的绝对值) | C57: =IF((C49-C50-C51)>=0,0,ABS(C49-C50-C51)) -> 0

Sheet A107020
A1: A107020 所得减免优惠明细表
A2: 行次 | B2: 减免项目 | C2: 项目名称 | D2: 优惠事项名称 | E2: 优惠方式 | F2: 项目收入 | G2: 项目成本 | H2: 相关税费 | I2: 应分摊期间费用 | J2: 纳税调整额 | K2: 项目所得额 | M2: 减免所得额
K3: 免税项目 | L3: 减半项目
C4: 1 | D4: 2 | E4: 3 | F4: 4 | G4: 5 | H4: 6 | I4: 7 | J4: 8 | K4: 9 | L4: 10 | M4: 11（9+10×50%）
A5: 1 | B5: 一、农、林、牧、渔业项目 | C5: 鱼类养殖 | D5: 海水养殖、内陆养殖 | E5: 减半征收 | F5: 850000 | G5: 400000 | H5: 0 | I5: 50000 | K5: =IF(AND(E5="免税",F5-G5-H5-I5+J5>0),F5-G5-H5-I5+J5,0) -> 0 | L5: =IF(AND(E5="减半征收",F5-G5-H5-I5+J5>0),F5-G5-H5-I5+J5,0) -> 400000 | M5: =IF(K5+L5*50%<0,0,K5+L5*50%) -> 200000
A6: 2 | C6: 虾类养殖 | D6: 海水养殖、内陆养殖 | E6: 减半征收 | F6: 800000 | G6: 700000 | I6: 200000 | K6: =IF(AND(E6="免税",F6-G6-H6-I6+J6>0),F6-G6-H6-I6+J6,0) -> 0 | L6: =IF(AND(E6="减半征收",F6-G6-H6-I6+J6>0),F6-G6-H6-I6+J6,0) -> 0 | M6: =IF(K6+L6*50%<0,0,K6+L6*50%) -> 0 | O6: 项目所得是负数，减免所得额为0
A7: 3 | C7: 小计 | D7: * | E7: * | F7: =ROUND(SUM(F5:F6),2) -> 1650000 | G7: =ROUND(SUM(G5:G6),2) -> 1100000 | H7: 0 | I7: 250000 | J7: 0 | K7: 0 | L7: 400000 | M7: 200000 | O7: 项目所得大于主表第19行“纳税调整后所得”，则孰小填列。
A8: 4 | B8: 二、国家重点扶持的公共基础设施项目 | K8: =IF(AND(E8="免税",F8-G8-H8-I8+J8>0),F8-G8-H8-I8+J8,0) -> 0 | L8: =IF(AND(E8="减半征收",F8-G8-H8-I8+J8>0),F8-G8-H8-I8+J8,0) -> 0 | M8: 0
A9: 5 | K9: =IF(AND(E9="免税",F9-G9-H9-I9+J9>0),F9-G9-H9-I9+J9,0) -> 0 | L9: =IF(AND(E9="减半征收",F9-G9-H9-I9+J9>0),F9-G9-H9-I9+J9,0) -> 0 | M9: 0
A10: 6 | C10: 小计 | D10: * | E10: * | F10: =ROUND(SUM(F8:F9),2) -> 0 | G10: =ROUND(SUM(G8:G9),2) -> 0 | H10: 0 | I10: 0 | J10: 0 | K10: 0 | L10: 0 | M10: 0
A11: 7 | B11: 三、符合条件的环境保护、节能节水项目 | K11: =IF(AND(E11="免税",F11-G11-H11-I11+J11>0),F11-G11-H11-I11+J11,0) -> 0 | L11: =IF(AND(E11="减半征收",F11-G11-H11-I11+J11>0),F11-G11-H11-I11+J11,0) -> 0 | M11: 0
A12: 8 | K12: =IF(AND(E12="免税",F12-G12-H12-I12+J12>0),F12-G12-H12-I12+J12,0) -> 0 | L12: =IF(AND(E12="减半征收",F12-G12-H12-I12+J12>0),F12-G12-H12-I12+J12,0) -> 0 | M12: 0
A13: 9 | C13: 小计 | D13: * | E13: * | F13: =ROUND(SUM(F11:F12),2) -> 0 | G13: =ROUND(SUM(G11:G12),2) -> 0 | H13: 0 | I13: 0 | J13: 0 | K13: 0 | L13: 0 | M13: 0
A14: 10 | B14: 四、符合条件的技术转让项目 | D14: * | E14: * | K14: * | L14: * | M14: *
A15: 11 | D15: * | E15: * | K15: * | L15: * | M15: *
A16: 12 | C16: 小计 | E16: * | F16: =ROUND(SUM(F14:F15),2) -> 0 | G16: =ROUND(SUM(G14:G15),2) -> 0 | H16: =ROUND(SUM(H14:H15),2) -> 0 | I16: =ROUND(SUM(I14:I15),2) -> 0 | J16: =ROUND(SUM(J14:J15),2) -> 0 | K16: =IF(AND(D16="1.一般技术转让项目",F16-G16-H16-I16+J16<0),0,IF(AND(D16="1.一般技术转让项目",F16-G16-H16-I16+J16<=5000000),F16-G16-H16-I16+J16,IF(AND(D16="1.一般技术转让项目",F16-G16-H16-I16+J16>5000000),5000000,0)))+IF(AND(D16="2. 中关村国家自主创新示范区特定区域技术转让项目",F16-G16-H16-I16+J16<0),0,IF(AND(D16="2. 中关村国家自主创新示范区特定区域技术转让项目",F16-G16-H16-I16+J16<=20000000),F16-G16-H16-I16+J16,IF(AND(D16="2. 中关村国家自主创新示范区特定区域技术转让项目",F16-G16-H16-I16+J16>20000000),20000000,0))) -> 0 | L16: =IF(F16-G16-H16-I16+J16-K16>0,F16-G16-H16-I16+J16-K16,0) -> 0 | M16: =IF(K16+L16*50%<0,0,K16+L16*50%) -> 0
A17: 13 | B17: 五、清洁发展机制项目 | D17: * | K17: =IF(AND(E17="免税",F17-G17-H17-I17+J17>0),F17-G17-H17-I17+J17,0) -> 0 | L17: =IF(AND(E17="减半征收",F17-G17-H17-I17+J17>0),F17-G17-H17-I17+J17,0) -> 0 | M17: =IF(K17+L17*50%<0,0,K17+L17*50%) -> 0
A18: 14 | D18: * | K18: =IF(AND(E18="免税",F18-G18-H18-I18+J18>0),F18-G18-H18-I18+J18,0) -> 0 | L18: =IF(AND(E18="减半征收",F18-G18-H18-I18+J18>0),F18-G18-H18-I18+J18,0) -> 0 | M18: 0
A19: 15 | C19: 小计 | D19: * | E19: * | F19: =ROUND(SUM(F17:F18),2) -> 0 | G19: =ROUND(SUM(G17:G18),2) -> 0 | H19: 0 | I19: 0 | J19: 0 | K19: 0 | L19: 0 | M19: 0
A20: 16 | B20: 六、符合条件的节能服务公司实施合同能源管理项目 | D20: * | K20: =IF(AND(E20="免税",F20-G20-H20-I20+J20>0),F20-G20-H20-I20+J20,0) -> 0 | L20: =IF(AND(E20="减半征收",F20-G20-H20-I20+J20>0),F20-G20-H20-I20+J20,0) -> 0 | M20: 0
A21: 17 | D21: * | K21: =IF(AND(E21="免税",F21-G21-H21-I21+J21>0),F21-G21-H21-I21+J21,0) -> 0 | L21: =IF(AND(E21="减半征收",F21-G21-H21-I21+J21>0),F21-G21-H21-I21+J21,0) -> 0 | M21: 0
A22: 18 | C22: 小计 | D22: * | E22: * | F22: =ROUND(SUM(F20:F21),2) -> 0 | G22: =ROUND(SUM(G20:G21),2) -> 0 | H22: 0 | I22: 0 | J22: 0 | K22: 0 | L22: 0 | M22: 0
A23: 19 | B23: 七、线宽小于130纳米（含）的集成电路生产项目 | D23: * | K23: =IF(AND(E23="免税",F23-G23-H23-I23+J23>0),F23-G23-H23-I23+J23,0) -> 0 | L23: =IF(AND(E23="减半征收",F23-G23-H23-I23+J23>0),F23-G23-H23-I23+J23,0) -> 0 | M23: 0
A24: 20 | D24: * | K24: =IF(AND(E24="免税",F24-G24-H24-I24+J24>0),F24-G24-H24-I24+J24,0) -> 0 | L24: =IF(AND(E24="减半征收",F24-G24-H24-I24+J24>0),F24-G24-H24-I24+J24,0) -> 0 | M24: 0
A25: 21 | C25: 小计 | D25: * | E25: * | F25: =ROUND(SUM(F23:F24),2) -> 0 | G25: =ROUND(SUM(G23:G24),2) -> 0 | H25: 0 | I25: 0 | J25: 0 | K25: 0 | L25: 0 | M25: 0
A26: 22 | B26: 八、线宽小于65纳米（含）或投资额超过150亿元的集成电路生产项目 | D26: * | K26: =IF(AND(E26="免税",F26-G26-H26-I26+J26>0),F26-G26-H26-I26+J26,0) -> 0 | L26: =IF(AND(E26="减半征收",F26-G26-H26-I26+J26>0),F26-G26-H26-I26+J26,0) -> 0 | M26: 0
A27: 23 | D27: * | K27: =IF(AND(E27="免税",F27-G27-H27-I27+J27>0),F27-G27-H27-I27+J27,0) -> 0 | L27: =IF(AND(E27="减半征收",F27-G27-H27-I27+J27>0),F27-G27-H27-I27+J27,0) -> 0 | M27: 0
A28: 24 | C28: 小计 | D28: * | E28: * | F28: =ROUND(SUM(F26:F27),2) -> 0 | G28: =ROUND(SUM(G26:G27),2) -> 0 | H28: 0 | I28: 0 | J28: 0 | K28: 0 | L28: 0 | M28: 0
A29: 25 | B29: 九、线宽小于28纳米（含）的集成电路生产项目 | D29: * | K29: =IF(AND(E29="免税",F29-G29-H29-I29+J29>0),F29-G29-H29-I29+J29,0) -> 0 | L29: =IF(AND(E29="减半征收",F29-G29-H29-I29+J29>0),F29-G29-H29-I29+J29,0) -> 0 | M29: =IF(K29+L29*50%<0,0,K29+L29*50%) -> 0
A30: 26 | D30: * | K30: =IF(AND(E30="免税",F30-G30-H30-I30+J30>0),F30-G30-H30-I30+J30,0) -> 0 | L30: =IF(AND(E30="减半征收",F30-G30-H30-I30+J30>0),F30-G30-H30-I30+J30,0) -> 0 | M30: 0
A31: 27 | C31: 小计 | D31: * | E31: * | F31: =ROUND(SUM(F29:F30),2) -> 0 | G31: =ROUND(SUM(G29:G30),2) -> 0 | H31: 0 | I31: 0 | J31: 0 | K31: =ROUND(SUM(K29:K30),2) -> 0 | L31: =ROUND(SUM(L29:L30),2) -> 0 | M31: 0
A32: 28 | B32: 十、其他 | K32: =IF(AND(E32="免税",F32-G32-H32-I32+J32>0),F32-G32-H32-I32+J32,0) -> 0 | L32: =IF(AND(E32="减半征收",F32-G32-H32-I32+J32>0),F32-G32-H32-I32+J32,0) -> 0 | M32: 0
A33: 29 | K33: =IF(AND(E33="免税",F33-G33-H33-I33+J33>0),F33-G33-H33-I33+J33,0) -> 0 | L33: =IF(AND(E33="减半征收",F33-G33-H33-I33+J33>0),F33-G33-H33-I33+J33,0) -> 0 | M33: 0
A34: 30 | C34: 小计 | D34: * | E34: * | F34: =ROUND(SUM(F32:F33),2) -> 0 | G34: =ROUND(SUM(G32:G33),2) -> 0 | H34: 0 | I34: 0 | J34: 0 | K34: 0 | L34: 0 | M34: 0
A35: 31 | B35: 合 计 | C35: * | D35: * | E35: * | F35: =ROUND(F7+F10+F13+F16+F19+F22+F25+F28+F34,2) -> 1650000 | G35: =ROUND(G7+G10+G13+G16+G19+G22+G25+G28+G34,2) -> 1100000 | H35: 0 | I35: 250000 | J35: 0 | K35: 0 | L35: 400000 | M35: 200000
B40: 一、农林牧渔的优惠事项名称： | E40: 二、公共基础设施优惠事项名称 | I40: 三、环境保护，节能节水优惠事项名称

Sheet A107030 (hidden)
A1: A107030 抵扣应纳税所得额明细表
A2: 行次 | B2: 项目 | C2: 合计金额 | D2: 投资于未上市中小高新 技术企业 | E2: 投资于种子期、初创期 科技型企业
C3: 1=2+3 | D3: 2 | E3: 3
A4: 一、创业投资企业直接投资按投资额一定比例抵扣应纳税所得额
A5: 1 | B5: 本年新增的符合条件的股权投资额 | C5: =ROUND(SUM(D5:E5),2) -> 0
A6: 2 | B6: 税收规定的抵扣率 | C6: 0.7 | D6: 0.7 | E6: 0.7
A7: 3 | B7: 本年新增的可抵扣的股权投资额（1×2） | C7: =ROUND(C5*C6,2) -> 0 | D7: =ROUND(D5*D6,2) -> 0 | E7: 0
A8: 4 | B8: 以前年度结转的尚未抵扣的股权投资余额 | D8: * | E8: *
A9: 5 | B9: 本年可抵扣的股权投资额（3+4） | C9: =ROUND(SUM(C7:C8),2) -> 0 | D9: * | E9: *
A10: 6 | B10: 本年可用于抵扣的应纳税所得额 | C10: =IF((A100000主表!D22-A100000主表!D23-A100000主表!D24-'A107030'!C18)<0,0,A100000主表!D22-A100000主表!D23-A100000主表!D24-'A107030'!C18) -> 0 | D10: * | E10: *
A11: 7 | B11: 本年实际抵扣应纳税所得额 | C11: =IF(C9<=C10,C9,C10) -> 0
A12: 8 | B12: 结转以后年度抵扣的股权投资余额 | C12: =IF(C9>C10,C9-C11,0) -> 0 | D12: * | E12: *
A13: 二、通过有限合伙制创业投资企业投资按一定比例抵扣分得的应纳税所得额
A14: 9 | B14: 本年从有限合伙创投企业应分得的应纳税所得额 | C14: =ROUND(SUM(D14:E14),2) -> 0
A15: 10 | B15: 本年新增的可抵扣投资额 | C15: =ROUND(SUM(D15:E15),2) -> 0
A16: 11 | B16: 以前年度结转的可抵扣投资额余额 | D16: * | E16: *
A17: 12 | B17: 本年可抵扣投资额（10+11） | C17: =ROUND(SUM(C15:C16),2) -> 0 | D17: * | E17: *
A18: 13 | B18: 本年实际抵扣应分得的应纳税所得额 | C18: =ROUND(SUM(D18:E18),2) -> 0
A19: 14 | B19: 结转以后年度抵扣的投资额余额 | C19: =ROUND(C17-C18,2) -> 0 | D19: * | E19: *
A20: 三、抵扣应纳税所得额合计
A21: 15 | B21: 合 计（7+13） | C21: =ROUND(C11+C18,2) -> 0 | D21: =ROUND(D11+D18,2) -> 0 | E21: =ROUND(E11+E18,2) -> 0

Sheet A107040
A1: A107040 减免所得税优惠明细表
A2: 行次 | B2: 项 目 | C2: 金 额
A3: 1 | B3: 一、符合条件的小型微利企业减免企业所得税 | C3: =小微企业判断与减免税计算!C24 -> 0
A4: 2 | B4: 二、国家需要重点扶持的高新技术企业减按15%的税率征收企业所得税（填写A107041） | C4: ='A107041'!I35 -> 50
A5: 3 | B5: 三、经济特区和上海浦东新区新设立的高新技术企业在区内取得的所得定期减免企业所得税（填写A107041） | C5: ='A107041'!I36 -> 0
A6: 4 | B6: 四、受灾地区农村信用社免征企业所得税 | C6: *
A7: 5 | B7: 五、动漫企业自主开发、生产动漫产品定期减免企业所得税
A8: 6 | B8: 六、线宽小于0.8微米（含）的集成电路生产企业减免企业所得税（填写A107042） | C8: =IF(AND(A000000基础信息表!F15=110,'A107042'!H3=TRUE),'A107042'!E23,0) -> 0
A9: 7 | B9: 七、线宽小于0.25微米的集成电路生产企业减按15%税率征收企业所得税（填写A107042） | C9: *
A10: 8 | B10: 八、投资额超过80亿元的集成电路生产企业减按15%税率征收企业所得税（填写A107042） | C10: *
A11: 9 | B11: 九、线宽小于0.25微米的集成电路生产企业减免企业所得税（填写A107042） | C11: =IF(AND(A000000基础信息表!F15=120,'A107042'!H3=TRUE),'A107042'!E23,0) -> 0
A12: 10 | B12: 十、投资额超过80亿元的集成电路生产企业减免企业所得税（填写A107042） | C12: =IF(AND(A000000基础信息表!F15=130,'A107042'!H3=TRUE),'A107042'!E23,0) -> 0
A13: 11 | B13: 十一、新办集成电路设计企业减免企业所得税（填写A107042） | C13: =IF(AND(A000000基础信息表!F15=240,'A107042'!H3=TRUE),'A107042'!E23,0) -> 0
A14: 12 | B14: 十二、国家规划布局内集成电路设计企业可减按10%的税率征收企业所得税（填写A107042） | C14: *
A15: 13 | B15: 十三、符合条件的软件企业减免企业所得税（填写A107042） | C15: =IF(AND(A000000基础信息表!F15=330,'A107042'!H3=TRUE),'A107042'!E23,0) -> 0
A16: 14 | B16: 十四、国家规划布局内重点软件企业可减按10%的税率征收企业所得税（填写A107042） | C16: *
A17: 15 | B17: 十五、符合条件的集成电路封装、测试企业定期减免企业所得税（填写A107042） | C17: =IF(AND(A000000基础信息表!F15=400,'A107042'!H3=TRUE),'A107042'!E23,0) -> 0
A18: 16 | B18: 十六、符合条件的集成电路关键专用材料生产企业、集成电路专用设备生产企业定期减免企业所得税（填写A107042） | C18: =IF(AND('A107042'!H3=TRUE,OR(A000000基础信息表!F15=500,A000000基础信息表!F15=600)),'A107042'!E23,0) -> 0
A19: 17 | B19: 十七、经营性文化事业单位转制为企业的免征企业所得税
A20: 18 | B20: 十八、符合条件的生产和装配伤残人员专门用品企业免征企业所得税
A21: 19 | B21: 十九、技术先进型服务企业减按15%的税率征收企业所得税
A22: 20 | B22: 二十、服务贸易类技术先进型服务企业减按15%的税率征收企业所得税
A23: 21 | B23: 二十一、设在西部地区的鼓励类产业企业减按15%的税率征收企业所得税
A24: 22 | B24: 二十二、新疆困难地区新办企业定期减免企业所得税
A25: 23 | B25: 二十三、新疆喀什、霍尔果斯特殊经济开发区新办企业定期免征企业所得税
A26: 24 | B26: 二十四、广东横琴、 福建平潭、 深圳前海、 广东南沙等地区的鼓励类产业企业减按 15%税率征收企业所得税（24.1+24.2+24.3+24.4） | C26: =SUM(C27:C30) -> 0
A27: 24.1 | B27: （一）横琴粤澳深度合作区的鼓励类产业企业减按15%税率征收企业所得税
A28: 24.2 | B28: （二）平潭综合实验区的鼓励类产业企业减按15%税率征收企业所得税
A29: 24.3 | B29: （三）前海深港现代服务业合作区的鼓励类产业企业减按15%税率征收企业所得税
A30: 24.4 | B30: （四）南沙先行启动区的鼓励类产业企业减按15%税率征收企业所得税
A31: 25 | B31: 二十五、北京冬奥组委、北京冬奥会测试赛赛事组委会免征企业所得税
A32: 26 | B32: 二十六、线宽小于130纳米的集成电路生产企业减免企业所得税（填写A107042） | C32: =IF(AND(A000000基础信息表!F15=140,'A107042'!H3=TRUE),'A107042'!E23,0) -> 0
A33: 27 | B33: 二十七、线宽小于65纳米或投资额超过150亿元的集成电路生产企业减免企业所得税（填写A107042） | C33: =IF(AND('A107042'!H3=TRUE,OR(A000000基础信息表!F15=131,A000000基础信息表!F15=151)),'A107042'!E23,0) -> 0
A34: 28 | B34: 二十八、其他（28.1+28.2+28.3+28.4+28.5+28.6） | C34: =SUM(C35:C38,C49:C50) -> 0
A35: 28.1 | B35: （一）从事污染防治的第三方企业减按15%的税率征收企业所得税
A36: 28.2 | B36: （二） 上海自贸试验区临港新片区的重点产业企业减按 15%的税率征收企业所得税
A37: 28.3 | B37: （三） 海南自由贸易港鼓励类企业减按 15%税率征收企业所得税
A38: 28.4 | B38: （四） 国家鼓励的集成电路和软件企业减免企业所得税政策（28.4.1+…+28.4.10） | C38: =SUM(C39:C48) -> 0
A39: 28.4.1 | B39: 1.线宽小于 28 纳米（含） 集成电路生产企业减免企业所得税（填写 A107042） | C39: =IF(AND(A000000基础信息表!F15=160,'A107042'!I3=TRUE),'A107042'!E23,0) -> 0
A40: 28.4.2 | B40: 2.线宽小于 65 纳米（含） 集成电路生产企业减免企业所得税（填写 A107042） | C40: =IF(AND(A000000基础信息表!F15=151,'A107042'!I3=TRUE),'A107042'!E23,0) -> 0
A41: 28.4.3 | B41: 3.线宽小于 130 纳米（含） 集成电路生产企业减免企业所得税（填写 A107042） | C41: =IF(AND(A000000基础信息表!F15=140,'A107042'!I3=TRUE),'A107042'!E23,0) -> 0
A42: 28.4.4 | B42: 4.集成电路设计业减免企业所得税（填写 A107042） | C42: =IF(AND(A000000基础信息表!F15=240,'A107042'!I3=TRUE),'A107042'!E23,0) -> 0
A43: 28.4.5 | B43: 5.重点集成电路设计企业减免企业所得税（填写 A107042） | C43: =IF(AND(A000000基础信息表!F15=250,'A107042'!I3=TRUE),'A107042'!E23,0) -> 0
A44: 28.4.6 | B44: 6.集成电路装备企业减免企业所得税（填写 A107042） | C44: =IF(AND(A000000基础信息表!F15=600,'A107042'!I3=TRUE),'A107042'!E23,0) -> 0
A45: 28.4.7 | B45: 7.集成电路材料企业减免企业所得税（填写 A107042） | C45: =IF(AND(A000000基础信息表!F15=500,'A107042'!I3=TRUE),'A107042'!E23,0) -> 0
A46: 28.4.8 | B46: 8.集成电路封装、 测试企业减免企业所得税（填写 A107042） | C46: =IF(AND(A000000基础信息表!F15=400,'A107042'!I3=TRUE),'A107042'!E23,0) -> 0
A47: 28.4.9 | B47: 9.软件企业减免企业所得税（填写 A107042） | C47: =IF(AND(A000000基础信息表!F15=330,'A107042'!I3=TRUE),'A107042'!E23,0) -> 0
A48: 28.4.10 | B48: 10.重点软件企业减免企业所得税（填写 A107042） | C48: =IF(AND(A000000基础信息表!F15=340,'A107042'!I3=TRUE),'A107042'!E23,0) -> 0
A49: 28.5 | B49: （二）其他1
A50: 28.6 | B50: （三）其他2
A51: 29 | B51: 二十九、减：项目所得额按法定税率减半征收企业所得税叠加享受减免税优惠 | C51: 20
A52: 30 | B52: 三十、支持和促进重点群体创业就业企业限额减征企业所得税(30.1+30.2) | C52: =ROUND(SUM(C53:C54),2) -> 0
A53: 30.1 | B53: （一）企业招用建档立卡贫困人口就业扣减企业所得税
A54: 30.2 | B54: （二）企业招用登记失业半年以上人员就业扣减企业所得税
A55: 31 | B55: 三十一、扶持自主就业退役士兵创业就业企业限额减征企业所得税
A56: 32 | B56: 三十二、 符合条件的公司型创投企业按照企业年末个人股东持股比例减免企业所得税（个人股东持股比例 %）
A57: 33 | B57: 合 计（1+2+…+28-29+30+31+32） | C57: =ROUND(SUM(C3:C26,C31:C34)-C51+C52+C55+C56,2) -> 30
A114: 数据引用到100000主表
A144: 验算的方法：
A145: 方法一：500*15%+200*（25%-15%） ＝75+20 ＝95（填报口径）
A146: 方法二：300*15%+400*12.5% ＝45+50 ＝95
A147: 方法三：300*15%+400*50%*25% ＝45+50 ＝95

Sheet 小微企业判断与减免税计算 (hidden)
A1: A107040中的小微企业享受优惠计算表：
A2: 小型微利企业判断与减免所得税计算表
A3: 一、请检查以下自动列出的判断条件，如果不正确，请重新填列企业基础信息表、公共参数表或申报表，其中“所属行业”如果不正确，请手动指定：
A4: 序号 | B4: 项 目 | C4: 取值 | D4: 备注
A5: 1 | B5: 所属行业 | C5: =IF(ISERROR(VLOOKUP(A000000基础信息表!F6,行业分类代码表!$D$4:$G$1430,4,0)),0,VLOOKUP(A000000基础信息表!F6,行业分类代码表!$D$4:$G$1430,4,0)) -> 0 | D5: 根据基础信息表所填行业代码自动取值
B6: 如果上栏自动取值不正确，请在右边手动选择： | D6: 可手动指定所属行业
B7: 复核确认的所属行业 | C7: =IF(OR(C6=0,C6=""),C5,C6) -> 0
A8: 2 | B8: 从业人数 | C8: =A000000基础信息表!L5 -> 0
A9: 3 | B9: 资产总额 | C9: =A000000基础信息表!F5*10000 -> 0
A10: 4 | B10: 是否从事国家限制和禁止行业 | C10: =IF(A000000基础信息表!T6=A000000基础信息表!U6,"请修改基础信息表",IF(A000000基础信息表!T6=TRUE,"是",IF(A000000基础信息表!U6=TRUE,"否",0))) -> 否
A11: 5 | B11: 本年度应纳税所得额 | C11: =A100000主表!D26 -> 0
A12: 6 | B12: 本年度为 | C12: =主界面!C8 -> 2022
A13: 二、小微企业判断及优惠计算
A14: 1.1 | B14: 是否《企业所得税法》及实施条例规定的小微企业 | C14: =IF(OR(AND(C7="工业企业",C10="否",C11<=300000,C8<=100,C9<=30000000),AND(C7="其他企业",C10="否",C11<=300000,C8<=80,C9<=10000000))=TRUE,"是","否") -> 否
A15: 1.2 | B15: 是否符合2018年扩围规定的小微企业条件 | C15: =IF(OR(AND(C7="工业企业",C10="否",C11<=1000000,C8<=100,C9<=30000000),AND(C7="其他企业",C10="否",C11<=1000000,C8<=80,C9<=10000000))=TRUE,"是","否") -> 否
A16: 1.3 | B16: 是否符合2019年扩围规定的小微企业条件 | C16: =IF(AND(C10="否",C11<=3000000,C8<=300,C9<=50000000)=TRUE,"是","否") -> 是
A17: 2 | B17: 2018年享受小微企业所得税优惠额 | C17: =IF(AND(C12=2018,C15="是"),C11*15%,0) -> 0 | D17: 应税所得不超100万时享受
A18: 3 | B18: 2019-2020年享受小微企业所得税优惠额 | C18: =IF(AND(C12>=2019,C12<=2020,C11<=1000000,C16="是"),C11*20%,IF(AND(C12>=2019,C12<=2020,C11<=3000000,C16="是"),1000000*20%+(C11-1000000)*15%,0)) -> 0 | D18: 应税所得不超300万时享受
A19: 4 | B19: 2021-2022年享受小微企业所得税优惠额 | C19: =IF(AND(C12=2021,C11<=1000000,C16="是"),C11*22.5%,IF(AND(C12=2021,C11<=3000000,C16="是"),1000000*22.5%+(C11-1000000)*15%,0)) -> 0 | D19: 应税所得不超300万时享受
A20: 5 | B20: 2022年享受小微企业所得税优惠额（公式暂设至2024年，若2023年所得额100万以内部分优惠政策不延续，需修订公式） | C20: =IF(AND(C12>=2022,C12<=2024,C11<=1000000,C16="是"),C11*22.5%,IF(AND(C12>=2022,C12<=2024,C11<=3000000,C16="是"),1000000*22.5%+(C11-1000000)*20%,0)) -> 0 | D20: 应税所得不超300万时享受
A21: 6 | B21: 2023年及以后年度享受小微企业所得税优惠额 | D21: 届时请根据实际适用政策设计公式
B23: A107040表中应填报数据： | D23: =IF(AND(C12>0,C12<2018),"该年度所得税申报不适用本版申报表","") -> 
B24: 一、符合条件的小型微利企业 | C24: =SUM(C17:C20) -> 0
A26: 一 | B26: 小微企业具体限制条件（企业所得税法的规定）
A27: 1 | B27: 从事国家非限制和禁止行业的企业
A28: 2 | B28: 工业企业，年度应纳税所得额不超过30万元，从业人数不超过100人，资产总额不超过3000万元。
A29: 3 | B29: 其他企业，年度应纳税所得额不超过30万元，从业人数不超过80人，资产总额不超过1000万元。
A30: 二 | B30: 小微企业所得税优惠规定
A31: 1 | B31: 符合上述条件的小微企业减按20%的税率征收企业所得税
A32: 2 | B32: 财税〔2014〕34号：其中对年应纳税所得额低于10万元（含10万元）的小型微利企业，其所得减按50%计入应纳税所得额，按20%的税率缴纳企业所得税（至2016年）。
A33: 3 | B33: 财税〔2015〕34号：自2015年1月1日至2017年12月31日，对年应纳税所得额低于20万元（含20万元）的小型微利企业，其所得减按50%计入应纳税所得额，按20%的税率缴纳企业所得税。
A34: 4 | B34: 财税〔2015〕99号：自2015年10月1日起至2017年12月31日，对年应纳税所得额在20万元到30万元（含30万元）之间的小型微利企业，其所得减按50%计入应纳税所得额，按20%的税率缴纳企业所得税。财税〔2015〕34号）继续执行。
A35: 5 | B35: 财税〔2017〕43号：自2017年1月1日至2019年12月31日，将小型微利企业的年应纳税所得额上限由30万元提高至50万元,对年应纳税所得额低于50万元（含50万元）的小型微利企业，其所得减按50%计入应纳税所得额，按20%的税率缴纳企业所得税。(财税〔2015〕34号和财税〔2015〕99号自2017年1月1日起废止)
A36: 6 | B36: 财税〔2018〕77号 ：自2018年1月1日至2020年12月31日，将小型微利企业的年应纳税所得额上限由50万元提高至100万元，对年应纳税所得额低于100万元（含100万元）的小型微利企业，其所得减按50%计入应纳税所得额，按20%的税率缴纳企业所得税。（财税〔2017〕43号自2018年1月1日起废止。）
A37: 7 | B37: 财税〔2019〕13号：自2019年1月1日至2021年12月31日，对小型微利企业年应纳税所得额不超过100万元的部分，减按25%计入应纳税所得额，按20%的税率缴纳企业所得税;对年应纳税所得额超过100万元但不超过300万元的部分，减按50%计入应纳税所得额，按20%的税率缴纳企业所得税。上述小型微利企业是指从事国家非限制和禁止行业，且同时符合年度应纳税所得额不超过300万元、从业人数不超过300人、资产总额不超过5000万元等三个条件的企业。（财税〔2018〕77号自2019年1月1日起废止）
A38: 8 | B38: 财政部 税务总局公告2021年第12号《财政部 税务总局关于实施小微企业和个体工商户所得税优惠政策的公告》 ：一、对小型微利企业年应纳税所得额不超过100万元的部分，在《财政部 税务总局关于实施小微企业普惠性税收减免政策的通知》(财税〔2019〕13号)第二条规定的优惠政策基础上，再减半征收企业所得税。二、对个体工商户年应纳税所得额不超过100万元的部分，在现行优惠政策基础上，减半征收个人所得税。三、本公告执行期限为2021年1月1日至2022年12月31日。
A39: 9 | B39: 财政部 税务总局公告2022年第13号《财政部 税务总局关于进一步实施小微企业所得税优惠政策的公告》：一、对小型微利企业年应纳税所得额超过100万元但不超过300万元的部分，减按25%计入应纳税所得额，按20%的税率缴纳企业所得税。二、本公告所称小型微利企业，是指从事国家非限制和禁止行业，且同时符合年度应纳税所得额不超过300万元、从业人数不超过300人、资产总额不超过5000万元等三个条件的企业。三、本公告执行期限为2022年1月1日至2024年12月31日。

Sheet A107041
A1: A107041 高新技术企业优惠情况及明细表
A2: 税收优惠基本信息
A3: 1 | B3: 企业主要产品（服务）发挥核心支持作用的技术所属范围 | D3: 国家重点支持的高新技术领域 | E3: 一级领域 | G3: 410000 | J3: 410000电子信息技术
A4: 2 | E4: 二级领域 | G4: 410100 | J4: 410100软件
A5: 3 | E5: 三级领域 | G5: 410101 | J5: 410101基础系统
A6: 税收优惠有关情况
A7: 4 | B7: 收入指标 | C7: 一、本年高新技术产品（服务）收入（5+6） | I7: =ROUND(SUM(I8:I9),2) -> 0
A8: 5 | C8: 其中：产品（服务）收入
A9: 6 | C9: 技术性收入
A10: 7 | C10: 二、本年企业总收入(8-9) | I10: =ROUND(I11-I12,2) -> 0
A11: 8 | C11: 其中：收入总额
A12: 9 | C12: 不征税收入
A13: 10 | C13: 三、本年高新技术产品（服务）收入占企业总收入的比例（4÷7） | I13: =IFERROR(I7/I10,0) -> 0 | J13: 不低于60%
A14: 11 | B14: 人员指标 | C14: 四、本年科技人员数
A15: 12 | C15: 五、本年职工总数
A16: 13 | C16: 六、本年科技人员占企业当年职工总数的比例（11÷12） | I16: =IFERROR(I14/I15,0) -> 0 | J16: 不低于10%
A17: 14 | B17: 研发费用指标 | C17: 高新研发费用归集年度 | F17: 本年度 | G17: 前一年度 | H17: 前二年度 | I17: 合计
F18: 1 | G18: 2 | H18: 3 | I18: 4
A19: 15 | C19: 七、归集的高新研发费用金额（16+25） | F19: =ROUND(F20+F29,2) -> 0 | G19: =ROUND(G20+G29,2) -> 0 | H19: =ROUND(H20+H29,2) -> 0 | I19: =SUM(F19:H19) -> 0
A20: 16 | C20: （一）内部研究开发投入(17+…+22+24) | F20: =ROUND(SUM(F21:F26)+F28,2) -> 0 | G20: =ROUND(SUM(G21:G26)+G28,2) -> 0 | H20: =ROUND(SUM(H21:H26)+H28,2) -> 0 | I20: =SUM(F20:H20) -> 0
A21: 17 | C21: 1.人员人工费用 | I21: =SUM(F21:H21) -> 0
A22: 18 | C22: 2.直接投入费用 | I22: 0
A23: 19 | C23: 3.折旧费用与长期待摊费用 | I23: 0
A24: 20 | C24: 4.无形资产摊销费用 | I24: 0
A25: 21 | C25: 5.设计费用 | I25: 0
A26: 22 | C26: 6.装备调试费与实验费用 | I26: 0
A27: 23 | C27: 7.其他费用 | I27: 0
A28: 24 | C28: 其中：可计入研发费用的其他费用 | F28: =MIN(SUM(F21:F26)*20%/(1-20%)+0,F27+0) -> 0 | G28: =MIN(SUM(G21:G26)*20%/(1-20%)+0,G27+0) -> 0 | H28: =MIN(SUM(H21:H26)*20%/(1-20%)+0,H27+0) -> 0 | I28: 0
A29: 25 | C29: （二）委托外部研发费用[(26+28)×80%] | F29: =ROUND((F30+F32)*80%,2) -> 0 | G29: =ROUND((G30+G32)*80%,2) -> 0 | H29: =ROUND((H30+H32)*80%,2) -> 0 | I29: 0
A30: 26 | C30: 1.境内的外部研发费 | I30: 0
A31: 27 | C31: 2.境外的外部研发费 | I31: 0
A32: 28 | C32: 其中：可计入研发费用的境外的外部研发费 | F32: =MIN((SUM(F21:F27)+F30)*40%/(1-40%)+0,F31+0) -> 0 | G32: =MIN((SUM(G21:G27)+G30)*40%/(1-40%)+0,G31+0) -> 0 | H32: =MIN((SUM(H21:H27)+H30)*40%/(1-40%)+0,H31+0) -> 0 | I32: 0
A33: 29 | C33: 八、销售（营业）收入 | I33: 0
A34: 30 | C34: 九、三年研发费用占销售（营业）收入的比例（15行4列÷29行4列） | I34: =IFERROR(I19/I33,0) -> 0 | J34: 销售收入小于5000（含）万元的，比例不低于5%，收入5000万元至2亿元的不低于4%，收入2亿元以上的不低于3%
A35: 31 | B35: 减免税额 | C35: 十、国家需要重点扶持的高新技术企业减征企业所得税 | I35: 50 | J35: 和前面的A107040表中的第2行互等
A36: 32 | C36: 十一、经济特区和上海浦东新区新设立的高新技术企业定期减免税额 | J36: 和前面的A107040表中的第3行互等

Sheet A107042 (hidden)
A1: A107042 软件、集成电路企业优惠情况及明细表
A2: 税收优惠基本信息 | H2: 原政策 | I2: 新政策
A3: 选择适用优惠政策 | C3: 延续适用原有优惠政策 适用新出台优惠政策 | H3: FALSE | I3: FALSE
A4: 减免方式1 | D4: 获利年度\开始计算优惠期年度1
A5: 减免方式2 | D5: 获利年度\开始计算优惠期年度2
A6: 税收优惠有关情况
A7: 行次 | B7: 项 目 | E7: 数量\金额
A8: 1 | B8: 人员指标 | C8: 一、企业本年月平均职工总人数
A9: 2 | C9: 其中：签订劳动合同关系且具有大学专\本科以上学历的职工人数
A10: 3 | C10: 研究开发人员人数
A11: 4 | B11: 研发费用指标 | C11: 二、研发费用总额
A12: 5 | C12: 其中：企业在中国境内发生的研发费用金额
A13: 6 | B13: 收入指标 | C13: 三、企业收入总额
A14: 7 | C14: 四、符合条件的销售（营业）收入
A15: 8 | C15: 其中：自主设计、自主开发销售及服务收入
A16: 9 | B16: 知识产权指标 | C16: 五、拥有核心关键技术和属于本企业的知识产权总数
A17: 10 | C17: 其中：发明专利
A18: 11 | C18: 集成电路布图设计登记
A19: 12 | C19: 计算机 软件著作权
A20: 13 | B20: 业务类型 及领域 | C20: 是否从事 8 英寸及以下集成电路生产 | E20: 是 否
A21: 14 | C21: 是否按照开发、销售嵌入式软件企业条件享受政策 | E21: 是 否
A22: 15 | C22: 重点集成电路设计领域和重点软件领域
A23: 16 | B23: 减免税额

Sheet A107050
A1: A107050 税额抵免优惠明细表
A2: 行 次 | B2: 项目 | C2: 年度 | D2: 本年 抵免前 应纳税额 | E2: 本年允许抵免的专用设备投资额 | F2: 本年 可抵免 税额 | G2: 以前年度已抵免额 | M2: 本年实际抵免的各年度税额 | N2: 可结转以后年度抵免的税额
G3: 前五年度 | H3: 前四年度 | I3: 前三年度 | J3: 前二年度 | K3: 前一年度 | L3: 小计
C4: 1 | D4: 2 | E4: 3 | F4: 4=3×10% | G4: 5 | H4: 6 | I4: 7 | J4: 8 | K4: 9 | L4: 10（5+6+7+8+9） | M4: 11 | N4: 12（4-10-11）
A5: 1 | B5: 前五年度 | C5: =IF(C6-1>0,C6-1,0) -> 2017 | F5: =ROUND(E5*0.1,2) -> 0 | L5: =IF(OR(SUM(G5:K5)<0,SUM(G5:K5)>ABS(F5)),"数据有误",SUM(G5:K5)) -> 0 | M5: =IF(D10<=0,0,IF(F5<=0,0,IF(F5-L5<=D10,F5-L5,D10))) -> 0 | N5: *
A6: 2 | B6: 前四年度 | C6: =IF(C7-1>0,C7-1,0) -> 2018 | F6: =ROUND(E6*0.1,2) -> 0 | G6: * | L6: =IF(OR(SUM(H6:K6)<0,SUM(H6:K6)>ABS(F6)),"数据有误",SUM(H6:K6)) -> 0 | M6: =IF(D10<=0,0,IF(F6<=0,0,IF(F6-L6<=D10-M5,F6-L6,D10-M5))) -> 0 | N6: =ROUND(F6-L6-M6,2) -> 0
A7: 3 | B7: 前三年度 | C7: =IF(C8-1>0,C8-1,0) -> 2019 | F7: 0 | G7: * | H7: * | L7: =IF(OR(SUM(I7:K7)<0,SUM(I7:K7)>ABS(F7)),"数据有误",SUM(I7:K7)) -> 0 | M7: =IF(D10<=0,0,IF(F7<=0,0,IF(F7-L7<=D10-SUM(M5:M6),F7-L7,D10-SUM(M5:M6)))) -> 0 | N7: =ROUND(F7-L7-M7,2) -> 0
A8: 4 | B8: 前二年度 | C8: =IF(C9-1>0,C9-1,0) -> 2020 | F8: 0 | G8: * | H8: * | I8: * | L8: =IF(OR(SUM(J8:K8)<0,SUM(J8:K8)>ABS(F8)),"数据有误",SUM(J8:K8)) -> 0 | M8: =IF(D10<=0,0,IF(F8<=0,0,IF(F8-L8<=D10-SUM(M5:M7),F8-L8,D10-SUM(M5:M7)))) -> 0 | N8: =ROUND(F8-L8-M8,2) -> 0
A9: 5 | B9: 前一年度 | C9: =IF(C10-1>0,C10-1,0) -> 2021 | F9: 0 | G9: * | H9: * | I9: * | J9: * | L9: =IF(OR(K9<0,K9>ABS(F9)),"数据有误",K9) -> 0 | M9: =IF(D10<=0,0,IF(F9<=0,0,IF(F9-L9<=D10-SUM(M5:M8),F9-L9,D10-SUM(M5:M8)))) -> 0 | N9: =ROUND(F9-L9-M9,2) -> 0
A10: 6 | B10: 本年度 | C10: =主界面!C8 -> 2022 | D10: =A100000主表!D28-A100000主表!D29 -> -30 | F10: 0 | G10: * | H10: * | I10: * | J10: * | K10: * | L10: * | M10: =IF(D10<=0,0,IF(F10<=0,0,IF(F10<=D10-SUM(M5:M9),F10,D10-SUM(M5:M9)))) -> 0 | N10: =ROUND(F10-M10,2) -> 0
A11: 7 | B11: 本年实际抵免税额合计 | M11: =ROUND(SUM(M5:M10),2) -> 0 | N11: *
A12: 8 | B12: 可结转以后年度抵免的税额合计 | N12: =ROUND(SUM(N6:N10),2) -> 0
A13: 9 | B13: 专用设备 投资情况 | C13: 本年允许抵免的环境保护专用设备投资额
A14: 10 | C14: 本年允许抵免节能节水的专用设备投资额
A15: 11 | C15: 本年允许抵免的安全生产专用设备投资额
D18: 直接抵免的企业所得税税额，不是应纳税所得额

Sheet A108000 (hidden)
A1: A108000 境外所得税收抵免明细表
A2: 行 次 | B2: 国家 （地区） | C2: 境外税前所得 | D2: 境外所得纳税调整后所得 | E2: 弥补境外以前年度亏损 | F2: 境外应纳税所得额 | G2: 抵减境内亏损 | H2: 抵减境内亏损后的境外应纳税所得额 | I2: 税率 | J2: 境外所得应纳税额 | K2: 境外所得可抵免税额 | L2: 境外所得抵免限额 | M2: 本年可抵免境外所得税额 | N2: 未超过境外所得税抵免限额的余额 | O2: 本年可抵免以前年度未抵免境外所得税额 | P2: 按简易办法计算 | T2: 境外所得抵免所得税额合计
P3: 按低于12.5%的实际税率计算的抵免额 | Q3: 按12.5%计算的抵免额 | R3: 按25%计算的抵免额 | S3: 小计
B4: 1 | C4: 2 | D4: 3 | E4: 4 | F4: 5（3-4） | G4: 6 | H4: 7（5-6） | I4: 8 | J4: 9（7×8） | K4: 10 | L4: 11 | M4: 12 | N4: 13（11-12） | O4: 14 | P4: 15 | Q4: 16 | R4: 17 | S4: 18 (15+16+17) | T4: 19 (12+14+18)
A5: 1 | C5: =IF(A000000基础信息表!$T$11=TRUE,'A108010'!O6-'A108010'!T6-'A108010'!Y6,IF(A000000基础信息表!$U$11=TRUE,'A108010'!O15-'A108010'!T15-'A108010'!Y15,0)) -> 0 | D5: =IF(A000000基础信息表!$T$11=TRUE,'A108010'!S6-'A108010'!AA6,IF(A000000基础信息表!$U$11=TRUE,'A108010'!S15-'A108010'!AA15,0)) -> 0 | E5: =IF(A000000基础信息表!$T$11=TRUE,'A108020'!E5+'A108020'!I5,IF(A000000基础信息表!$U$11=TRUE,'A108020'!E14+'A108020'!I14,0)) -> 0 | F5: =IF((D5-E5)<0,0,D5-E5) -> 0 | H5: =ROUND(F5-G5,2) -> 0 | J5: =ROUND(H5*I5,2) -> 0 | K5: =IF(A000000基础信息表!$T$11=TRUE,'A108010'!N6-'A108010'!X6-'A108010'!Z6,IF(A000000基础信息表!$U$11=TRUE,'A108010'!N15-'A108010'!X15-'A108010'!Z15,0)) -> 0 | M5: =MIN(K5+0,L5+0) -> 0 | N5: =ROUND(L5-M5,2) -> 0 | O5: =IF(A000000基础信息表!$T$11=TRUE,'A108030'!N7,IF(A000000基础信息表!$U$11=TRUE,'A108030'!N16,0)) -> 0 | S5: =ROUND(SUM(P5:R5),2) -> 0 | T5: =ROUND(M5+O5+S5,2) -> 0
A6: 2 | C6: =IF(A000000基础信息表!$T$11=TRUE,'A108010'!O7-'A108010'!T7-'A108010'!Y7,0) -> 0 | D6: =IF(A000000基础信息表!$T$11=TRUE,'A108010'!S7-'A108010'!AA7,0) -> 0 | E6: =IF(A000000基础信息表!$T$11=TRUE,'A108020'!E6+'A108020'!I6,0) -> 0 | F6: =IF((D6-E6)<0,0,D6-E6) -> 0 | H6: =ROUND(F6-G6,2) -> 0 | J6: =ROUND(H6*I6,2) -> 0 | K6: =IF(A000000基础信息表!$T$11=TRUE,'A108010'!N7-'A108010'!X7-'A108010'!Z7,0) -> 0 | M6: =MIN(K6+0,L6+0) -> 0 | N6: =ROUND(L6-M6,2) -> 0 | O6: =IF(A000000基础信息表!$T$11=TRUE,'A108030'!N8,0) -> 0 | S6: =ROUND(SUM(P6:R6),2) -> 0 | T6: =ROUND(M6+O6+S6,2) -> 0
A7: 3 | C7: =IF(A000000基础信息表!$T$11=TRUE,'A108010'!O8-'A108010'!T8-'A108010'!Y8,0) -> 0 | D7: =IF(A000000基础信息表!$T$11=TRUE,'A108010'!S8-'A108010'!AA8,0) -> 0 | E7: =IF(A000000基础信息表!$T$11=TRUE,'A108020'!E7+'A108020'!I7,0) -> 0 | F7: 0 | H7: 0 | J7: 0 | K7: =IF(A000000基础信息表!$T$11=TRUE,'A108010'!N8-'A108010'!X8-'A108010'!Z8,0) -> 0 | M7: 0 | N7: 0 | O7: =IF(A000000基础信息表!$T$11=TRUE,'A108030'!N9,0) -> 0 | S7: 0 | T7: 0
A8: 4 | C8: =IF(A000000基础信息表!$T$11=TRUE,'A108010'!O9-'A108010'!T9-'A108010'!Y9,0) -> 0 | D8: =IF(A000000基础信息表!$T$11=TRUE,'A108010'!S9-'A108010'!AA9,0) -> 0 | E8: =IF(A000000基础信息表!$T$11=TRUE,'A108020'!E8+'A108020'!I8,0) -> 0 | F8: 0 | H8: 0 | J8: 0 | K8: =IF(A000000基础信息表!$T$11=TRUE,'A108010'!N9-'A108010'!X9-'A108010'!Z9,0) -> 0 | M8: 0 | N8: 0 | O8: =IF(A000000基础信息表!$T$11=TRUE,'A108030'!N10,0) -> 0 | S8: 0 | T8: 0
A9: 5 | C9: =IF(A000000基础信息表!$T$11=TRUE,'A108010'!O10-'A108010'!T10-'A108010'!Y10,0) -> 0 | D9: =IF(A000000基础信息表!$T$11=TRUE,'A108010'!S10-'A108010'!AA10,0) -> 0 | E9: =IF(A000000基础信息表!$T$11=TRUE,'A108020'!E9+'A108020'!I9,0) -> 0 | F9: 0 | H9: 0 | J9: 0 | K9: =IF(A000000基础信息表!$T$11=TRUE,'A108010'!N10-'A108010'!X10-'A108010'!Z10,0) -> 0 | M9: 0 | N9: 0 | O9: =IF(A000000基础信息表!$T$11=TRUE,'A108030'!N11,0) -> 0 | S9: 0 | T9: 0
A10: 6 | C10: =IF(A000000基础信息表!$T$11=TRUE,'A108010'!O11-'A108010'!T11-'A108010'!Y11,0) -> 0 | D10: =IF(A000000基础信息表!$T$11=TRUE,'A108010'!S11-'A108010'!AA11,0) -> 0 | E10: =IF(A000000基础信息表!$T$11=TRUE,'A108020'!E10+'A108020'!I10,0) -> 0 | F10: 0 | H10: 0 | J10: 0 | K10: =IF(A000000基础信息表!$T$11=TRUE,'A108010'!N11-'A108010'!X11-'A108010'!Z11,0) -> 0 | M10: 0 | N10: 0 | O10: =IF(A000000基础信息表!$T$11=TRUE,'A108030'!N12,0) -> 0 | S10: 0 | T10: 0
A11: 7 | C11: =IF(A000000基础信息表!$T$11=TRUE,'A108010'!O12-'A108010'!T12-'A108010'!Y12,0) -> 0 | D11: =IF(A000000基础信息表!$T$11=TRUE,'A108010'!S12-'A108010'!AA12,0) -> 0 | E11: =IF(A000000基础信息表!$T$11=TRUE,'A108020'!E11+'A108020'!I11,0) -> 0 | F11: 0 | H11: 0 | J11: 0 | K11: =IF(A000000基础信息表!$T$11=TRUE,'A108010'!N12-'A108010'!X12-'A108010'!Z12,0) -> 0 | M11: 0 | N11: 0 | O11: =IF(A000000基础信息表!$T$11=TRUE,'A108030'!N13,0) -> 0 | S11: 0 | T11: 0
A12: 8 | C12: =IF(A000000基础信息表!$T$11=TRUE,'A108010'!O13-'A108010'!T13-'A108010'!Y13,0) -> 0 | D12: =IF(A000000基础信息表!$T$11=TRUE,'A108010'!S13-'A108010'!AA13,0) -> 0 | E12: =IF(A000000基础信息表!$T$11=TRUE,'A108020'!E12+'A108020'!I12,0) -> 0 | F12: 0 | H12: 0 | J12: 0 | K12: =IF(A000000基础信息表!$T$11=TRUE,'A108010'!N13-'A108010'!X13-'A108010'!Z13,0) -> 0 | M12: 0 | N12: 0 | O12: =IF(A000000基础信息表!$T$11=TRUE,'A108030'!N14,0) -> 0 | S12: 0 | T12: 0
A13: 9 | C13: =IF(A000000基础信息表!$T$11=TRUE,'A108010'!O14-'A108010'!T14-'A108010'!Y14,0) -> 0 | D13: =IF(A000000基础信息表!$T$11=TRUE,'A108010'!S14-'A108010'!AA14,0) -> 0 | E13: =IF(A000000基础信息表!$T$11=TRUE,'A108020'!E13+'A108020'!I13,0) -> 0 | F13: 0 | H13: 0 | J13: 0 | K13: =IF(A000000基础信息表!$T$11=TRUE,'A108010'!N14-'A108010'!X14-'A108010'!Z14,0) -> 0 | M13: 0 | N13: 0 | O13: =IF(A000000基础信息表!$T$11=TRUE,'A108030'!N15,0) -> 0 | S13: 0 | T13: 0
A14: 10 | B14: 合计 | C14: =ROUND(SUM(C5:C13),2) -> 0 | D14: =ROUND(SUM(D5:D13),2) -> 0 | E14: =ROUND(SUM(E5:E13),2) -> 0 | F14: =ROUND(SUM(F5:F13),2) -> 0 | G14: =ROUND(SUM(G5:G13),2) -> 0 | H14: 0 | J14: 0 | K14: 0 | L14: 0 | M14: 0 | N14: 0 | O14: 0 | P14: 0 | Q14: 0 | R14: 0 | S14: 0 | T14: 0

Sheet A108010 (hidden)
A1: A108010 境外所得纳税调整后所得明细表 | P1: A108010 境外所得纳税调整后所得明细表（续）
A2: 行 次 | B2: 国家 （地区） | C2: 境外税后所得 | K2: 境外所得可抵免的所得税额 | O2: 境外税前所得 | P2: 境外分支机构收入与支出纳税调整额 | Q2: 境外分支机构调整分摊扣除的有关成本费用 | R2: 境外所得对应调整的相关成本费用支出 | S2: 境外所得纳税调整后所得 | T2: 其中：新增境外直接投资所得
C3: 分支机构机构营业利润所得 | D3: 股息、红利等权益性投资所得 | E3: 利息所得 | F3: 租金所得 | G3: 特许权使用费所得 | H3: 财产转让所得 | I3: 其他所得 | J3: 小计 | K3: 直接缴纳的所得税额 | L3: 间接负担的所得税额 | M3: 享受税收饶让抵免税额 | N3: 小计 | T3: 新设境外分支机构所得 | Y3: 新增境外直接投资相对应的股息所得 | AA3: 境外享受免税政策的所得小计
T4: 营业利润 | U4: 调整分摊扣除的有关成本费用 | V4: 纳税调整额 | W4: 纳税调整后所得 | X4: 境外所得税额 | Y4: 对应的股息所得 | Z4: 对应的股息境外所得税额
B5: 1 | C5: 2 | D5: 3 | E5: 4 | F5: 5 | G5: 6 | H5: 7 | I5: 8 | J5: 9（2+…+8） | K5: 10 | L5: 11 | M5: 12 | N5: 13(10+11 +12） | O5: 14（9+10 +11） | P5: 15 | Q5: 16 | R5: 17 | S5: 18（14+15-16-17） | T5: 19 | U5: 20 | V5: 21 | W5: 22（19-20 +21） | X5: 23 | Y5: 24 | Z5: 25 | AA5: 26 （22+24）
A6: 1 | J6: =ROUND(SUM(C6:I6),2) -> 0 | N6: =ROUND(SUM(K6:M6),2) -> 0 | O6: =ROUND(J6+K6+L6,2) -> 0 | S6: =ROUND(O6+P6-Q6-R6,2) -> 0 | W6: =IF(T6-U6+V6>0,T6-U6+V6,0) -> 0 | AA6: =W6+Y6 -> 0
A7: 2 | J7: =ROUND(SUM(C7:I7),2) -> 0 | N7: =ROUND(SUM(K7:M7),2) -> 0 | O7: =ROUND(SUM(J7+K7+L7),2) -> 0 | S7: =ROUND(O7+P7-Q7-R7,2) -> 0 | W7: =IF(T7-U7+V7>0,T7-U7+V7,0) -> 0 | AA7: =W7+Y7 -> 0
A8: 3 | J8: 0 | N8: 0 | O8: 0 | S8: 0 | W8: 0 | AA8: 0
A9: 4 | J9: 0 | N9: 0 | O9: 0 | S9: 0 | W9: 0 | AA9: 0
A10: 5 | J10: 0 | N10: 0 | O10: 0 | S10: 0 | W10: 0 | AA10: 0
A11: 6 | J11: 0 | N11: 0 | O11: 0 | S11: 0 | W11: 0 | AA11: 0
A12: 7 | J12: 0 | N12: 0 | O12: 0 | S12: 0 | W12: 0 | AA12: 0
A13: 8 | J13: 0 | N13: 0 | O13: 0 | S13: 0 | W13: 0 | AA13: 0
A14: 9 | J14: 0 | N14: 0 | O14: 0 | S14: 0 | W14: 0 | AA14: 0
A15: 10 | B15: 合计 | C15: =ROUND(SUM(C6:C14),2) -> 0 | D15: =ROUND(SUM(D6:D14),2) -> 0 | E15: 0 | F15: 0 | G15: 0 | H15: 0 | I15: 0 | J15: 0 | K15: 0 | L15: 0 | M15: 0 | N15: 0 | O15: 0 | P15: 0 | Q15: 0 | R15: 0 | S15: 0 | T15: =ROUND(SUM(T6:T14),2) -> 0 | U15: 0 | V15: 0 | W15: 0 | X15: 0 | Y15: 0 | Z15: 0 | AA15: 0
O17: =O15-T15-Y15 -> 0

Sheet A108020 (hidden)
A1: A108020 境外分支机构弥补亏损明细表
A2: 行次 | B2: 国家 （地区） | C2: 非实际亏损额的弥补 | G2: 实际亏损额的弥补
C3: 以前年度结转尚未弥补的非实际亏损额 | D3: 本年发生的非实际亏损额 | E3: 本年弥补的以前年度非实际亏损额 | F3: 结转以后年度弥补的非实际亏损额 | G3: 以前年度结转尚未弥补的实际亏损额 | H3: 本年发生的实际亏损额 | I3: 本年弥补的以前年度实际亏损额 | J3: 结转以后年度弥补的实际亏损额
B4: 1 | C4: 2 | D4: 3 | E4: 4 | F4: 5（2+3-4） | G4: 6 | H4: 7 | I4: 8 | J4: 9
A5: 1 | F5: =ROUND(C5+D5-E5,2) -> 0
A6: 2 | F6: =ROUND(C6+D6-E6,2) -> 0
A7: 3 | F7: 0
A8: 4 | F8: 0
A9: 5 | F9: 0
A10: 6 | F10: 0
A11: 7 | F11: 0
A12: 8 | F12: 0
A13: 9 | F13: 0
A14: 10 | B14: 合计 | C14: =ROUND(SUM(C5:C13),2) -> 0 | D14: =ROUND(SUM(D5:D13),2) -> 0 | E14: =ROUND(SUM(E5:E13),2) -> 0 | F14: 0 | G14: 0 | H14: 0 | I14: 0 | J14: 0

Sheet A108030 (hidden)
A1: A108030 跨年度结转抵免境外所得税明细表
A2: 行次 | B2: 国家 （地区） | C2: 前五年境外所得已缴所得税未抵免余额 | I2: 本年实际抵免以前年度未抵免的境外已缴所得税额 | O2: 结转以后年度抵免的境外所得已缴所得税额
C3: 前五年 | D3: 前四年 | E3: 前三年 | F3: 前二年 | G3: 前一年 | H3: 小计 | I3: 前五年 | J3: 前四年 | K3: 前三年 | L3: 前二年 | M3: 前一年 | N3: 小计 | O3: 前四年 | P3: 前三年 | Q3: 前二年 | R3: 前一年 | S3: 本年 | T3: 小计
B4: 1 | C4: 2 | D4: 3 | E4: 4 | F4: 5 | G4: 6 | H4: 7（2+3+4+5+6） | I4: 8 | J4: 9 | K4: 10 | L4: 11 | M4: 12 | N4: 13（8+9+10+11+12） | O4: 14（3-9） | P4: 15（4-10） | Q4: 16（5-11） | R4: 17（6-12） | S4: 18 | T4: 19（14+15+16+17+18）
C6: 2 | D6: 3 | E6: 4 | F6: 5 | G6: 6 | I6: 8 | J6: 9 | K6: 10 | L6: 11 | M6: 12 | S6: 18
A7: 1 | H7: =ROUND(SUM(C7:G7),2) -> 0 | N7: =ROUND(SUM(I7:M7),2) -> 0 | O7: =ROUND(D7-J7,2) -> 0 | P7: =ROUND(E7-K7,2) -> 0 | Q7: =ROUND(F7-L7,2) -> 0 | R7: =ROUND(G7-M7,2) -> 0 | T7: =ROUND(SUM(O7:S7),2) -> 0
A8: 2 | H8: =ROUND(SUM(C8:G8),2) -> 0 | N8: =ROUND(SUM(I8:M8),2) -> 0 | O8: =ROUND(D8-J8,2) -> 0 | P8: 0 | Q8: 0 | R8: 0 | T8: =ROUND(SUM(O8:S8),2) -> 0
A9: 3 | H9: 0 | N9: 0 | O9: 0 | P9: 0 | Q9: 0 | R9: 0 | T9: 0
A10: 4 | H10: 0 | N10: 0 | O10: 0 | P10: 0 | Q10: 0 | R10: 0 | T10: 0
A11: 5 | H11: 0 | N11: 0 | O11: 0 | P11: 0 | Q11: 0 | R11: 0 | T11: 0
A12: 6 | H12: 0 | N12: 0 | O12: 0 | P12: 0 | Q12: 0 | R12: 0 | T12: 0
A13: 7 | H13: 0 | N13: 0 | O13: 0 | P13: 0 | Q13: 0 | R13: 0 | T13: 0
A14: 8 | H14: 0 | N14: 0 | O14: 0 | P14: 0 | Q14: 0 | R14: 0 | T14: 0
A15: 9 | H15: 0 | N15: 0 | O15: =ROUND(D15-J15,2) -> 0 | P15: =ROUND(E15-K15,2) -> 0 | Q15: =ROUND(F15-L15,2) -> 0 | R15: =ROUND(G15-M15,2) -> 0 | T15: 0
A16: 10 | B16: 合计 | C16: =ROUND(SUM(C7:C15),2) -> 0 | D16: =ROUND(SUM(D7:D15),2) -> 0 | E16: =ROUND(SUM(E7:E15),2) -> 0 | F16: =ROUND(SUM(F7:F15),2) -> 0 | G16: =ROUND(SUM(G7:G15),2) -> 0 | H16: 0 | I16: =ROUND(SUM(I7:I15),2) -> 0 | J16: =ROUND(SUM(J7:J15),2) -> 0 | K16: =ROUND(SUM(K7:K15),2) -> 0 | L16: =ROUND(SUM(L7:L15),2) -> 0 | M16: =ROUND(SUM(M7:M15),2) -> 0 | N16: 0 | O16: 0 | P16: 0 | Q16: 0 | R16: 0 | S16: =ROUND(SUM(S7:S15),2) -> 0 | T16: 0

Sheet A109000
A1: A109000 跨地区经营汇总纳税企业年度分摊企业所得税明细表
A2: 行次 | B2: 项 目 | C2: 金 额
A3: 1 | B3: 一、实际应纳所得税额 | C3: 200 | D3: 等于主表第31行，“八、实际应纳所得税额”，包括总机构和两个分支机构的
A4: 2 | B4: 减：境外所得应纳所得税额
A5: 3 | B5: 加：境外所得抵免所得税额
A6: 4 | B6: 二、用于分摊的本年实际应纳所得税额（1-2+3） | C6: =ROUND(C3-C4+C5,2) -> 200
A7: 5 | B7: 三、本年累计已预分、已分摊所得税（6+7+8+9） | C7: =ROUND(SUM(C8:C11),2) -> 0
A8: 6 | B8: （一）总机构直接管理建筑项目部已预分所得税额
A9: 7 | B9: （二）总机构已分摊所得税额
A10: 8 | B10: （三）财政集中已分配所得税额
A11: 9 | B11: （四）分支机构已分摊所得税额
A12: 10 | B12: 其中：总机构主体生产经营部门已分摊所得税额
A13: 11 | B13: 四、本年度应分摊的应补（退）的所得税额（4-5） | C13: =ROUND(C6-C7,2) -> 200
A14: 12 | B14: （一）总机构分摊本年应补（退）的所得税额（11×总机构分摊比例） | C14: =ROUND(C13-SUM(C15:C16),2) -> 50
A15: 13 | B15: （二）财政集中分配本年应补（退）的所得税额（11×财政集中分配比例） | C15: =ROUND(C13*0.25,2) -> 50
A16: 14 | B16: （三）分支机构分摊本年应补（退）的所得税额（11×分支机构分摊比例） | C16: =ROUND(C13*0.5,2) -> 100
A17: 15 | B17: 其中：总机构主体生产经营部门分摊本年应补（退）的所得税额（11×总机构主体生产经营部门分摊比例）
A18: 16 | B18: 五、境外所得抵免后的应纳所得税额（2-3） | C18: =ROUND(C4-C5,2) -> 0
A19: 17 | B19: 六、总机构本年应补（退）所得税额（12+13+15+16） | C19: =ROUND(C14+C15+C17+C18,2) -> 100
A20: 18 | B20: 七、总机构应享受民族地方优惠金额[（7+10+12+15+16）×40%×减征幅度]
A21: 19 | B21: 总机构全年累计已享受民族地方优惠金额
A22: 20 | B22: 总机构因民族地方优惠调整分配金额（18-19） | C22: =C20-C21 -> 0
A23: 21 | B23: 八、总机构本年实际应补（退）所得税额（17-20) | C23: =C19-C22 -> 100

Sheet A109010
A1: A109010 企业所得税汇总纳税分支机构所得税分配表
A2: =封面!A7 -> 税款所属期间：2022年1月1日至2022年12月31日
A3: ="总机构名称（盖章）: "&主界面!C5 -> 总机构名称（盖章）:
A4: 总机构统一社会信用代码（纳税人识别号）： | C4: =主界面!C6 -> 0 | H4: 金额单位: 元（列至角分）
A5: 应纳所得税额 | C5: 总机构分摊所得税额 | D5: 总机构财政集中分配所得税额 | G5: 分支机构分摊所得税额
A6: ='A109000'!C13 -> 200 | C6: ='A109000'!C14 -> 50 | D6: ='A109000'!C15 -> 50 | G6: ='A109000'!C16 -> 100
A7: 分支机构情况 | B7: 分支机构纳税人识别号 | C7: 分支机构名称 | D7: 三项因素 | G7: 分配 比例 | H7: 分配所得税额
D8: 营业收入 | E8: 职工薪酬 | F8: 资产总额
C9: A分公司 | D9: 400 | E9: 100 | F9: 1000 | G9: =IF(AND(D9=0,E9=0,F9=0),0,1-SUM(G10:G22)) -> 0.38 | H9: =ROUND(H6-SUM(H10:H22),2) -> 0
C10: B分公司 | D10: 600 | E10: 150 | F10: 2000 | G10: =IF(AND(D10=0,E10=0,F10=0),0,D10/$D$23*35%+E10/$E$23*35%+F10/$F$23*30%) -> 0.62 | H10: =ROUND($H$6*G10,2) -> 0
G11: =IF(AND(D11=0,E11=0,F11=0),0,D11/$D$23*35%+E11/$E$23*35%+F11/$F$23*30%) -> 0 | H11: =ROUND($H$6*G11,2) -> 0
G12: 0 | H12: 0
G13: 0 | H13: 0
G14: 0 | H14: 0
G15: 0 | H15: 0
G16: 0 | H16: 0
G17: 0 | H17: 0
G18: 0 | H18: 0
G19: 0 | H19: 0
G20: 0 | H20: 0
G21: 0 | H21: 0
G22: 0 | H22: 0
B23: 合计 | C23: — | D23: =ROUND(SUM(D9:D22),2) -> 1000 | E23: =ROUND(SUM(E9:E22),2) -> 250 | F23: =ROUND(SUM(F9:F22),2) -> 3000 | G23: =ROUND(SUM(G9:G22),2) -> 1 | H23: =ROUND(SUM(H9:H22),2) -> 0

Sheet 研发项目可加计扣除研究开发费用情况归集表 (hidden)
A1: 研发项目可加计扣除研究开发费用情况归集表
A2: ="纳税人名称（盖章）："&主界面!C5 -> 纳税人名称（盖章）： | C2: ="纳税人识别号："&主界面!C6 -> 纳税人识别号：
A3: =主界面!C8&"年度" -> 2022年度 | D3: 金额单位：元(列至角分）
A4: 序号 | B4: 项目 | D4: 发生额
A5: 1 | B5: 一、人员人工费用小计 | D5: =SUM(D6:D8) -> 0
A6: 1.1 | B6: 直接从事研发活动人员 | C6: 工资薪金 | D6: =研发支出辅助账汇总表!L10 -> 0
A7: 1.2 | C7: 五险一金 | D7: =研发支出辅助账汇总表!M10 -> 0
A8: 1.3 | B8: 外聘研发人员的劳务费用 | D8: =研发支出辅助账汇总表!N10 -> 0
A9: 2 | B9: 二、直接投入费用小计 | D9: =SUM(D10:D17) -> 0
A10: 2.1 | B10: 研发活动直接消耗 | C10: 材料 | D10: =研发支出辅助账汇总表!O10 -> 0
A11: 2.2 | C11: 燃料 | D11: =研发支出辅助账汇总表!P10 -> 0
A12: 2.3 | C12: 动力费用 | D12: =研发支出辅助账汇总表!Q10 -> 0
A13: 2.4 | B13: 用于中间试验和产品试制的模具、工艺装备开发及制造费 | D13: =研发支出辅助账汇总表!R10 -> 0
A14: 2.5 | B14: 用于不构成固定资产的样品、样机及一般测试手段购置费 | D14: =研发支出辅助账汇总表!S10 -> 0
A15: 2.6 | B15: 用于试制产品的检验费 | D15: =研发支出辅助账汇总表!T10 -> 0
A16: 2.7 | B16: 用于研发活动的仪器、设备的运行维护、调整、检验、维修等费用 | D16: =研发支出辅助账汇总表!U10 -> 0
A17: 2.8 | B17: 通过经营租赁方式租入的用于研发活动的仪器、设备租赁费 | D17: =研发支出辅助账汇总表!V10 -> 0
A18: 3 | B18: 三、折旧费用小计 | D18: =SUM(D19:D20) -> 0
A19: 3.1 | B19: 用于研发活动的仪器的折旧费 | D19: =研发支出辅助账汇总表!W10 -> 0
A20: 3.2 | B20: 用于研发活动的设备的折旧费 | D20: =研发支出辅助账汇总表!X10 -> 0
A21: 4 | B21: 四、无形资产摊销小计 | D21: =SUM(D22:D24) -> 0
A22: 4.1 | B22: 用于研发活动的软件的摊销费用 | D22: =研发支出辅助账汇总表!Y10 -> 0
A23: 4.2 | B23: 用于研发活动的专利权的摊销费用 | D23: =研发支出辅助账汇总表!Z10 -> 0
A24: 4.3 | B24: 用于研发活动的非专利技术（包括许可证、专有技术、设计和计算方法等）的摊销费用 | D24: =研发支出辅助账汇总表!AA10 -> 0
A25: 5 | B25: 五、新产品设计费等小计 | D25: =SUM(D26:D29) -> 0
A26: 5.1 | B26: 新产品设计费 | D26: =研发支出辅助账汇总表!AB10 -> 0
A27: 5.2 | B27: 新工艺规程制定费 | D27: =研发支出辅助账汇总表!AC10 -> 0
A28: 5.3 | B28: 新药研制的临床试验费 | D28: =研发支出辅助账汇总表!AD10 -> 0
A29: 5.4 | B29: 勘探开发技术的现场试验费 | D29: =研发支出辅助账汇总表!AE10 -> 0
A30: 6 | B30: 六、其他相关费用小计 | D30: =SUM(D31:D34) -> 0
A31: 6.1
A32: 6.2
A33: 6.3
A34: …
A35: 7 | B35: 七、委托外部机构或个人进行研发活动所发生的费用 | D35: =研发支出辅助账汇总表!AJ10 -> 0
A36: 7.1 | B36: 其中：委托境外进行研发活动所发生的费用（包括存在关联关系的委托研发） | D36: =研发支出辅助账汇总表!AK10 -> 0
A37: 8 | B37: 八、允许加计扣除的研发费用中的第1至5类费用合计（1+2+3+4+5） | D37: =研发支出辅助账汇总表!AL10 -> 0
A38: 8.1 | B38: 其他相关费用限额=序号8×10％/(1-10％) | D38: =D37*0.1/(1-0.1) -> 0
A39: 9 | B39: 九、当期费用化支出可加计扣除总额 | D39: =研发支出辅助账汇总表!AN10 -> 0
A40: 10 | B40: 十、研发项目形成无形资产当期摊销额
A41: 10.1 | B41: 其中：准予加计扣除的摊销额
A42: 11 | B42: 十一、当期实际加计扣除总额（9+10.1）×50％ | D42: =(D39+D41)*50% -> 0
A45: 填表说明：
A46: 1.本表在企业所得税汇算清缴时随申报表一并报送；
A47: 2.本表应当按照“研发支出”辅助账汇总表填报；
A49: 参考法规：
A50: 国家税务总局所得税司关于2016年度企业研究开发费用税前加计扣除企业所得税纳税申报有关问题的通知
A51: 《国家税务总局关于企业研究开发费用税前加计扣除政策有关问题的公告》（国家税务总局公告2015年第97号）

Sheet 研发支出辅助账汇总表 (hidden)
A1: “研发支出”辅助账汇总表
A2: ="纳税人识别号："&主界面!C6 -> 纳税人识别号： | L2: ="纳税人名称（盖章）："&主界面!C5 -> 纳税人名称（盖章）： | AA2: =主界面!C8&"年度" -> 2022年度 | AO2: 金额单位：元（列至角分）
A3: 项目 | B3: 序号 | C3: 项目名称 | D3: 项目编号 | E3: 研发形式 | F3: 资本化、费用化支出选项 | G3: 项目实施状态选项 | H3: 委托方与受托方是否存在关联关系选项 | I3: 是否委托境外选项 | J3: 研发成果 | K3: 研发成果证书号 | L3: 一、人员人工费用 | O3: 二、直接投入费用 | W3: 三、折旧费用 | Y3: 四、无形资产摊销 | AB3: 五、新产品设计费等 | AF3: 六、其他相关费用 | AJ3: 七、委托外部机构或个人进行研发活动所发生的费用 | AK3: 其中：委托境外进行研发活动所发生的费用（包括存在关联关系的委托研发） | AL3: 八、允许加计扣除的研发费用中的第1至5类费用合计（1+2+3+4+5） | AM3: 其他相关费用限额=序号8×10％/(1-10％) | AN3: 九、当期费用化支出可加计扣除总额 | AO3: 当期资本化可加计扣除的研发费用率
L4: 直接从事研发活动人员 | N4: 外聘研发人员的劳务费用 | O4: 研发活动直接消耗 | R4: 用于中间试验和产品试制的模具、工艺装备开发及制造费 | S4: 用于不构成固定资产的样品、样机及一般测试手段购置费 | T4: 用于试制产品的检验费 | U4: 用于研发活动的仪器、设备的运行维护、调整、检验、维修等费用 | V4: 通过经营租赁方式租入的用于研发活动的仪器、设备租赁费 | W4: 用于研发活动的仪器的折旧费 | X4: 用于研发活动的设备的折旧费 | Y4: 用于研发活动的软件的摊销费用 | Z4: 用于研发活动的专利权的摊销费用 | AA4: 用于研发活动的非专利技术（包括许可证、专有技术、设计和计算方法等）的摊销费用 | AB4: 新产品设计费 | AC4: 新工艺规程制定费 | AD4: 新药研制的临床试验费 | AE4: 勘探开发技术的现场试验费
L5: 工资薪金 | M5: 五险一金 | O5: 材料 | P5: 燃料 | Q5: 动力费用
A6: 行次、序号 | L6: 1.1 | M6: 1.2 | N6: 1.3 | O6: 2.1 | P6: 2.2 | Q6: 2.3 | R6: 2.4 | S6: 2.5 | T6: 2.6 | U6: 2.7 | V6: 2.8 | W6: 3.1 | X6: 3.2 | Y6: 4.1 | Z6: 4.2 | AA6: 4.3 | AB6: 5.1 | AC6: 5.2 | AD6: 5.3 | AE6: 5.4 | AF6: 6.1 | AG6: 6.2 | AH6: 6.3 | AI6: … | AJ6: 7 | AK6: 7.1 | AL6: 8 | AM6: 8.1 | AN6: 9 | AO6: 9.1
A7: 1 | B7: 期初余额 | AL7: =SUM(L7:AE7) -> 0 | AM7: =AL7*10%/(1-10%) -> 0 | AN7: * | AO7: *
A8: 2 | B8: 本期借方发生额 | AL8: =SUM(L8:AE8) -> 0 | AM8: =AL8*10%/(1-10%) -> 0 | AN8: * | AO8: *
A9: 3 | B9: 本期贷方发生额 | AL9: 0 | AM9: 0 | AN9: * | AO9: *
A10: 4 | B10: 其中：结转管理费用 | AL10: 0 | AM10: 0 | AO10: *
A11: 5 | B11: 结转无形资产 | AL11: 0 | AM11: 0 | AN11: * | AO11: *
A12: 6 | B12: 期末余额 | AL12: 0 | AM12: 0 | AN12: * | AO12: *
A13: 项目明细 （填写项目贷方发生额） | B13: 1
B14: 2
B15: 3
B16: 4
B17: 5
B18: 6
B19: …
A20: 法定代表人（签章）： | S20: 财务负责人：
A24: 填报说明：
A25: 1.本表属于年度财务会计报告附注之一，应当随同年度财务会计报告一并报送主管税务机关；
A26: 2.本表是根据所有上年未完成及本年新设置的项目的“研发支出”辅助账汇总填报；
A28: 参考法规
A29: 国家税务总局所得税司关于2016年度企业研究开发费用税前加计扣除企业所得税纳税申报有关问题的通知
A30: 《国家税务总局关于企业研究开发费用税前加计扣除政策有关问题的公告》（国家税务总局公告2015年第97号）
